Workbook

Sheet Data_Main (hidden)
B4: Year | C4: 2025 | D4: Enter
B5: Year_Long | C5: =m_year&"/"&m_year+1 -> 2025/2026 | D5: Calculated
B6: Year_Short | C6: =RIGHT(m_year,2)&"/"&RIGHT(m_year,2)+1 -> 25/26 | D6: Calculated
B9: MODEL VERSION | C9: 9
B11: show_disclaimer | C11: TRUE | D11: Calculated

Sheet Data_Sheets (hidden)
E8: Reference only
E9: Michaels Sheet Names
B10: Sheet | C10: State(show to keep sheet visible or blank to hide)
B11: Data_Main
B12: Data_Sheets
B13: DV_TABLES
B14: Instructions | C14: Show
B15: Main | C15: Show
B16: Summary | C16: Show
B17: Prime Lambs Input | E17: PRIME LAMBS- HIGH RAINFALL
B18: Prime Lambs
B19: Prime Lambs Maternal Input
B20: Prime Lambs Maternal
B21: Prime Lambs Merino Ewes Input | E21: PRIME LAMBS- CEREAL ZONE
B22: Prime Lambs Merino Ewes
B23: Lamb Trading Input | E23: LAMB TRADING - HIGH RAINFALL
B24: Lamb Trading
B25: GM_INFO
B26: Merino SR Input | E26: MERINO S.R. - CEREAL ZONE
B27: Merino SR
B28: Wethers Input | E28: WETHERS - CEREAL ZONE
B29: Wethers
B30: Cleanskin Sheep Input | E30: Cleanskin Cereal Zone
B31: Cleanskin Sheep
B32: Beef Input | E32: BEEF - CEREAL ZONE
B33: Beef
B34: Beef Trading Input | E34: BEEF Trading- HIGH RAINFALL
B35: Beef Trading
B36: Beef Feed Lot Input | E36: Beef Feed Lot
B37: Beef Feed Lot

Sheet DV_TABLES (hidden)

Sheet Instructions
B7: ="Livestock Farm Gross Margin Guide -"&TEXT(m_year,"0000") -> Livestock Farm Gross Margin Guide -2025
B8: This spreadsheet can take a few moments to load
B9: PLEASE NOTE:THIS VERSION WILL ONLY WORK WITH EXCEL VERSIONS 2007 & ABOVE FOR WINDOWS ONLY. It will not work with Excel for Mac, Ipad, Android, tablets etc.
B12: Before you start you will need to enable macros, otherwise the program will not work.
B13: This may appear as a Security Warning at the top of your page. To do this, click on “Enable Content”.
B14: Clicking “Enable Content” allows you to enter data into the Excel Worksheet.
B22: You may also see a message about "PROTECTED VIEW". Please click "Enable Editing".
B29: Yellow cells = data entry (some yellow cells contain formulas, these usually represent default
B30: values but may be over written. To revert back to the default value formula click the blue 'Reset…'
B31: link next to the cell.
B32: Blue cells contain formulas, are protected and can not be overwritten.
B46: Start in the “Main” sheet and select “Livestock types” you want to use:
B74: Pasture costs are not included as part of the Gross Margins. To include pasture and overhead costs,
B75: download the “Crops Gross Margin Guide” and select the appropriate pasture types.
B76: The Livestock Gross Margin figures can be inserted as the “Income” for the Pasture Gross Margins.
B79: For technical support or to report errors/omissions regarding this spreadsheet please
B80: email Michael Wurst at:
B81: michaelwurst1@gmail.com

Sheet Main
C3: ="FARM GROSS MARGIN GUIDE - "&TEXT(m_year,"0000") -> FARM GROSS MARGIN GUIDE - 2025 | G3: ="Version-"&TEXT(MODEL_VERSION,"0.0") -> Version-9.0
C6: by clicking checkboxes or All or None buttons
B7: FALSE | C7: Prime Lambs 1st Cross Ewes | E7: High rainfall and cereal zones
B8: FALSE | C8: Prime Lambs Maternal | E8: High rainfall zone
B9: FALSE | C9: Prime Lambs Merino Ewes | E9: All production zones | F9: - will need to adjust wool type, lambing percentage and inputs
B10: FALSE | C10: Lamb Trading High Rainfall | E10: High rainfall and cereal zones
B11: FALSE | C11: Merino SR | E11: All production zones | F11: - will need to adjust wool type, lambing percentage and inputs
B12: FALSE | C12: Wethers | E12: All production zones | F12: - will need to adjust wool type, lambing percentage and inputs
B13: FALSE | C13: Cleanskin Sheep | E13: Cereal and pastoral zones | F13: - will need to adjust lambing percentage and inputs
B14: FALSE | C14: Beef | E14: All production zones | F14: - will need to adjust cattle sale type, calving percentage and inputs
B15: FALSE | C15: Beef Trading | E15: High rainfall zone
B16: FALSE
C18: a) DSE ratings are based on the maintenance feed requirements of a 2-year old, 50 kg liveweight merino wether, with a body condition score of 2
C20: b) The wool price is 90% of the price for fleece value for that micron. This takes into account the lower value of bellies, skirtings, locks etc
C22: c) Many contractors pay above Federal Award rates for shearing and crutching.
C24: d) Superannuation/Workcover expenses relate only to shearing.

Sheet GM_INFO (hidden)
A1: G.M. LINK SHEET
A3: COMMENT: spreadsheet is protected EXCEPT for highlighted cells,
A4: i.e. those cells which can be changed.
A6: DATE | B6: =m_year -> 2025
A10: _______________________________________________________________________________________________________________________
A11: Todays Date: | B11: =NOW() -> 2025-02-11T10:16:41.770
A14: ="FARM COSTS - "&m_year -> FARM COSTS - 2025
A17: SHEEP
A19: Drench
A20: Name | B20: Price1 | C20: UOM1 | D20: Price2 | E20: UOM2
A21: Avomec Dual | B21: 65.2 | C21: /litre | D21: 0.7824 | E21: /12ml dose
A22: Cydectin | B22: 30.5 | C22: /litre | D22: 0.366 | E22: /12ml dose
A23: Cydectin Long Act Injectable | B23: 310 | C23: /500ml | D23: 1.86 | E23: /3ml dose
A24: Dynamax Capsules | B24: 450 | C24: /100 capsules | D24: 4.5 | E24: /capsule
A25: Q-Drench | B25: 75 | C25: /litre | D25: 0.9 | E25: /12ml dose
A26: Startect | B26: 140 | C26: /litre | D26: 1.68 | E26: /12ml dose
A27: Triguard | B27: 46 | C27: /litre | D27: 0.552 | E27: /12ml dose
A28: Zolvix Plus | B28: 250 | C28: /litre | D28: 1.5 | E28: /6ml dose
A32: Vaccine
A33: Name | B33: Price1 | C33: UOM1 | D33: Price2 | E33: UOM2
A34: Cobalife Vit B12 | B34: 73 | C34: /500ml | D34: 0.146 | E34: /1ml dose
A35: Cobalife Vit B12 + S | B35: 85 | C35: /500mls | D35: 0.17 | E35: /1ml dose
A36: Eryvac | B36: 255 | C36: /250ml | D36: 1.02 | E36: /1ml dose
A37: Eweguard B12 + S | B37: 365 | C37: /500ml | D37: 1.825 | E37: /2.5ml dose
A38: Glanvac 3 | B38: 88 | C38: /250ml | D38: 0.352 | E38: /1ml dose
A39: Glanvac 3B12 | B39: 166 | C39: /250ml | D39: 0.664 | E39: /1ml dose
A40: Glanvac 3SB12 | B40: 180 | C40: /250ml dose | D40: 0.72 | E40: /1ml dose
A41: Glanvac 6 | B41: 120 | C41: /250ml | D41: 0.48 | E41: /1ml dose
A42: Glanvac 6B12 | B42: 216 | C42: /250ml | D42: 0.864 | E42: /1ml dose
A43: Glanvac 6SB12 | B43: 235 | C43: /250ml | D43: 0.94 | E43: /1ml dose
A44: Gudiar | B44: 990 | C44: /250ml | D44: 3.96 | E44: /1ml dose
A45: Multimin Injection | B45: 475 | C45: /500ml | D45: 0.95 | E45: /2ml dose
A46: Scabigard | B46: 155 | C46: /250ml | D46: 0.62 | E46: /1ml dose
A47: Ultravac 5 in 1 | B47: 90 | C47: /250ml | D47: 0.36 | E47: /1ml dose
A48: Ultravac 5 in 1 with B12 | B48: 165 | C48: /500ml | D48: 0.66 | E48: /2ml dose
A49: Vit ADE | B49: 190 | C49: /500ml | D49: 0.95 | E49: /5ml dose
A50: Weanerguard B12 + S | B50: 260 | C50: /500ml | D50: 1.56 | E50: /3ml dose
A53: Blowfly Control
A54: Name | B54: Price1 | C54: UOM1 | D54: Price2 | E54: UOM2
A55: Clik | B55: 70 | C55: /litre | D55: =B55*0.024 -> 1.68 | E55: /24 ml dose
A56: Blowfly and Lice | B56: 55 | C56: /litre | D56: 219 | E56: per 5L
A57: Vetrazin Jetting Fluid | B57: 50.6 | C57: /litre | D57: 401 | E57: per 7L
A58: Vetrazin Spray On | B58: 12.5 | C58: /litre | D58: =B58*0.066 -> 0.825 | E58: /66ml dose
A65: Lice Control | B65: Avenge | C65: 20.5 | D65: /litre
C66: =C65*0.08 -> 1.64 | D66: /80ml dose
A67: Drench | B67: Triguard | C67: 46 | D67: /litre
C68: =C67*0.012 -> 0.552 | D68: /12ml dose
C69: 0.552
B70: Qdrench | C70: 0.9
A71: Vaccine | B71: Glanvac 3 | C71: 54.4 | D71: /250ml
C72: 0.328 | D72: /1ml dose
B73: Glanvac 6 | C73: 74.73 | D73: 250ml
C74: 0.436 | D74: /1ml dose
A75: Blowfly Control | B75: Clik | C75: 51.94 | D75: /litre
C76: 1.56 | D76: /24 ml dose
A77: Wool packs | B77: nylon | C77: 15 | D77: ea
A79: Shearing | B79: Sheep | C79: 381.58 | D79: /100
B80: rams | C80: 763.16 | D80: /100
B81: shed labour | C81: 289.4 | D81: /day
B82: wool classer | C82: 350.85 | D82: day
B83: superannuation | C83: 0.115 | D83: wages
B84: Work Cover-Allow | C84: 0.04 | D84: total
B85: shed sundries | C85: 0.22 | D85: /head
A87: Crutching | B87: Ewes | C87: 131.65 | D87: /100
B88: rams | C88: 244.22 | D88: /100
B89: Wethers | C89: 122.11 | D89: /100
A90: lamb marking | B90: mulesing / materials | C90: 2 | D90: /head
B91: marking only | C91: 1.5 | D91: /head
B92: electronic tags | C92: 2.32 | D92: /head
A93: Tri-Solfen | B93: pain relief | C93: 2 | D93: /head | F93: from 2025 same rate for both
B94: pain relief | C94: 1.995 | D94: /head | E94: Merino SR only | F94: from 2025 same rate for both
A95: Stock purchaces | B95: purchase rams | C95: 1200 | D95: /head
B96: purchase wethers | C96: 80 | D96: /head
A98: Stock selling | B98: commission/insurance | C98: 0.055
B99: yard fees | C99: 1 | D99: /head
B100: sheep transaction levy | C100: 0.2 | D100: /head
B101: lamb transaction levy | C101: 2 | D101: /head
B102: SA sheep industry levy | C102: 0.67 | D102: /head
B103: wool brokerage / testing / insurance | C103: 0.27 | D103: /kg
B104: wool levy | C104: 0.015
A110: BEEF | H110: BEEF FEEDLOT
A111: Drench (backline) | B111: Genesis Pour-on | D111: 83.62 | E111: /litre | H111: Drench, Dectomax | I111: 5.775 | J111: /head
D112: 4.895 | E112: /25ml dose | H112: Ear Tags | I112: 4.75 | J112: /tag
A113: 5 in 1 vaccine | D113: 100.46 | E113: /500 ml | H113: HGP implant , Synovex | I113: 2.5 | J113: /dose
D114: 0.72 | E114: /4ml dose | H114: Lice Treatments | I114: 0 | J114: /dose
A115: Ultravac 7 in 1 | B115: 330 | C115: /250 ml | D115: =B115/100 -> 3.3 | E115: /2.5ml dose
A116: Fly and Lice | B116: Arrest Easy Dose | C116: 75/litre | D116: 2.25 | E116: /30ml dose | H116: Vaccine | I116: 0.58 | J116: /dose
A117: Eprinex Pour-on | B117: 85 | C117: /litre | D117: =B117*0.055 -> 4.675 | E117: /55ml dose | H117: Veterinary | I117: 1.25 | J117: /head
A118: Trace Element treatments | D118: 3 | E118: /head | H118: Vitamin injection | I118: 1.5 | J118: /head
A119: HGP implant | D119: 1.75 | H119: Premix cost per tonne mixed feed | I119: 50 | J119: /tonne
A120: Vitamin injection | D120: 1.3 | H120: Milling costs + Labour | I120: 28 | J120: /head
H121: Water | I121: 20 | J121: /head
H122: Insurance | I122: 3
H123: Transport In | I123: 15
A124: NLIS Breeder Tags (incl levy) | D124: 4.75 | E124: each | H124: Transport Out | I124: 30
H125: Commission | I125: 0.055
B126: freight cattle in | D126: 45 | E126: /head | H126: Levies | I126: 5
B127: freight cattle out | D127: 45 | E127: /head | H127: Losses | I127: 0.006 | J127: %
B128: Cattle levy | D128: 5.5 | E128: /head
D129: Prime Lambs | E129: Prime Lambs Cereal | F129: Merino SR Cereal | G129: Wethers Cereal | H129: Cleanskin | I129: Beef Cereal | J129: Beef Trading | K129: Lamb trading
A130: FEED & OTHER COSTS | B130: water | C130: /DSE | D130: 2.5 | E130: 2.5 | F130: 2.5 | G130: 2.5 | H130: 2.5 | I130: 2.5 | J130: 2.5 | K130: 2.5
B131: Veh fuel, R&M | C131: /DSE | D131: 1.5 | E131: 1.5 | F131: 1.2 | G131: 1.5 | H131: 1.5 | I131: 1.5 | J131: 1.5 | K131: 1.5
B132: other | C132: /DSE | D132: 0.5 | E132: 0.5 | F132: 0.5 | G132: 0.5 | H132: 0.5 | I132: 0.5 | J132: 0.5 | K132: 0.5
B133: hay | C133: /tonne incl freight | D133: 220
B134: Feed Cereal grain | C134: /tonne incl freight | D134: 300
B135: Lamb Feedlot Mix | C135: /tonne incl freight | D135: 300
B136: Blocks/ Mineral Mix | D136: 5.5
A140: ="FARM COSTS - "&m_year -> FARM COSTS - 2025
A144: STOCK RETURNS | F144: Budget Base (Greasy)
A145: WOOL- High Rainfall 28 mic 70%Yield | F145: 420
A146: - High Rainfall 19.5 mic 70% Yld | F146: 1500
A147: - Med Rainfall 21 mic 68% Yield | F147: 1200
A148: - Low Rainfall 22 mic 63% Yield | F148: 1150
A149: - Crossbred Ram 32 mic | F149: 210
A151: ="FARM COSTS - "&m_year -> FARM COSTS - 2025
A155: INSURANCE COSTS
A156: Livestock
A157: Sheep and cattle | B157: 4.5 | C157: /$1,000 insured
A160: FREIGHT COSTS | B160: Prime Lambs
A161: culls | B161: 7
A162: ewes | B162: 7
A163: prime lambs | B163: 7
A164: bales | B164: 15
A165: rams | B165: 7
A166: hoggets | B166: 7
A167: vealers | B167: 30
A169: BEEF
A170: Vealers | B170: 280 | C170: kg liveweight @ | D170: =1120/280 -> 4 | E170: /kg L/W
A171: Yearling | B171: 400 | C171: kg liveweight @ | D171: =1560/400 -> 3.9 | E171: /kg L/W
A172: Cows | B172: 550 | C172: kg liveweight @ | D172: =1420/550 -> 2.581818182 | E172: /kg L/W
A174: BEEF TRADING
A175: Vealers | B175: 280 | C175: kg liveweight @ | D175: 4 | E175: /kg L/W
A176: Yearling | B176: 420 | C176: kg liveweight @ | D176: 3.95 | E176: /kg L/W
A177: Cows | B177: 550 | C177: kg liveweight @ | D177: =D172 -> 2.581818182 | E177: /kg L/W

Sheet Summary
B2: ="GROSS MARGINS SUMMARY - "&TEXT(m_year,"0000") -> GROSS MARGINS SUMMARY - 2025
D4: Gross Margin
B5: Type | C5: No of head
B6: Prime Lambs 1st Cross Ewes | C6: ='Prime Lambs Input'!E7*rng_Prime_Lambs_DATA -> 0 | D6: ='Prime Lambs'!Q174*rng_Prime_Lambs_DATA -> 0 | E6: ='Prime Lambs'!Q172*rng_Prime_Lambs_DATA -> 0 | F6: ='Prime Lambs'!Q37*rng_Prime_Lambs_DATA -> 0 | G6: ='Prime Lambs'!Q170*rng_Prime_Lambs_DATA -> 0
B7: Prime Lambs Maternal | C7: ='Prime Lambs Maternal Input'!E7*rng_Prime_Lambs_Maternal_DATA -> 0 | D7: ='Prime Lambs Maternal'!Q174*rng_Prime_Lambs_Maternal_DATA -> 0 | E7: ='Prime Lambs Maternal'!Q172*rng_Prime_Lambs_Maternal_DATA -> 0 | F7: ='Prime Lambs Maternal'!Q37*rng_Prime_Lambs_Maternal_DATA -> 0 | G7: ='Prime Lambs Maternal'!Q170*rng_Prime_Lambs_Maternal_DATA -> 0
B8: Prime Lambs Merino Ewes | C8: ='Prime Lambs Merino Ewes Input'!E7*rng_Prime_LambsMerino_DATA -> 0 | D8: ='Prime Lambs Merino Ewes'!Q174*rng_Prime_LambsMerino_DATA -> 0 | E8: ='Prime Lambs Merino Ewes'!Q172*rng_Prime_LambsMerino_DATA -> 0 | F8: ='Prime Lambs Merino Ewes'!Q37*rng_Prime_LambsMerino_DATA -> 0 | G8: ='Prime Lambs Merino Ewes'!Q170*rng_Prime_LambsMerino_DATA -> 0
B9: Lamb Trading High Rainfall | C9: ='Lamb Trading Input'!E7*rng_Lambtrading_DATA -> 0 | D9: ='Lamb Trading'!Q174*rng_Lambtrading_DATA -> 0 | E9: ='Lamb Trading'!Q172*rng_Lambtrading_DATA -> 0 | F9: ='Lamb Trading'!Q37*rng_Lambtrading_DATA -> 0 | G9: ='Lamb Trading'!Q170*rng_Lambtrading_DATA -> 0
B10: Merino SR | C10: ='Merino SR Input'!E8*rng_Merino_SR_DATA -> 0 | D10: ='Merino SR'!Q174*rng_Merino_SR_DATA -> 0 | E10: ='Merino SR'!Q172*rng_Merino_SR_DATA -> 0 | F10: ='Merino SR'!Q37*rng_Merino_SR_DATA -> 0 | G10: ='Merino SR'!Q170*rng_Merino_SR_DATA -> 0
B11: Wethers | C11: ='Wethers Input'!E7*rng_Whethers_DATA -> 0 | D11: =Wethers!Q7*rng_Whethers_DATA -> 0 | E11: =Wethers!Q172*rng_Whethers_DATA -> 0 | F11: =Wethers!Q37*rng_Whethers_DATA -> 0 | G11: =Wethers!Q170*rng_Whethers_DATA -> 0
B12: Cleanskin Sheep | C12: ='Cleanskin Sheep Input'!E7*rng_Cleanskin_Sheep_DATA -> 0 | D12: ='Cleanskin Sheep'!Q174*rng_Cleanskin_Sheep_DATA -> 0 | E12: ='Cleanskin Sheep'!Q172*rng_Cleanskin_Sheep_DATA -> 0 | F12: ='Cleanskin Sheep'!Q37*rng_Cleanskin_Sheep_DATA -> 0 | G12: ='Cleanskin Sheep'!Q170*rng_Cleanskin_Sheep_DATA -> 0
B13: Beef | C13: ='Beef Input'!E15*rng_Beef_DATA -> 0 | D13: =Beef!Q174*rng_Beef_DATA -> 0 | E13: =Beef!Q172*rng_Beef_DATA -> 0 | F13: =Beef!Q41*rng_Beef_DATA -> 0 | G13: =Beef!Q170*rng_Beef_DATA -> 0
B14: Beef Trading | C14: ='Beef Trading Input'!E10*rng_Beeftrading_DATA -> 0 | D14: ='Beef Trading'!Q174*rng_Beeftrading_DATA -> 0 | E14: ='Beef Trading'!Q172*rng_Beeftrading_DATA -> 0 | F14: ='Beef Trading'!Q41*rng_Beeftrading_DATA -> 0 | G14: ='Beef Trading'!Q170*rng_Beeftrading_DATA -> 0
B16: TOTAL | E16: =SUM(E6:E15) -> 0 | F16: =SUM(F6:F15) -> 0 | G16: =SUM(G6:G15) -> 0
B19: Resources
B20: NSW DPI Feed Cost Calculator
B21: https://www.dpi.nsw.gov.au/animals-and-livestock/nutrition/costs-and-nutritive-value/feed-cost-calculator
B23: Sheep Nutrition Videos
B24: 10 minute talks – Interpreting feed tests, Deb Scammell, Talking Livestock
B25: https://youtu.be/RSzkF-DXqic
B27: Ewe containment nutrition, Deb Scammell, Talking Livestock
B28: https://youtu.be/mDX70r_WsNY

Sheet Prime Lambs Input (hidden)
C1: Prime Lambs (1st cross ewes)
C2: =UPPER(var_animal)&" GROSS MARGIN - "&TEXT(m_year,"0000") -> PRIME LAMBS (1ST CROSS EWES) GROSS MARGIN - 2025
C4: GENERAL INFORMATION
C5: This represents a First Cross Ewe enterprise (Merino X Border Liecester) mated to a terminal sire. All ewe replacements are purchased, but age of replacements can be varied from 1.5 years to 4.5 years. Following are the various assumptions used in the calculation of the Gross Margin. Cells with yellow highlight can be changed. No allowance has been made for pasture expenses such as seed, fertiliser and chemicals. Refer to pasture gross margins in the “Cropping Gross Margin Plan” for annual and perennial pasture costs. Use the livestock gross margin per DSE as income for the pasture gross margin.
C7: Ewes mated | E7: 1000
C8: Age ewes purchased | E8: 0.5
C9: Age ewes sold | E9: 6.5
C10: Av Weaning % | E10: 1.3
C11: Ram percentage | E11: 0.02
C12: Years Rams Kept | E12: 3
C13: Flock death Rate | E13: 0.03
C14: % Lambs carried over | E14: 0
C17: LIVESTOCK SALES | E17: Price/Hd | F17: Number | G17: Total
C18: c.f.a Ewes | E18: 110 | F18: ='Prime Lambs'!AG220 -> 182.3692879 | G18: =E18*ROUND(F18,0) -> 20020
C19: c.f.a Rams | E19: 20 | F19: ='Prime Lambs'!AG238 -> 6.270727266 | G19: =E19*ROUND(F19,0) -> 120
C20: Lambs | E20: 210 | F20: ='Prime Lambs'!AG227 -> 1300 | G20: =E20*ROUND(F20,0) -> 273000
C25: TOTAL SALES | F25: =SUM(F18:F23) -> 1488.640015 | G25: =SUM(G18:G23) -> 293140
C28: LIVESTOCK PURCHASES | E28: Price/Hd | F28: Number | G28: Total
C29: Ewes | E29: 300 | F29: ='Prime Lambs'!AD220 -> 213.5699335 | G29: =E29*F29 -> 64070.98004
C30: Rams | E30: 1200 | F30: ='Prime Lambs'!AD238 -> 6.870727266 | G30: =E30*F30 -> 8244.87272
C32: TOTAL PURCHASES | F32: =SUM(F29:F30) -> 220.4406607 | G32: =SUM(G29:G30) -> 72315.85276
C35: WOOL PRICE (cents/kg) | F35: =TEXT(m_year-3,"0000")&" Average (Clean)" -> 2022 Average (Clean) | G35: =TEXT(m_year-2,"0000")&" Average (Clean)" -> 2023 Average (Clean) | H35: =TEXT(m_year-1,"0000")&" Average (Clean)" -> 2024 Average (Clean) | I35: Budget Base (Clean) | J35: Budget Base (Greasy)
E36: Wool- High Rainfall 28 mic 70% yield | F36: 484 | G36: 384 | H36: 347 | I36: 370 | J36: =I36*I37 -> 259
E37: Estimated wool yield | I37: 0.7
C38: Allow 90% to account for lower value of bellies, skirtings etc. | J38: =J36*0.9 -> 233.1
C42: WOOL SALES - SHEARING | F42: Wool Cut
E43: Number | F43: kg/hd | G43: Price | H43: Total
C44: Ewes | E44: ='Prime Lambs'!E226 -> 968.8208733 | F44: 3.5 | G44: =J38/100 -> 2.331 | H44: =E44*F44*G44 -> 7904.125094
C45: Crossbred Rams | E45: ='Prime Lambs'!E227 -> 19.4 | F45: 2.5 | G45: 1.5552 | H45: =E45*F45*G45 -> 75.4272
C47: TOTAL | E47: =SUM(E44:E46) -> 988.2208733 | F47: =(E44*F44)+(E45*F45) -> 3439.373056 | H47: =SUM(H44:H46) -> 7979.552294
C50: STOCK HEALTH REQUIREMENTS | E50: =HYPERLINK("http://paraboss.com.au","for more info on drench, lice and blowfly product selection refer to www.paraboss.com.au") -> for more info on drench, lice and blowfly product selection refer to www.paraboss.com.au
G51: Number of times | J51: Dosage in ml
E52: Number | F52: Drench | G52: Vacc. | H52: Blowfly | I52: Drench | J52: Vacc. | K52: Blowfly
C53: Ewes | E53: ='Prime Lambs'!E219 -> 1000 | F53: 3 | G53: 1 | H53: 1 | I53: 13 | J53: 1 | K53: 24
C54: Rams | E54: ='Prime Lambs'!E220 -> 20 | F54: 3 | G54: 1 | H54: 0 | I54: 18 | J54: 1 | K54: 24
C55: Lambs | E55: ='Prime Lambs'!E221 -> 1300 | F55: 2 | G55: 2 | H55: 0 | I55: 8 | J55: 1 | K55: 24
H56: Product Cost per litre | I56: 75 | J56: 235 | K56: 70
C57: TOTAL | E57: =SUM(E53:E55) -> 2320 | F57: =SUMPRODUCT($E$53:$E$55,F53:F55) -> 5660 | G57: =SUMPRODUCT($E$53:$E$55,G53:G55) -> 3620 | H57: =SUMPRODUCT($E$53:$E$55,H53:H55) -> 1000
C60: FEEDING
C61: hay/straw/grain/pellets | F61: Feed 1 | G61: Kgs Fed | H61: No of | I61: Feed 2 | J61: Kgs Fed | K61: No of | L61: Feed 3 | M61: Kgs Fed | N61: No of | O61: Total
E62: Number | F62: Cost ($/T) | G62: per Week | H62: Weeks | I62: Cost ($/T) | J62: per Week | K62: Weeks | L62: Cost ($/T) | M62: per Week | N62: Weeks | O62: Cost
C63: Ewes | F63: 300 | G63: 2 | H63: 12 | I63: 370 | J63: 1 | K63: 12 | L63: 250 | M63: 1 | N63: 12 | O63: =(E63*G63*H63)/1000*F63+(E63*J63*K63)/1000*I63+(E63*M63*N63)/1000*L63 -> 0
O64: 0
C65: Lambs | F65: 300 | G65: 2 | H65: 6 | I65: 370 | J65: 0.5 | K65: 6 | O65: 0
C66: Rams | E66: 20 | I66: 370 | J66: 2 | K66: 10 | O66: 148
O67: 0
C74: Supplements | G74: Kgs Fed | H74: No weeks | I74: Total
E75: Number | F75: Cost ($/kg) | G75: per week | H75: of Feeding | I75: Cost ($)
C76: Ewes | I76: =(H76*G76*E76)*F76 -> 0
C77: Rams | I77: =(H77*G77*E77)*F77 -> 0
C78: Lambs | I78: =(H78*G78*E78)*F78 -> 0
H80: Total Feed Cost | I80: =SUM(O63:O67,I76:I78) -> 148

Sheet Prime Lambs (hidden)
C1: Prime Lambs (1st cross ewes)
C2: =UPPER(Var_Animal)&" GROSS MARGIN - "&TEXT(m_year,"0000") -> PRIME LAMBS (1ST CROSS EWES) GROSS MARGIN - 2025
C4: ASSUMPTIONS
C6: Ave Breeding Ewe Fibre Diameter | E6: 28 | O6: Total DSE's | Q6: =E197 -> 1840
C7: No. of breeding ewes (1st Cross) | E7: ='Prime Lambs Input'!$E$7 -> 1000
C8: 1st cross ewe - Terminal meat sire
C32: INCOME | Q32: $
C34: Wool (kg greasy) | E34: =G234 -> 3439.373056 | G34: kg | I34: av price | K34: =K234*100/G234*0.9 -> 208.8054115 | M34: c/kg | Q34: =K234 -> 7979.552294
C35: Sales | E35: =E212 -> 1488.640015 | G35: animals | I35: av price | K35: =G212 -> 196.9179903 | M35: /head | Q35: =E212*G212 -> 293140
C37: Gross Income | Q37: =SUM(Q34:Q35) -> 301119.5523
AA45: STOCK VALUE AND D.S.E REQUIREMENT | AG45: Non lamb related expenses | AM45: Lamb Costs | AN45: No: | AO45: per head | AS45: SHEEP GROSS MARGIN
C46: VARIABLE COSTS | AC46: Value | AD46: Ave Live | AE46: DSE | AS46: PRIME LAMB -
C47: Shearing | K47: Rate | AB47: Number | AC47: $/head | AD47: Wt (Kgs) | AE47: rating | AG47: Shearing | AJ47: =SUM(Q48:Q58) -> 10638.24744 | AM47: Marking | AN47: =$E$121 -> 1300 | AO47: =K76+K77 -> 3.82 | AP47: =AN47*AO47 -> 4966
C48: Shearing | E48: =E226 -> 968.8208733 | G48: sheep | I48: Reset Rate> | J48: =GM_INFO!C79 | K48: =GM_INFO!C79 -> 381.58 | M48: /100 | Q48: =K48/100*ROUND(E48,0) -> 3697.5102 | X48: Most Shearing contractors charge | AA48: ewes | AB48: ='Prime Lambs Input'!$E$7 -> 1000 | AC48: =(G209+G214)/2 -> 205 | AD48: 60 | AE48: =IF(AND(AD48>=55,AD48<60),1.7,IF(AND(AD48>=60,AD48<65),1.8,IF(AND(AD48>=65,AD48<70),1.9,IF(AND(AD48>=70,AD48<75),2,IF(AND(AD48>=75,AD48<80),2.1,IF(AND(AD48>=80,AD48<85),2.2,IF(AND(AD48>=85,AD48<90),2.3,IF(AD48>=90,2.4,0)))))))) -> 1.8 | AG48: Animal health | AJ48: =(E219*G219+E220*G220)*K90+(E219*I219+E220*I220)*K91+(E219*K219)*K92 -> 6067350.08 | AM48: Animal health | AN48: =$E$121 -> 1300 | AO48: =G220*K91+I220*K90 -> 91.31069422 | AP48: =AN48*AO48 -> 118703.9025
C49: (Federal awards) | E49: =E227 -> 19.4 | G49: rams | I49: Reset Rate> | J49: =GM_INFO!C80 | K49: =GM_INFO!C80 -> 763.16 | M49: /100 | Q49: =K49/100*ROUND(E49,0) -> 145.0004 | X49: 15% or more above the Federal Award rate. | AA49: rams | AB49: ='Prime Lambs Input'!E11*'Prime Lambs'!AB48 -> 20 | AC49: =(G210+G215)/2 -> 610 | AD49: 100 | AE49: 2 | AG49: Stock Purchase | AJ49: =SUM(Q105:Q105) -> 72315.85276 | AM49: Freight | AN49: =$E$121 -> 1300 | AO49: =K121 -> 7 | AP49: =AN49*AO49 -> 9100
C50: Shed labour | E50: 5 | G50: days | I50: Reset Rate> | J50: =GM_INFO!C81 | K50: =GM_INFO!C81 -> 289.4 | M50: /day | Q50: =K50*ROUND(E50,0) -> 1447 | AA50: lambs | AB50: =AC227 -> 1300 | AC50: =G211/2 -> 105 | AD50: 35 | AE50: 0 | AG50: Freight | AH50: sheep | AJ50: =SUM(Q119:Q120) -> 2817.989534 | AM50: Yard Fees | AN50: =$E$121 -> 1300 | AO50: =K125 -> 1 | AP50: =AN50*AO50 -> 1300
C51: Woolclasser | E51: 2.5 | G51: days | I51: Reset Rate> | J51: =GM_INFO!C82 | K51: =GM_INFO!C82 -> 350.85 | M51: /day | Q51: =K51*E51 -> 877.125 | AA51: TOTAL | AB51: =SUM(AB48:AB50) -> 2320 | AC51: =AB48*AC48+AB49*AC49+AB50*AC50/2 -> 285450 | AH51: Wool | AJ51: =Q122 -> 300 | AM51: Levies | AN51: =$E$121 -> 1300 | AO51: =K127+K128 -> 2.67 | AP51: =AN51*AO51 -> 3471 | AS51: Ewes mated | AU51: ='Prime Lambs Input'!$E$7 -> 1000 | AX51: Ram % | AY51: =E200 -> 0.02
C52: Superannuation (on ord wages only) | I52: Reset Rate> | J52: =GM_INFO!C83 | K52: =GM_INFO!C83 -> 0.115 | M52: wages | Q52: =(Q48+Q49+Q50+Q51)*K52 -> 709.163094 | AG52: Commission on livestock sales | AJ52: =(K209+K210)*K124 -> 1107.7 | AO52: =SUM(AO47:AO51) -> 105.8006942 | AQ52: =AO52*AD50 -> 3703.024298 | AS52: Age ewes purchased | AU52: =E201 -> 0.5 | AX52: Price of rams | AY52: =AL68 -> 0
C53: W/Cover (incl. super + otime etc) | I53: Reset Rate> | J53: =GM_INFO!C84 | K53: =GM_INFO!C84 -> 0.04 | M53: total | Q53: =(Q48+Q49+Q50+Q51+Q52)*K53 -> 275.0319478 | AG53: Yard fees | AJ53: =E119*K125 -> 188.6400152 | AM53: Commission | AN53: =$E$121 -> 1300 | AO53: =G212 -> 196.9179903 | AP53: =K124 -> 0.055 | AQ53: =AD50*AO53*AP53 -> 379.0671312 | AS53: Age ewes sold | AU53: =E202 -> 6.5 | AX53: Years rams kept | AY53: =E203 -> 3
C54: Wool packs | E54: 20 | G54: packs | I54: Reset Rate> | J54: =GM_INFO!C77 | K54: =GM_INFO!C77 -> 15 | M54: /pack | Q54: =K54*ROUND(E54,0) -> 300 | AG54: Levies | AJ54: =E126*(K126+K128) -> 164.1168132 | AS54: Av Weaning % | AU54: ='Prime Lambs Input'!E10 -> 1.3 | AX54: Age wethers sold | AY54: 0.5
C55: Shed sundries | E55: =E48+E49 -> 988.2208733 | G55: sheep | I55: Reset Rate> | J55: =GM_INFO!C85 | K55: =GM_INFO!C85 -> 0.22 | M55: /head | Q55: =K55*ROUND(E55,0) -> 217.36 | AG55: Wool Selling Charges | AJ55: =Q130+Q131 -> 1048.32401 | AQ55: =SUM(AQ43:AQ53) -> 4082.091429 | AS55: dse/ewe | AU55: =AE48 -> 1.8 | AX55: Flock death rate | AY55: =E204 -> 0.03
C56: Lice control | E56: =E48+E49 -> 988.2208733 | G56: sheep | I56: Reset Rate> | J56: =GM_INFO!C66 | K56: =GM_INFO!C66 -> 1.64 | M56: /head | Q56: =K56*ROUND(E56,0) -> 1620.32 | AG56: Feed & other costs | AJ56: =SUM(Q144:Q149) -> 10304.525
C57: Crutch & Wig | E57: 990 | G57: ewes | I57: Reset Rate> | J57: =GM_INFO!C87 | K57: =GM_INFO!C87 -> 131.65 | M57: /100 | Q57: =K57/100*ROUND(E57,0) -> 1303.335 | AK57: =SUM(AJ47:AJ56) -> 6166235.476
E58: =E49 -> 19.4 | G58: rams | I58: Reset Rate> | J58: =GM_INFO!C88 | K58: =GM_INFO!C88 -> 244.22 | M58: /100 | Q58: =K58/100*ROUND(E58,0) -> 46.4018
AS60: EWES | AT60: OPENING | AU60: NATURAL | AV60: PURCHASES | AW60: DEATHS | AX60: % sold | AY60: SALES | AZ60: CLOSING
AS61: AGE | AT61: NUMBERS | AU61: INCREASE | AX61: culled | AZ61: NUMBERS
AS63: 0.5-1.5yr | AV63: =IF($N$78=1.5,AT64,AT63-AW63) -> 0 | AY63: =AT63-AW63 -> 0 | AZ63: =AT63+AU63+AV63-AW63-AY63 -> 0
AS64: 1.5-2.5yr | AT64: =IF(AU52=1.5,AU51/(1+(1-AY55)*(1-AX64)*(1+(1-AY55)*(1-AX65)*(1+(1-AY55)*(1-AX66)*(1+(1-AY55)*(1-AX67))))),0) -> 0 | AV64: =IF(AU52=2.5,AT65-AY64,0) -> 0 | AW64: =AT64*$R$81 -> 0 | AY64: =(AT64-AW64)*AX64 -> 0 | AZ64: 0
AS65: 2.5-3.5yr | AT65: =IF(AU52=2.5,AU51/(1+(1-AY55)*(1-AX65)*(1+(1-AY55)*(1-AX66)*(1+(1-AY55)*(1-AX67)))),AZ64) -> 0 | AV65: =IF(AU52=3.5,AT66-AY65,0) -> 0 | AW65: =AT65*$R$81 -> 0 | AY65: =(AT65-AW65)*AX65 -> 0 | AZ65: 0
AS66: 3.5-4.5yr | AT66: =IF(AU52=3.5,AU51/(1+(1-AY55)*(1-AX66)*(1+(1-AY55)*(1-AX67))),AZ65) -> 0 | AV66: =IF(AU52=4.5,AT67-AY66,0) -> 0 | AW66: =AT66*$R$81 -> 0 | AY66: =(AT66-AW66)*AX66 -> 0 | AZ66: 0
AS67: 4.5-5.5yr | AT67: =IF(AU52=4.5,AU51/(1+(1-AY55)*(1-AX67)),AZ66) -> 0 | AW67: =AT67*$R$81 -> 0 | AX67: =IF(AU53=5.5,1,0) -> 0 | AY67: =(AT67-AW67)*AX67 -> 0 | AZ67: 0
AS68: 5.5-6.5yr | AT68: =AZ67 -> 0 | AW68: =AT68*$R$81 -> 0 | AX68: =IF(AU53=6.5,1,0) -> 1 | AY68: =(AT68-AW68)*AX68 -> 0 | AZ68: 0
AS69: Ewes | AT69: =SUM(AT64:AT68) -> 0 | AV69: =AV63+AV64+AV65+AV66 -> 0 | AW69: =SUM(AW63:AW68) -> 0 | AY69: =SUM(AY64:AY68) -> 0 | AZ69: =SUM(AZ63:AZ67) -> 0
AS70: d.s.e's | AT70: =AT63+AT69*AU55 -> 0
AS73: LAMBS | AT73: OPENING | AU73: NATURAL | AV73: PURCHASES | AW73: DEATHS | AX73: % sold | AY73: SALES | AZ73: CLOSING
AS74: AGE | AT74: NUMBERS | AU74: INCREASE | AX74: culled | AZ74: NUMBERS
C75: Marking
C76: Lamb marking | E76: =AC227 -> 1300 | G76: lambs | I76: Reset Rate> | J76: =GM_INFO!C91 | K76: =GM_INFO!C91 -> 1.5 | M76: /head | Q76: =K76*ROUND(E76,0) -> 1950 | AS76: 0-0.5yr | AU76: =AU51*AU54 -> 1300 | AX76: 1 | AY76: =AU76*AX76 -> 1300 | AZ76: =AT76+AU76+AV76-AW76-AY76 -> 0
C77: Ear tags | E77: =AC227 -> 1300 | G77: lambs | I77: Reset Rate> | J77: =GM_INFO!C92 | K77: =GM_INFO!C92 -> 2.32 | M77: /head | Q77: =K77*ROUND(E77,0) -> 3016
C78: Pain Relief | E78: =AC227 -> 1300 | G78: lambs | I78: Reset Rate> | J78: =GM_INFO!C93 | K78: =GM_INFO!C93 -> 2 | M78: /head | Q78: =K78*ROUND(E78,0) -> 2600
AS79: RAMS | AT79: OPENING | AU79: NATURAL | AV79: PURCHASES | AW79: DEATHS | AX79: % sold | AY79: SALES | AZ79: CLOSING
AS80: AGE | AT80: NUMBERS | AU80: INCREASE | AX80: culled | AZ80: NUMBERS
AS82: 0.5-1.5yr | AV82: =AT83/(1-AX82) -> 6.870727266 | AW82: =AT82*$R$81 -> 0 | AZ82: =AT82+AU82+AV82-AW82-AY82 -> 6.870727266
AS83: 1.5-2.5yr | AT83: =IF(AY53=3,(AU51*AY51)/(1+(1-AY55)*(1-AX83)*(1+(1-AY55)*(1-AX84)*(1+(1-AY55)*(1-AX85)))),IF(AY53=4,(AU51*AY51)/(1+(1-AY55)*(1-AX83)*(1+(1-AY55)*(1-AX84)*(1+(1-AY55)*(1-AX85)*(1+(1-AY55)*(1-AX86))))),0)) -> 6.870727266 | AW83: =AT83*$R$81 -> 0 | AZ83: =AT83+AU83+AV83-AW83-AY83 -> 6.870727266
AS84: 2.5-3.5yr | AT84: =AZ83 -> 6.870727266 | AW84: =AT84*$R$81 -> 0 | AZ84: =AT84+AU84+AV84-AW84-AY84 -> 6.870727266
AS85: 3.5-4.5yr | AT85: =AZ84 -> 6.870727266 | AW85: =AT85*$R$81 -> 0 | AX85: =IF(AY53=3,100%,0) -> 1 | AY85: =(AT85-AW85)*AX85 -> 6.870727266 | AZ85: =AT85+AU85+AV85-AW85-AY85 -> 0
AS86: 4.5-5.5yr | AT86: =AZ85 -> 0 | AW86: =AT86*$R$81 -> 0 | AX86: =IF(AY53=4,100%,0) -> 0 | AY86: =AT86-AW86 -> 0 | AZ86: =AT86+AU86+AV86-AW86-AY86 -> 0
AT87: =AT82+AT83+AT84+AT85+AT86 -> 20.6121818 | AV87: =AV82+AV83+AV84+AV85+AV86 -> 6.870727266 | AW87: =AW82+AW83+AW84+AW85+AW86 -> 0 | AY87: =AY82+AY83+AY84+AY85+AY86 -> 6.870727266 | AZ87: =AZ82+AZ83+AZ84+AZ85+AZ86 -> 20.6121818
AS88: d.s.e's | AT88: =AT87*AE49 -> 41.2243636
C89: Animal Health
C90: Drench | E90: ='Prime Lambs Input'!F57 -> 5660 | G90: sheep | J90: =GM_INFO!C68 | K90: =Q90/E90 -> 0.8067137809 | M90: /head | Q90: =ROUND(G222,0) -> 4566
C91: Vaccinate | E91: ='Prime Lambs Input'!G57 -> 3620 | G91: sheep | J91: =GM_INFO!C74 | K91: 0.9400552486 | M91: /head | Q91: =ROUND(I222,0) -> 3403
C92: Blowfly control | E92: ='Prime Lambs Input'!H57 -> 1000 | G92: sheep | J92: =GM_INFO!C76 | K92: 1.68 | M92: /head | Q92: =ROUND(K222,0) -> 1680
C104: Stock purchases
C105: Purchases | Q105: =K214+K215 -> 72315.85276
C117: Sale Costs
C118: Freight
C119: Livestock | E119: =SUM(E209:E210) -> 188.6400152 | G119: culls | I119: Reset Rate> | J119: =GM_INFO!B161 | K119: =GM_INFO!B161 -> 7 | M119: /head | Q119: =K119*ROUND(E119,0) -> 1323
E120: =E214 -> 213.5699335 | G120: ewes | I120: Reset Rate> | J120: =GM_INFO!B162 | K120: =GM_INFO!B162 -> 7 | M120: /head | Q120: =K120*E120 -> 1494.989534
E121: =E211 -> 1300 | G121: prime lambs | I121: Reset Rate> | J121: =GM_INFO!B163 | K121: =GM_INFO!B163 -> 7 | M121: /head | Q121: =K121*ROUND(E121,0) -> 9100
C122: Wool | E122: =G234/170 -> 20.23160621 | G122: bales | I122: Reset Rate> | J122: =GM_INFO!B164 | K122: =GM_INFO!B164 -> 15 | M122: /bale | Q122: =K122*ROUND(E122,0) -> 300
C123: Stock selling charges
C124: Commission/insurance | I124: Reset Rate> | J124: =GM_INFO!C98 | K124: =GM_INFO!C98 -> 0.055 | M124: gross $ | Q124: =K124*Q35 -> 16122.7
C125: Yard fees | E125: =E212 -> 1488.640015 | G125: sheep | I125: Reset Rate> | J125: =GM_INFO!C99 | K125: =GM_INFO!C99 -> 1 | M125: /head | Q125: =K125*ROUND(E125,0) -> 1489
C126: Levy-sheep | E126: =E119 -> 188.6400152 | G126: sheep | I126: Reset Rate> | J126: =GM_INFO!C100 | K126: =GM_INFO!C100 -> 0.2 | M126: /head | Q126: =K126*ROUND(E126,0) -> 37.8
C127: Levy-lambs | E127: =E211 -> 1300 | G127: sheep | I127: Reset Rate> | J127: =GM_INFO!C101 | K127: =GM_INFO!C101 -> 2 | M127: /head | Q127: =K127*ROUND(E127,0) -> 2600
C128: SA sheep industry levy | E128: =E212 -> 1488.640015 | G128: sheep | I128: Reset Rate> | J128: =GM_INFO!C102 | K128: =GM_INFO!C102 -> 0.67 | M128: /head | Q128: =K128*E128 -> 997.3888102
C129: Wool selling charges
C130: Brokerage/testing/insurance | I130: Reset Rate> | J130: =GM_INFO!C103 | K130: =GM_INFO!C103 -> 0.27 | M130: /kg | Q130: =K130*E34 -> 928.6307252
C131: Wool levy | I131: Reset Rate> | J131: =GM_INFO!C104 | K131: =GM_INFO!C104 -> 0.015 | M131: gross | Q131: =K131*Q34 -> 119.6932844
C143: Feed and Other Costs
C144: Hay | Q144: =SUM('Prime Lambs Input'!I63:I65) -> 740
C145: Grain | Q145: =SUM('Prime Lambs Input'!I70:I72,'Prime Lambs Input'!I76:I78) -> 0
C146: Insurance | E146: =AC51 -> 285450 | G146: value | I146: Reset Rate> | J146: =GM_INFO!B157 | K146: =GM_INFO!B157 -> 4.5 | M146: /$'000 | Q146: =K146/1000*E146 -> 1284.525
C147: Water | E147: =$Q$6 -> 1840 | G147: DSE's | I147: Reset Rate> | J147: =GM_INFO!D130 | K147: =GM_INFO!D130 -> 2.5 | M147: /DSE's | Q147: =K147*E147 -> 4600
C148: Veh Fuel, R&M | E148: =$Q$6 -> 1840 | G148: DSE's | I148: Reset Rate> | J148: =GM_INFO!D131 | K148: =GM_INFO!D131 -> 1.5 | M148: /DSE's | Q148: =K148*E148 -> 2760
C149: Other | E149: =$Q$6 -> 1840 | G149: DSE's | I149: Reset Rate> | J149: =GM_INFO!D132 | K149: =GM_INFO!D132 -> 0.5 | M149: /DSE's | Q149: =K149*E149 -> 920
C170: TOTAL VARIABLE COSTS | Q170: =SUM(Q48:Q166) -> 144986.8276
C172: GROSS MARGIN TOTAL | Q172: =Q37-Q170 -> 156132.7247
C174: GROSS MARGIN/DSE | Q174: =Q172/Q6 -> 84.8547417
C194: PRODUCTION DATA
C196: Stocking rate (DSE/Ha) | E196: 6 | K196: Culling Rate (% from each group) | AA196: SHEEP GROSS MARGIN
C197: Total DSE's | E197: =SUMPRODUCT(AB48:AB50,AE48:AE50) -> 1840 | K197: Age Group | M197: Ewes | O197: Wethers | AA197: PRIME LAMB -
C198: SHEEP GRAZING AREA | E198: =E197/E196 -> 306.6666667 | K198: 0.5 | M198: =AF214 -> 0
C199: Number of ewes mated | E199: ='Prime Lambs Input'!E7 -> 1000 | K199: 1.5 | M199: 0
C200: Ram percentage | E200: ='Prime Lambs Input'!E11 -> 0.02 | K200: 2.5 | M200: 0
C201: Age ewes bought (yrs) | E201: ='Prime Lambs Input'!E8 -> 0.5 | K201: 3.5 | M201: 0
C202: Age ewes culled | E202: ='Prime Lambs Input'!E9 -> 6.5 | K202: 4.5 | M202: 0 | AA202: Ewes mated | AC202: ='Prime Lambs Input'!E7 -> 1000 | AF202: Ram % | AG202: =E200 -> 0.02
B203: =VLOOKUP(r[0]c3&"No Ops",CHOOSE({1,2},tbl_ops[Name]&tbl_ops[Category],INDIRECT("tbl_ops["&var_crop&"]")),2,0) | C203: Years rams kept | E203: ='Prime Lambs Input'!E12 -> 3 | K203: 5.5 | M203: 1 | AA203: Age ewes purchased | AC203: =E201 -> 0.5 | AF203: Price of rams | AG203: =G215 -> 1200
B204: =VLOOKUP(r[0]c3&"No Ops",CHOOSE({1,2},tbl_ops[Name]&tbl_ops[Category],INDIRECT("tbl_ops["&var_crop&"]")),2,0) | C204: Flock death rate | E204: ='Prime Lambs Input'!E13 -> 0.03 | K204: 6.5 | M204: 0 | AA204: Age ewes sold | AC204: =E202 -> 6.5 | AF204: Years rams kept | AG204: =E203 -> 3
B205: =VLOOKUP(r[0]c3&"No Ops",CHOOSE({1,2},tbl_ops[Name]&tbl_ops[Category],INDIRECT("tbl_ops["&var_crop&"]")),2,0) | C205: Average weaning rate | E205: =AC205 -> 1.3 | AA205: Av Weaning % | AC205: ='Prime Lambs Input'!E10 -> 1.3 | AF205: Age wethers sold | AG205: 0.5
B206: =VLOOKUP(r[0]c3&"No Ops",CHOOSE({1,2},tbl_ops[Name]&tbl_ops[Category],INDIRECT("tbl_ops["&var_crop&"]")),2,0) | C206: % Lambs carried over | E206: 0 | AA206: dse/ewe | AC206: =AE48 -> 1.8 | AF206: Flock death rate | AG206: =E204 -> 0.03
B207: =VLOOKUP(r[0]c3&var_rain,CHOOSE({1,2},tbl_ops[Name]&tbl_ops[Rainfall],INDIRECT("tbl_ops["&var_crop&"]")),2,0)
B208: =VLOOKUP(r[0]c3&var_rain,CHOOSE({1,2},tbl_ops[Name]&tbl_ops[Rainfall],INDIRECT("tbl_ops["&var_crop&"]")),2,0) | C208: SALES | E208: Number | G208: Price/hd | I208: Age | K208: Total
B209: =VLOOKUP(r[0]c3&var_rain,CHOOSE({1,2},tbl_ops[Name]&tbl_ops[Rainfall],INDIRECT("tbl_ops["&var_crop&"]")),2,0) | C209: c.f.a ewes | E209: =AG220 -> 182.3692879 | G209: ='Prime Lambs Input'!E18 -> 110 | I209: =E202 -> 6.5 | K209: =ROUND(E209,0)*G209 -> 20020
B210: =VLOOKUP(r[0]c3&var_rain,CHOOSE({1,2},tbl_ops[Name]&tbl_ops[Rainfall],INDIRECT("tbl_ops["&var_crop&"]")),2,0) | C210: c.f.a rams | E210: =AG238 -> 6.270727266 | G210: ='Prime Lambs Input'!E19 -> 20 | I210: =E203+1.5 -> 4.5 | K210: =ROUND(E210,0)*G210 -> 120
C211: Lambs | E211: ='Prime Lambs Input'!F20 -> 1300 | G211: ='Prime Lambs Input'!E20 -> 210 | I211: 20 Weeks | K211: =ROUND(E211,0)*G211 -> 273000 | AA211: EWES | AB211: OPENING | AC211: NATURAL | AD211: PURCHASES | AE211: DEATHS | AF211: % sold | AG211: SALES | AH211: CLOSING
C212: TOTAL | E212: =SUM(E209:E211) -> 1488.640015 | G212: =K212/E212 -> 196.9179903 | K212: =SUM(K209:K211) -> 293140 | AA212: AGE | AB212: NUMBERS | AC212: INCREASE | AF212: culled | AH212: NUMBERS
C213: PURCHASES | E213: Number | G213: Price/hd | I213: Age | K213: Total | AD213: =IF($AC$203=0.5,AB214,AB213-AE213) -> 213.5699335
C214: Ewes | E214: =AD220 -> 213.5699335 | G214: ='Prime Lambs Input'!E29 -> 300 | I214: =E201 -> 0.5 | K214: =E214*G214 -> 64070.98004 | AA214: 0.5-1.5yr | AB214: =IF(AC203=0.5,AC202/(1+(1-AG206)*(1-AF214)*(1+(1-AG206)*(1-AF215)*(1+(1-AG206)*(1-AF216)*(1+(1-AG206)*(1-AF217)*(1+(-AG206)*(1-AF218)))))),0) -> 213.5699335 | AD214: =IF($AC$203=1.5,AB214-AE214,0) -> 0 | AE214: 1.2 | AG214: =(AB214-AE214)*AF214 -> 0 | AH214: =AB214+AC214+AD214-AE214-AG214 -> 212.3699335
C215: Rams | E215: =AD238 -> 6.870727266 | G215: ='Prime Lambs Input'!E30 -> 1200 | I215: 1.5 | K215: =E215*G215 -> 8244.87272 | AA215: 1.5-2.5yr | AB215: =IF(AC203=1.5,AC202/(1+(1-AG206)*(1-AF215)*(1+(1-AG206)*(1-AF216)*(1+(1-AG206)*(1-AF217)*(1+(1-AG206)*(1-AF218))))),AH214) -> 212.3699335 | AD215: =IF(AC203=2.5,AB216-AG215,0) -> 0 | AE215: =AB215*AG206 -> 6.371098004 | AG215: 0 | AH215: 205.9988355
AA216: 2.5-3.5yr | AB216: =IF(AC203=2.5,AC202/(1+(1-AG206)*(1-AF216)*(1+(1-AG206)*(1-AF217)*(1+(1-AG206)*(1-AF218)))),AH215) -> 205.9988355 | AD216: =IF(AC203=3.5,AB217-AG216,0) -> 0 | AE216: =AB216*AG206 -> 6.179965064 | AG216: 0 | AH216: 199.8188704
G217: Calculated Cost | AA217: 3.5-4.5yr | AB217: =IF(AC203=3.5,AC202/(1+(1-AG206)*(1-AF217)*(1+(1-AG206)*(1-AF218))),AH216) -> 199.8188704 | AD217: =IF(AC203=4.5,AB218-AG217,0) -> 0 | AE217: =AB217*AG206 -> 5.994566112 | AG217: 0 | AH217: 193.8243043
C218: STOCK HEALTH REQUIREMENTS | E218: Number | G218: Drench | I218: Vacc. | K218: Blowfly | M218: DSE | X218: Rotation between different drench groups generally does little to slow development of drench | AA218: 4.5-5.5yr | AB218: =IF(AC203=4.5,AC202/(1+(1-AG206)*(1-AF218)),AH217) -> 193.8243043 | AE218: =AB218*AG206 -> 5.814729129 | AF218: =IF(AC204=5.5,1,0) -> 0 | AG218: 0 | AH218: 188.0095752
C219: Ewes | E219: ='Prime Lambs Input'!E7 -> 1000 | G219: ='Prime Lambs Input'!$E53*'Prime Lambs Input'!F53*('Prime Lambs Input'!I53/1000)*'Prime Lambs Input'!I$56 -> 2925 | I219: ='Prime Lambs Input'!$E53*'Prime Lambs Input'!G53*('Prime Lambs Input'!J53/1000)*'Prime Lambs Input'!J$56*4 -> 940 | J219: ='Prime Lambs Input'!$E53*'Prime Lambs Input'!I53*('Prime Lambs Input'!L53/1000)*'Prime Lambs Input'!L$56 -> 0 | K219: ='Prime Lambs Input'!$E53*'Prime Lambs Input'!H53*('Prime Lambs Input'!K53/1000)*'Prime Lambs Input'!K$56 -> 1680 | L219: ='Prime Lambs Input'!$E53*'Prime Lambs Input'!K53*('Prime Lambs Input'!N53/1000)*'Prime Lambs Input'!N$56 -> 0 | M219: 1.8 | X219: resistance and should not be used at the expense of these three highly effective practices: | AA219: 5.5-6.5yr | AB219: =AH218 -> 188.0095752 | AE219: =AB219*AG206 -> 5.640287255 | AF219: =IF(AC204=6.5,1,0) -> 1 | AG219: 182.3692879 | AH219: 0
C220: Rams | E220: =AB49 -> 20 | G220: ='Prime Lambs Input'!$E54*'Prime Lambs Input'!F54*('Prime Lambs Input'!I54/1000)*'Prime Lambs Input'!I$56 -> 81 | I220: ='Prime Lambs Input'!$E54*'Prime Lambs Input'!G54*('Prime Lambs Input'!J54/1000)*'Prime Lambs Input'!J$56*4 -> 18.8 | J220: ='Prime Lambs Input'!$E54*'Prime Lambs Input'!I54*('Prime Lambs Input'!L54/1000)*'Prime Lambs Input'!L$56 -> 0 | K220: ='Prime Lambs Input'!$E54*'Prime Lambs Input'!H54*('Prime Lambs Input'!K54/1000)*'Prime Lambs Input'!K$56 -> 0 | L220: ='Prime Lambs Input'!$E54*'Prime Lambs Input'!K54*('Prime Lambs Input'!N54/1000)*'Prime Lambs Input'!N$56 -> 0 | M220: 2 | X220: • use products most effective on your property | AA220: Ewes | AB220: =SUM(AB215:AB219) -> 1000.021519 | AD220: =AD214+AD215+AD216+AD217+AD213 -> 213.5699335 | AE220: =SUM(AE214:AE219) -> 31.20064556 | AG220: =SUM(AG215:AG219) -> 182.3692879 | AH220: =SUM(AH214:AH218) -> 1000.021519
C221: Lambs | E221: =AC227 -> 1300 | G221: ='Prime Lambs Input'!$E55*'Prime Lambs Input'!F55*('Prime Lambs Input'!I55/1000)*'Prime Lambs Input'!I$56 -> 1560 | I221: ='Prime Lambs Input'!$E55*'Prime Lambs Input'!G55*('Prime Lambs Input'!J55/1000)*'Prime Lambs Input'!J$56*4 -> 2444 | J221: ='Prime Lambs Input'!$E55*'Prime Lambs Input'!I55*('Prime Lambs Input'!L55/1000)*'Prime Lambs Input'!L$56 -> 0 | K221: ='Prime Lambs Input'!$E55*'Prime Lambs Input'!H55*('Prime Lambs Input'!K55/1000)*'Prime Lambs Input'!K$56 -> 0 | L221: ='Prime Lambs Input'!$E55*'Prime Lambs Input'!K55*('Prime Lambs Input'!N55/1000)*'Prime Lambs Input'!N$56 -> 0 | X221: • use multi-active (combination) products | AA221: d.s.e's | AB221: =AB214+AB220*AC206 -> 2013.608667
C222: TOTAL | E222: =SUM(E219:E221) -> 2320 | G222: =SUM(G219:G221) -> 4566 | I222: =SUM(I219:I221) -> 3402.8 | K222: =SUM(K219:K221) -> 1680 | M222: =SUMPRODUCT($E$219:$E$221,M219:M221) -> 1840 | X222: • use short-acting products
BG223: For more information: https://wormboss.com.au/tests-tools/drench-rotation-versus-combinations-to-combat-drench-resistance/
G224: Wool Cut kg/hd | AA224: LAMBS | AB224: OPENING | AC224: NATURAL | AD224: PURCHASES | AE224: DEATHS | AF224: % sold | AG224: SALES | AH224: CLOSING
C225: SHEARING | E225: Number | I225: Price | K225: Total | AA225: AGE | AB225: NUMBERS | AC225: INCREASE | AF225: culled | AH225: NUMBERS
C226: Ewes | E226: =AB220-AE220 -> 968.8208733 | G226: ='Prime Lambs Input'!F44 -> 3.5 | I226: ='Prime Lambs Input'!G44 -> 2.331 | K226: =I226*G226*E226 -> 7904.125094
C227: Crossbred rams | E227: =AB238-AE238 -> 19.4 | G227: ='Prime Lambs Input'!F45 -> 2.5 | I227: ='Prime Lambs Input'!G45 -> 1.5552 | K227: =I227*G227*E227 -> 75.4272 | AA227: 0-0.5yr | AC227: =AC202*AC205 -> 1300 | AF227: 1 | AG227: =AC227*AF227 -> 1300 | AH227: =AB227+AC227+AD227-AE227-AG227 -> 0
AA230: RAMS | AB230: OPENING | AC230: NATURAL | AD230: PURCHASES | AE230: DEATHS | AF230: % sold | AG230: SALES | AH230: CLOSING
AA231: AGE | AB231: NUMBERS | AC231: INCREASE | AF231: culled | AH231: NUMBERS
AA233: 0.5-1.5yr | AD233: =AB234/(1-AF233) -> 6.870727266 | AE233: =AB233*$AG$206 -> 0 | AH233: =AB233+AC233+AD233-AE233-AG233 -> 6.870727266
C234: TOTAL | E234: =SUM(E226:E233) -> 988.2208733 | G234: =SUMPRODUCT(E226:E233,G226:G233) -> 3439.373056 | K234: =SUM(K226:K233) -> 7979.552294 | AA234: 1.5-2.5yr | AB234: =IF(AG204=3,(AC202*AG202)/(1+(1-AG206)*(1-AF234)*(1+(1-AG206)*(1-AF235)*(1+(1-AG206)*(1-AF236)))),IF(AG204=4,(AC202*AG202)/(1+(1-AG206)*(1-AF234)*(1+(1-AG206)*(1-AF235)*(1+(1-AG206)*(1-AF236)*(1+(1-AG206)*(1-AF237))))),0)) -> 6.870727266 | AE234: =AB234*$AG$206 -> 0.206121818 | AH234: =AB234+AC234+AD234-AE234-AG234 -> 6.664605448
AA235: 2.5-3.5yr | AB235: =AH234 -> 6.664605448 | AE235: =AB235*$AG$206 -> 0.1999381635 | AH235: =AB235+AC235+AD235-AE235-AG235 -> 6.464667285
AA236: 3.5-4.5yr | AB236: =AH235 -> 6.464667285 | AE236: =AB236*$AG$206 -> 0.1939400186 | AF236: =IF(AG204=3,100%,0) -> 1 | AG236: =(AB236-AE236)*AF236 -> 6.270727266 | AH236: =AB236+AC236+AD236-AE236-AG236 -> 0
G237: Feed Cost ($/T) | I237: Kg Fed per Week | K237: No of Weeks Feeding | M237: Total Cost ($) | AA237: 4.5-5.5yr | AB237: =AH236 -> 0 | AE237: =AB237*$AG$206 -> 0 | AF237: =IF(AG204=4,100%,0) -> 0 | AG237: =AB237-AE237 -> 0 | AH237: =AB237+AC237+AD237-AE237-AG237 -> 0
C238: FEEDING | E238: Number | AB238: =AB233+AB234+AB235+AB236+AB237 -> 20 | AD238: =AD233+AD234+AD235+AD236+AD237 -> 6.870727266 | AE238: =AE233+AE234+AE235+AE236+AE237 -> 0.6 | AG238: =AG233+AG234+AG235+AG236+AG237 -> 6.270727266 | AH238: =AH233+AH234+AH235+AH236+AH237 -> 20
C239: Ewes | E239: ='Prime Lambs Input'!E63 -> 0 | G239: =IFERROR(M239/(E239*I239/1000*K239),0) -> 0 | I239: =IFERROR(('Prime Lambs Input'!G63*'Prime Lambs Input'!H63+'Prime Lambs Input'!J63*'Prime Lambs Input'!K63+'Prime Lambs Input'!M63*'Prime Lambs Input'!N63)/SUM('Prime Lambs Input'!H63,'Prime Lambs Input'!K63,'Prime Lambs Input'!N63),0) -> 1.333333333 | K239: ='Prime Lambs Input'!H63+'Prime Lambs Input'!K63+'Prime Lambs Input'!N63 -> 36 | M239: ='Prime Lambs Input'!O63 -> 0 | AA239: d.s.e's | AB239: =AB238*AE49 -> 40
E240: ='Prime Lambs Input'!E64 -> 0 | G240: =IFERROR(M240/(E240*I240/1000*K240),0) -> 0 | I240: =IFERROR(('Prime Lambs Input'!G64*'Prime Lambs Input'!H64+'Prime Lambs Input'!J64*'Prime Lambs Input'!K64+'Prime Lambs Input'!M64*'Prime Lambs Input'!N64)/SUM('Prime Lambs Input'!H64,'Prime Lambs Input'!K64,'Prime Lambs Input'!N64),0) -> 0 | K240: ='Prime Lambs Input'!H64+'Prime Lambs Input'!K64+'Prime Lambs Input'!N64 -> 0 | M240: ='Prime Lambs Input'!O64 -> 0
C241: Lambs | E241: ='Prime Lambs Input'!E65 -> 0 | G241: 0 | I241: =IFERROR(('Prime Lambs Input'!G65*'Prime Lambs Input'!H65+'Prime Lambs Input'!J65*'Prime Lambs Input'!K65+'Prime Lambs Input'!M65*'Prime Lambs Input'!N65)/SUM('Prime Lambs Input'!H65,'Prime Lambs Input'!K65,'Prime Lambs Input'!N65),0) -> 1.25 | K241: ='Prime Lambs Input'!H65+'Prime Lambs Input'!K65+'Prime Lambs Input'!N65 -> 12 | M241: ='Prime Lambs Input'!O65 -> 0
C242: Rams | E242: ='Prime Lambs Input'!E66 -> 20 | G242: 370 | I242: =IFERROR(('Prime Lambs Input'!G66*'Prime Lambs Input'!H66+'Prime Lambs Input'!J66*'Prime Lambs Input'!K66+'Prime Lambs Input'!M66*'Prime Lambs Input'!N66)/SUM('Prime Lambs Input'!H66,'Prime Lambs Input'!K66,'Prime Lambs Input'!N66),0) -> 2 | K242: ='Prime Lambs Input'!H66+'Prime Lambs Input'!K66+'Prime Lambs Input'!N66 -> 10 | M242: ='Prime Lambs Input'!O66 -> 148
E243: ='Prime Lambs Input'!E67 -> 0 | G243: 0 | I243: =IFERROR(('Prime Lambs Input'!G67*'Prime Lambs Input'!H67+'Prime Lambs Input'!J67*'Prime Lambs Input'!K67+'Prime Lambs Input'!M67*'Prime Lambs Input'!N67)/SUM('Prime Lambs Input'!H67,'Prime Lambs Input'!K67,'Prime Lambs Input'!N67),0) -> 0 | K243: ='Prime Lambs Input'!H67+'Prime Lambs Input'!K67+'Prime Lambs Input'!N67 -> 0 | M243: ='Prime Lambs Input'!O67 -> 0
K250: Supplements | M250: =SUM('Prime Lambs Input'!I76:I78) -> 0
C252: TOTAL FEED COST | M252: =SUM(M239:M243,M249:M251) -> 148
C255: GM SENSITIVITY
C256: Gross Margin/DSE | E256: Average Weaning Rate
G257: 1.1 | I257: 1.2 | K257: 1.3 | M257: 1.4 | O257: 1.5 | Q257: 1.6
E258: 117 | G258: =($E$199*G$257*$E258*(1-$K$124)+SUM($K$209:$K$210)+$K$234-$AK$57-$E$199*G$257*$AO$52)/$E$197 -> -3333.084341 | I258: =($E$199*I$257*$E258*(1-$K$124)+SUM($K$209:$K$210)+$K$234-$AK$57-$E$199*I$257*$AO$52)/$E$197 -> -3332.825411 | K258: =($E$199*K$257*$E258*(1-$K$124)+SUM($K$209:$K$210)+$K$234-$AK$57-$E$199*K$257*$AO$52)/$E$197 -> -3332.566481 | M258: =($E$199*M$257*$E258*(1-$K$124)+SUM($K$209:$K$210)+$K$234-$AK$57-$E$199*M$257*$AO$52)/$E$197 -> -3332.307552 | O258: =($E$199*O$257*$E258*(1-$K$124)+SUM($K$209:$K$210)+$K$234-$AK$57-$E$199*O$257*$AO$52)/$E$197 -> -3332.048622 | Q258: =($E$199*Q$257*$E258*(1-$K$124)+SUM($K$209:$K$210)+$K$234-$AK$57-$E$199*Q$257*$AO$52)/$E$197 -> -3331.789692
E259: 122 | G259: -3330.259612 | I259: -3329.743889 | K259: -3329.228166 | M259: -3328.712443 | O259: -3328.19672 | Q259: -3327.680997
C260: Average Lamb Sale Price($/hd) | E260: 127 | G260: -3327.434884 | I260: -3326.662368 | K260: -3325.889851 | M260: -3325.117334 | O260: -3324.344818 | Q260: -3323.572301
E261: 132 | G261: -3324.610156 | I261: -3323.580846 | K261: -3322.551536 | M261: -3321.522226 | O261: -3320.492916 | Q261: -3319.463605
E262: 137 | G262: -3321.785428 | I262: -3320.499324 | K262: -3319.213221 | M262: -3317.927117 | O262: -3316.641013 | Q262: -3315.35491
E263: 142 | G263: -3318.960699 | I263: -3317.417802 | K263: -3315.874905 | M263: -3314.332008 | O263: -3312.789111 | Q263: -3311.246214
E264: 147 | G264: -3316.135971 | I264: -3314.336281 | K264: -3312.53659 | M264: -3310.7369 | O264: -3308.937209 | Q264: -3307.137518
E265: 152 | G265: -3313.311243 | I265: -3311.254759 | K265: -3309.198275 | M265: -3307.141791 | O265: -3305.085307 | Q265: -3303.028823
E266: 157 | G266: -3310.486515 | I266: -3308.173237 | K266: -3305.85996 | M266: -3303.546682 | O266: -3301.233405 | Q266: -3298.920127
E267: 162 | G267: -3307.661786 | I267: -3305.091715 | K267: -3302.521644 | M267: -3299.951573 | O267: -3297.381502 | Q267: -3294.811432
E268: 167 | G268: -3304.837058 | I268: -3302.010194 | K268: -3299.183329 | M268: -3296.356465 | O268: -3293.5296 | Q268: -3290.702736

Sheet Prime Lambs Maternal Input (hidden)
C1: Prime Lambs Maternal
C2: =UPPER(var_animal)&" GROSS MARGIN - "&TEXT(m_year,"0000") -> PRIME LAMBS MATERNAL GROSS MARGIN - 2025
C4: GENERAL INFORMATION
C5: This represents a maternal ewe enterprise (composite ewe) mated to a maternal composite sire. All ewe replacements are purchased but age of replacements can be varied from 1.5 years to 4.5 years. Following are the various assumptions used in the calculation of the Gross Margin. Cells with yellow highlight can be changed. No allowance has been made for pasture expenses such as seed, fertiliser and chemicals. Refer to pasture gross margins in the “Cropping Gross Margin Plan” for annual and perennial pasture costs. Use the livestock gross margin per DSE as income for the pasture gross margin.
C7: Ewes mated | E7: 1000
C8: Age ewes purchased | E8: 0.5
C9: Age ewes sold | E9: 6.5
C10: Av Weaning % | E10: 1.3
C11: Ram percentage | E11: 0.02
C12: Years Rams Kept | E12: 3
C13: Flock death Rate | E13: 0.03
C14: % Lambs carried over | E14: 0
C17: LIVESTOCK SALES | E17: Price/Hd | F17: Number | G17: Total
C18: c.f.a Ewes | E18: 110 | F18: ='Prime Lambs Maternal'!AG221 -> 182.3692879 | G18: =E18*ROUND(F18,0) -> 20020
C19: c.f.a Rams | E19: 20 | F19: ='Prime Lambs Maternal'!AG239 -> 6.270727266 | G19: =E19*ROUND(F19,0) -> 120
C20: Ewe Lambs | E20: 300 | F20: ='Prime Lambs Maternal'!AG228*0.42 -> 546 | G20: =E20*ROUND(F20,0) -> 163800
C21: Wether & cull ewe lambs | E21: 210 | F21: ='Prime Lambs Maternal'!AG228*0.58 -> 754 | G21: =E21*ROUND(F21,0) -> 158340
C25: TOTAL SALES | F25: =SUM(F18:F23) -> 1488.640015 | G25: =SUM(G18:G23) -> 342280
C28: LIVESTOCK PURCHASES | E28: Price/Hd | F28: Number | G28: Total
C29: Ewes | E29: 300 | F29: ='Prime Lambs Maternal'!AD221 -> 213.5699335 | G29: =E29*F29 -> 64070.98004
C30: Rams | E30: 1200 | F30: ='Prime Lambs Maternal'!AD239 -> 6.870727266 | G30: =E30*F30 -> 8244.87272
C32: TOTAL PURCHASES | F32: =SUM(F29:F30) -> 220.4406607 | G32: =SUM(G29:G30) -> 72315.85276
C35: WOOL PRICE (cents/kg) | F35: =TEXT(m_year-3,"0000")&" Average (Clean)" -> 2022 Average (Clean) | G35: =TEXT(m_year-2,"0000")&" Average (Clean)" -> 2023 Average (Clean) | H35: =TEXT(m_year-1,"0000")&" Average (Clean)" -> 2024 Average (Clean) | I35: Budget Base (Clean) | J35: Budget Base (Greasy)
E36: Wool- High Rainfall 28 mic 70% yield | F36: 867 | G36: 774 | H36: 756 | I36: 370 | J36: =I36*I37 -> 259
E37: Estimated wool yield | I37: 0.7
C38: Allow 90% to account for lower value of bellies, skirtings etc. | J38: =J36*0.9 -> 233.1
C42: WOOL SALES - SHEARING | F42: Wool Cut
E43: Number | F43: kg/hd | G43: Price | H43: Total
C44: Ewes | E44: ='Prime Lambs Maternal'!E227 -> 968.8208733 | F44: 3.5 | G44: =J38/100 -> 2.331 | H44: =E44*F44*G44 -> 7904.125094
C45: Crossbred Rams | E45: ='Prime Lambs Maternal'!E228 -> 19.4 | F45: 2.5 | G45: 1.5552 | H45: =E45*F45*G45 -> 75.4272
C47: TOTAL | E47: =SUM(E44:E46) -> 988.2208733 | F47: =(E44*F44)+(E45*F45) -> 3439.373056 | H47: =SUM(H44:H46) -> 7979.552294
C50: STOCK HEALTH REQUIREMENTS | E50: =HYPERLINK("http://paraboss.com.au","for more info on drench, lice and blowfly product selection refer to www.paraboss.com.au") -> for more info on drench, lice and blowfly product selection refer to www.paraboss.com.au
G51: Number of times | J51: Dosage in ml
E52: Number | F52: Drench | G52: Vacc. | H52: Blowfly | I52: Drench | J52: Vacc. | K52: Blowfly
C53: Ewes | E53: ='Prime Lambs Maternal'!E220 -> 1000 | F53: 3 | G53: 1 | H53: 1 | I53: 13 | J53: 1 | K53: 24
C54: Rams | E54: ='Prime Lambs Maternal'!E221 -> 20 | F54: 3 | G54: 1 | H54: 0 | I54: 18 | J54: 1 | K54: 24
C55: Lambs | E55: ='Prime Lambs Maternal'!E222 -> 1300 | F55: 2 | G55: 2 | H55: 0 | I55: 8 | J55: 1 | K55: 24
H56: Product Cost per litre | I56: 75 | J56: 235 | K56: 70
C57: TOTAL | E57: =SUM(E53:E55) -> 2320 | F57: =SUMPRODUCT($E$53:$E$55,F53:F55) -> 5660 | G57: =SUMPRODUCT($E$53:$E$55,G53:G55) -> 3620 | H57: =SUMPRODUCT($E$53:$E$55,H53:H55) -> 1000
C60: FEEDING
C61: hay/straw/grain/pellets | F61: Feed 1 | G61: Kgs Fed | H61: No of | I61: Feed 2 | J61: Kgs Fed | K61: No of | L61: Feed 3 | M61: Kgs Fed | N61: No of | O61: Total
E62: Number | F62: Cost ($/T) | G62: per Week | H62: Weeks | I62: Cost ($/T) | J62: per Week | K62: Weeks | L62: Cost ($/T) | M62: per Week | N62: Weeks | O62: Cost
C63: Ewes | F63: 300 | G63: 2 | H63: 12 | I63: 370 | J63: 1 | K63: 12 | L63: 250 | M63: 1 | N63: 12 | O63: =(E63*G63*H63)/1000*F63+(E63*J63*K63)/1000*I63+(E63*M63*N63)/1000*L63 -> 0
O64: 0
C65: Lambs | F65: 300 | G65: 2 | H65: 6 | I65: 370 | J65: 0.5 | K65: 6 | O65: 0
C66: Rams | E66: 15 | I66: 370 | J66: 2 | K66: 10 | O66: 111
O67: 0
C74: Supplements | G74: Kgs Fed | H74: No weeks | I74: Total
E75: Number | F75: Cost ($/kg) | G75: per week | H75: of Feeding | I75: Cost ($)
C76: Ewes | I76: =(H76*G76*E76)*F76 -> 0
C77: Rams | I77: =(H77*G77*E77)*F77 -> 0
C78: Lambs | I78: =(H78*G78*E78)*F78 -> 0
H80: Total Feed Cost | I80: =SUM(O63:O67,I76:I78) -> 111

Sheet Prime Lambs Maternal (hidden)
C1: Prime Lambs Maternal
C2: =UPPER(Var_Animal)&" GROSS MARGIN - "&TEXT(m_year,"0000") -> PRIME LAMBS MATERNAL GROSS MARGIN - 2025
C4: ASSUMPTIONS
C6: Ave Breeding Ewe Fibre Diameter | E6: 28 | O6: Total DSE's | Q6: =E197 -> 1840
C7: No. of breeding ewes (1st Cross) | E7: ='Prime Lambs Maternal Input'!$E$7 -> 1000
C8: 1st cross ewe - Terminal meat sire
C32: INCOME | Q32: $
C34: Wool (kg greasy) | E34: =G235 -> 3439.373056 | G34: kg | I34: av price | K34: =K235*100/G235*0.9 -> 208.8054115 | M34: c/kg | Q34: =K235 -> 7979.552294
C35: Sales | E35: =E213 -> 1488.640015 | G35: animals | I35: av price | K35: =G213 -> 229.9279856 | M35: /head | Q35: =E213*G213 -> 342280
C37: Gross Income | Q37: =SUM(Q34:Q35) -> 350259.5523
AA45: STOCK VALUE AND D.S.E REQUIREMENT | AG45: Non lamb related expenses | AM45: Lamb Costs | AN45: No: | AO45: per head | AS45: SHEEP GROSS MARGIN
C46: VARIABLE COSTS | AC46: Value | AD46: Ave Live | AE46: DSE | AS46: PRIME LAMB -
C47: Shearing | K47: Rate | AB47: Number | AC47: $/head | AD47: Wt (Kgs) | AE47: rating | AG47: Shearing | AJ47: =SUM(Q48:Q58) -> 10638.24744 | AM47: Marking | AN47: =$E$121 -> 754 | AO47: =K76+K77 -> 3.82 | AP47: =AN47*AO47 -> 2880.28
C48: Shearing | E48: =E227 -> 968.8208733 | G48: sheep | I48: Reset Rate> | J48: =GM_INFO!C79 | K48: =GM_INFO!C79 -> 381.58 | M48: /100 | Q48: =K48/100*ROUND(E48,0) -> 3697.5102 | X48: Most Shearing contractors charge | AA48: ewes | AB48: ='Prime Lambs Maternal Input'!$E$7 -> 1000 | AC48: =(G209+G215)/2 -> 205 | AD48: 60 | AE48: =IF(AND(AD48>=55,AD48<60),1.7,IF(AND(AD48>=60,AD48<65),1.8,IF(AND(AD48>=65,AD48<70),1.9,IF(AND(AD48>=70,AD48<75),2,IF(AND(AD48>=75,AD48<80),2.1,IF(AND(AD48>=80,AD48<85),2.2,IF(AND(AD48>=85,AD48<90),2.3,IF(AD48>=90,2.4,0)))))))) -> 1.8 | AG48: Animal health | AJ48: =(E220*G220+E221*G221)*K90+(E220*I220+E221*I221)*K91+(E220*K220)*K92 -> 6067350.08 | AM48: Animal health | AN48: =$E$121 -> 754 | AO48: =G221*K91+I221*K90 -> 91.31069422 | AP48: =AN48*AO48 -> 68848.26344
C49: (Federal awards) | E49: =E228 -> 19.4 | G49: rams | I49: Reset Rate> | J49: =GM_INFO!C80 | K49: =GM_INFO!C80 -> 763.16 | M49: /100 | Q49: =K49/100*ROUND(E49,0) -> 145.0004 | X49: 15% or more above the Federal Award rate. | AA49: rams | AB49: ='Prime Lambs Maternal Input'!E11*'Prime Lambs Maternal'!AB48 -> 20 | AC49: =(G210+G216)/2 -> 610 | AD49: 100 | AE49: 2 | AG49: Stock Purchase | AJ49: =SUM(Q105:Q105) -> 72315.85276 | AM49: Freight | AN49: =$E$121 -> 754 | AO49: =K121 -> 7 | AP49: =AN49*AO49 -> 5278
C50: Shed labour | E50: 5 | G50: days | I50: Reset Rate> | J50: =GM_INFO!C81 | K50: =GM_INFO!C81 -> 289.4 | M50: /day | Q50: =K50*ROUND(E50,0) -> 1447 | AA50: lambs | AB50: =AC228 -> 1300 | AC50: =G212/2 -> 105 | AD50: 35 | AE50: 0 | AG50: Freight | AH50: sheep | AJ50: =SUM(Q119:Q120) -> 2817.989534 | AM50: Yard Fees | AN50: =$E$121 -> 754 | AO50: =K125 -> 1 | AP50: =AN50*AO50 -> 754
C51: Woolclasser | E51: 2.5 | G51: days | I51: Reset Rate> | J51: =GM_INFO!C82 | K51: =GM_INFO!C82 -> 350.85 | M51: /day | Q51: =K51*E51 -> 877.125 | AA51: TOTAL | AB51: =SUM(AB48:AB50) -> 2320 | AC51: =AB48*AC48+AB49*AC49+AB50*AC50/2 -> 285450 | AH51: Wool | AJ51: =Q122 -> 300 | AM51: Levies | AN51: =$E$121 -> 754 | AO51: =K127+K128 -> 2.67 | AP51: =AN51*AO51 -> 2013.18 | AS51: Ewes mated | AU51: ='Prime Lambs Maternal Input'!$E$7 -> 1000 | AX51: Ram % | AY51: =E200 -> 0.02
C52: Superannuation (on ord wages only) | I52: Reset Rate> | J52: =GM_INFO!C83 | K52: =GM_INFO!C83 -> 0.115 | M52: wages | Q52: =(Q48+Q49+Q50+Q51)*K52 -> 709.163094 | AG52: Commission on livestock sales | AJ52: =(K209+K210)*K124 -> 1107.7 | AO52: =SUM(AO47:AO51) -> 105.8006942 | AQ52: =AO52*AD50 -> 3703.024298 | AS52: Age ewes purchased | AU52: =E201 -> 0.5 | AX52: Price of rams | AY52: =AL68 -> 0
C53: W/Cover (incl. super + otime etc) | I53: Reset Rate> | J53: =GM_INFO!C84 | K53: =GM_INFO!C84 -> 0.04 | M53: total | Q53: =(Q48+Q49+Q50+Q51+Q52)*K53 -> 275.0319478 | AG53: Yard fees | AJ53: =E119*K125 -> 188.6400152 | AM53: Commission | AN53: =$E$121 -> 754 | AO53: =G213 -> 229.9279856 | AP53: =K124 -> 0.055 | AQ53: =AD50*AO53*AP53 -> 442.6113723 | AS53: Age ewes sold | AU53: =E202 -> 6.5 | AX53: Years rams kept | AY53: =E203 -> 3
C54: Wool packs | E54: 20 | G54: packs | I54: Reset Rate> | J54: =GM_INFO!C77 | K54: =GM_INFO!C77 -> 15 | M54: /pack | Q54: =K54*ROUND(E54,0) -> 300 | AG54: Levies | AJ54: =E126*(K126+K128) -> 164.1168132 | AS54: Av Weaning % | AU54: ='Prime Lambs Maternal Input'!E10 -> 1.3 | AX54: Age wethers sold | AY54: 0.5
C55: Shed sundries | E55: =E48+E49 -> 988.2208733 | G55: sheep | I55: Reset Rate> | J55: =GM_INFO!C85 | K55: =GM_INFO!C85 -> 0.22 | M55: /head | Q55: =K55*ROUND(E55,0) -> 217.36 | AG55: Wool Selling Charges | AJ55: =Q130+Q131 -> 1048.32401 | AQ55: =SUM(AQ43:AQ53) -> 4145.63567 | AS55: dse/ewe | AU55: =AE48 -> 1.8 | AX55: Flock death rate | AY55: =E204 -> 0.03
C56: Lice control | E56: =E48+E49 -> 988.2208733 | G56: sheep | I56: Reset Rate> | J56: =GM_INFO!C66 | K56: =GM_INFO!C66 -> 1.64 | M56: /head | Q56: =K56*ROUND(E56,0) -> 1620.32 | AG56: Feed & other costs | AJ56: =SUM(Q144:Q149) -> 10304.525
C57: Crutch & Wig | E57: 990 | G57: ewes | I57: Reset Rate> | J57: =GM_INFO!C87 | K57: =GM_INFO!C87 -> 131.65 | M57: /100 | Q57: =K57/100*ROUND(E57,0) -> 1303.335 | AK57: =SUM(AJ47:AJ56) -> 6166235.476
E58: =E49 -> 19.4 | G58: rams | I58: Reset Rate> | J58: =GM_INFO!C88 | K58: =GM_INFO!C88 -> 244.22 | M58: /100 | Q58: =K58/100*ROUND(E58,0) -> 46.4018
AS60: EWES | AT60: OPENING | AU60: NATURAL | AV60: PURCHASES | AW60: DEATHS | AX60: % sold | AY60: SALES | AZ60: CLOSING
AS61: AGE | AT61: NUMBERS | AU61: INCREASE | AX61: culled | AZ61: NUMBERS
AS63: 0.5-1.5yr | AV63: =IF($N$78=1.5,AT64,AT63-AW63) -> 0 | AY63: =AT63-AW63 -> 0 | AZ63: =AT63+AU63+AV63-AW63-AY63 -> 0
AS64: 1.5-2.5yr | AT64: =IF(AU52=1.5,AU51/(1+(1-AY55)*(1-AX64)*(1+(1-AY55)*(1-AX65)*(1+(1-AY55)*(1-AX66)*(1+(1-AY55)*(1-AX67))))),0) -> 0 | AV64: =IF(AU52=2.5,AT65-AY64,0) -> 0 | AW64: =AT64*$R$81 -> 0 | AY64: =(AT64-AW64)*AX64 -> 0 | AZ64: 0
AS65: 2.5-3.5yr | AT65: =IF(AU52=2.5,AU51/(1+(1-AY55)*(1-AX65)*(1+(1-AY55)*(1-AX66)*(1+(1-AY55)*(1-AX67)))),AZ64) -> 0 | AV65: =IF(AU52=3.5,AT66-AY65,0) -> 0 | AW65: =AT65*$R$81 -> 0 | AY65: =(AT65-AW65)*AX65 -> 0 | AZ65: 0
AS66: 3.5-4.5yr | AT66: =IF(AU52=3.5,AU51/(1+(1-AY55)*(1-AX66)*(1+(1-AY55)*(1-AX67))),AZ65) -> 0 | AV66: =IF(AU52=4.5,AT67-AY66,0) -> 0 | AW66: =AT66*$R$81 -> 0 | AY66: =(AT66-AW66)*AX66 -> 0 | AZ66: 0
AS67: 4.5-5.5yr | AT67: =IF(AU52=4.5,AU51/(1+(1-AY55)*(1-AX67)),AZ66) -> 0 | AW67: =AT67*$R$81 -> 0 | AX67: =IF(AU53=5.5,1,0) -> 0 | AY67: =(AT67-AW67)*AX67 -> 0 | AZ67: 0
AS68: 5.5-6.5yr | AT68: =AZ67 -> 0 | AW68: =AT68*$R$81 -> 0 | AX68: =IF(AU53=6.5,1,0) -> 1 | AY68: =(AT68-AW68)*AX68 -> 0 | AZ68: 0
AS69: Ewes | AT69: =SUM(AT64:AT68) -> 0 | AV69: =AV63+AV64+AV65+AV66 -> 0 | AW69: =SUM(AW63:AW68) -> 0 | AY69: =SUM(AY64:AY68) -> 0 | AZ69: =SUM(AZ63:AZ67) -> 0
AS70: d.s.e's | AT70: =AT63+AT69*AU55 -> 0
AS73: LAMBS | AT73: OPENING | AU73: NATURAL | AV73: PURCHASES | AW73: DEATHS | AX73: % sold | AY73: SALES | AZ73: CLOSING
AS74: AGE | AT74: NUMBERS | AU74: INCREASE | AX74: culled | AZ74: NUMBERS
C75: Marking
C76: Lamb marking | E76: =AC228 -> 1300 | G76: lambs | I76: Reset Rate> | J76: =GM_INFO!C91 | K76: =GM_INFO!C91 -> 1.5 | M76: /head | Q76: =K76*ROUND(E76,0) -> 1950 | AS76: 0-0.5yr | AU76: =AU51*AU54 -> 1300 | AX76: 1 | AY76: =AU76*AX76 -> 1300 | AZ76: =AT76+AU76+AV76-AW76-AY76 -> 0
C77: Ear tags | E77: =AC228 -> 1300 | G77: lambs | I77: Reset Rate> | J77: =GM_INFO!C92 | K77: =GM_INFO!C92 -> 2.32 | M77: /head | Q77: =K77*ROUND(E77,0) -> 3016
C78: Pain Relief | E78: =AC228 -> 1300 | G78: lambs | I78: Reset Rate> | J78: =GM_INFO!C93 | K78: =GM_INFO!C93 -> 2 | M78: /head | Q78: =K78*ROUND(E78,0) -> 2600
AS79: RAMS | AT79: OPENING | AU79: NATURAL | AV79: PURCHASES | AW79: DEATHS | AX79: % sold | AY79: SALES | AZ79: CLOSING
AS80: AGE | AT80: NUMBERS | AU80: INCREASE | AX80: culled | AZ80: NUMBERS
AS82: 0.5-1.5yr | AV82: =AT83/(1-AX82) -> 6.870727266 | AW82: =AT82*$R$81 -> 0 | AZ82: =AT82+AU82+AV82-AW82-AY82 -> 6.870727266
AS83: 1.5-2.5yr | AT83: =IF(AY53=3,(AU51*AY51)/(1+(1-AY55)*(1-AX83)*(1+(1-AY55)*(1-AX84)*(1+(1-AY55)*(1-AX85)))),IF(AY53=4,(AU51*AY51)/(1+(1-AY55)*(1-AX83)*(1+(1-AY55)*(1-AX84)*(1+(1-AY55)*(1-AX85)*(1+(1-AY55)*(1-AX86))))),0)) -> 6.870727266 | AW83: =AT83*$R$81 -> 0 | AZ83: =AT83+AU83+AV83-AW83-AY83 -> 6.870727266
AS84: 2.5-3.5yr | AT84: =AZ83 -> 6.870727266 | AW84: =AT84*$R$81 -> 0 | AZ84: =AT84+AU84+AV84-AW84-AY84 -> 6.870727266
AS85: 3.5-4.5yr | AT85: =AZ84 -> 6.870727266 | AW85: =AT85*$R$81 -> 0 | AX85: =IF(AY53=3,100%,0) -> 1 | AY85: =(AT85-AW85)*AX85 -> 6.870727266 | AZ85: =AT85+AU85+AV85-AW85-AY85 -> 0
AS86: 4.5-5.5yr | AT86: =AZ85 -> 0 | AW86: =AT86*$R$81 -> 0 | AX86: =IF(AY53=4,100%,0) -> 0 | AY86: =AT86-AW86 -> 0 | AZ86: =AT86+AU86+AV86-AW86-AY86 -> 0
AT87: =AT82+AT83+AT84+AT85+AT86 -> 20.6121818 | AV87: =AV82+AV83+AV84+AV85+AV86 -> 6.870727266 | AW87: =AW82+AW83+AW84+AW85+AW86 -> 0 | AY87: =AY82+AY83+AY84+AY85+AY86 -> 6.870727266 | AZ87: =AZ82+AZ83+AZ84+AZ85+AZ86 -> 20.6121818
AS88: d.s.e's | AT88: =AT87*AE49 -> 41.2243636
C89: Animal Health
C90: Drench | E90: ='Prime Lambs Maternal Input'!F57 -> 5660 | G90: sheep | J90: =GM_INFO!C68 | K90: =Q90/E90 -> 0.8067137809 | M90: /head | Q90: =ROUND(G223,0) -> 4566
C91: Vaccinate | E91: ='Prime Lambs Maternal Input'!G57 -> 3620 | G91: sheep | J91: =GM_INFO!C74 | K91: 0.9400552486 | M91: /head | Q91: =ROUND(I223,0) -> 3403
C92: Blowfly control | E92: ='Prime Lambs Maternal Input'!H57 -> 1000 | G92: sheep | J92: =GM_INFO!C76 | K92: 1.68 | M92: /head | Q92: =ROUND(K223,0) -> 1680
C104: Stock purchases
C105: Purchases | Q105: =K215+K216 -> 72315.85276
C117: Sale Costs
C118: Freight
C119: Livestock | E119: =SUM(E209:E210) -> 188.6400152 | G119: culls | I119: Reset Rate> | J119: =GM_INFO!B161 | K119: =GM_INFO!B161 -> 7 | M119: /head | Q119: =K119*ROUND(E119,0) -> 1323
E120: =E215 -> 213.5699335 | G120: ewes | I120: Reset Rate> | J120: =GM_INFO!B162 | K120: =GM_INFO!B162 -> 7 | M120: /head | Q120: =K120*E120 -> 1494.989534
E121: =E212 -> 754 | G121: prime lambs | I121: Reset Rate> | J121: =GM_INFO!B163 | K121: =GM_INFO!B163 -> 7 | M121: /head | Q121: =K121*ROUND(E121,0) -> 5278
C122: Wool | E122: =G235/170 -> 20.23160621 | G122: bales | I122: Reset Rate> | J122: =GM_INFO!B164 | K122: =GM_INFO!B164 -> 15 | M122: /bale | Q122: =K122*ROUND(E122,0) -> 300
C123: Stock selling charges
C124: Commission/insurance | I124: Reset Rate> | J124: =GM_INFO!C98 | K124: =GM_INFO!C98 -> 0.055 | M124: gross $ | Q124: =K124*Q35 -> 18825.4
C125: Yard fees | E125: =E213 -> 1488.640015 | G125: sheep | I125: Reset Rate> | J125: =GM_INFO!C99 | K125: =GM_INFO!C99 -> 1 | M125: /head | Q125: =K125*ROUND(E125,0) -> 1489
C126: Levy-sheep | E126: =E119 -> 188.6400152 | G126: sheep | I126: Reset Rate> | J126: =GM_INFO!C100 | K126: =GM_INFO!C100 -> 0.2 | M126: /head | Q126: =K126*ROUND(E126,0) -> 37.8
C127: Levy-lambs | E127: =E212 -> 754 | G127: sheep | I127: Reset Rate> | J127: =GM_INFO!C101 | K127: =GM_INFO!C101 -> 2 | M127: /head | Q127: =K127*ROUND(E127,0) -> 1508
C128: SA sheep industry levy | E128: =E213 -> 1488.640015 | G128: sheep | I128: Reset Rate> | J128: =GM_INFO!C102 | K128: =GM_INFO!C102 -> 0.67 | M128: /head | Q128: =K128*E128 -> 997.3888102
C129: Wool selling charges
C130: Brokerage/testing/insurance | I130: Reset Rate> | J130: =GM_INFO!C103 | K130: =GM_INFO!C103 -> 0.27 | M130: /kg | Q130: =K130*E34 -> 928.6307252
C131: Wool levy | I131: Reset Rate> | J131: =GM_INFO!C104 | K131: =GM_INFO!C104 -> 0.015 | M131: gross | Q131: =K131*Q34 -> 119.6932844
C143: Feed and Other Costs
C144: Hay | Q144: =SUM('Prime Lambs Maternal Input'!I63:I65) -> 740
C145: Grain | Q145: =SUM('Prime Lambs Maternal Input'!I70:I72,'Prime Lambs Maternal Input'!I76:I78) -> 0
C146: Insurance | E146: =AC51 -> 285450 | G146: value | I146: Reset Rate> | J146: =GM_INFO!B157 | K146: =GM_INFO!B157 -> 4.5 | M146: /$'000 | Q146: =K146/1000*E146 -> 1284.525
C147: Water | E147: =$Q$6 -> 1840 | G147: DSE's | I147: Reset Rate> | J147: =GM_INFO!D130 | K147: =GM_INFO!D130 -> 2.5 | M147: /DSE's | Q147: =K147*E147 -> 4600
C148: Veh Fuel, R&M | E148: =$Q$6 -> 1840 | G148: DSE's | I148: Reset Rate> | J148: =GM_INFO!D131 | K148: =GM_INFO!D131 -> 1.5 | M148: /DSE's | Q148: =K148*E148 -> 2760
C149: Other | E149: =$Q$6 -> 1840 | G149: DSE's | I149: Reset Rate> | J149: =GM_INFO!D132 | K149: =GM_INFO!D132 -> 0.5 | M149: /DSE's | Q149: =K149*E149 -> 920
C170: TOTAL VARIABLE COSTS | Q170: =SUM(Q48:Q166) -> 142775.5276
C172: GROSS MARGIN TOTAL | Q172: =Q37-Q170 -> 207484.0247
C174: GROSS MARGIN/DSE | Q174: =Q172/Q6 -> 112.7630569
C194: PRODUCTION DATA
C196: Stocking rate (DSE/Ha) | E196: 12 | K196: Culling Rate (% from each group) | AA196: SHEEP GROSS MARGIN
C197: Total DSE's | E197: =SUMPRODUCT(AB48:AB50,AE48:AE50) -> 1840 | K197: Age Group | M197: Ewes | O197: Wethers | AA197: PRIME LAMB -
C198: SHEEP GRAZING AREA | E198: =E197/E196 -> 153.3333333 | K198: 0.5 | M198: =AF215 -> 0
C199: Number of ewes mated | E199: ='Prime Lambs Maternal Input'!E7 -> 1000 | K199: 1.5 | M199: 0
C200: Ram percentage | E200: ='Prime Lambs Maternal Input'!E11 -> 0.02 | K200: 2.5 | M200: 0
C201: Age ewes bought (yrs) | E201: ='Prime Lambs Maternal Input'!E8 -> 0.5 | K201: 3.5 | M201: 0
C202: Age ewes culled | E202: ='Prime Lambs Maternal Input'!E9 -> 6.5 | K202: 4.5 | M202: 0 | AA202: Ewes mated | AC202: ='Prime Lambs Maternal Input'!E7 -> 1000 | AF202: Ram % | AG202: =E200 -> 0.02
B203: =VLOOKUP(r[0]c3&"No Ops",CHOOSE({1,2},tbl_ops[Name]&tbl_ops[Category],INDIRECT("tbl_ops["&var_crop&"]")),2,0) | C203: Years rams kept | E203: ='Prime Lambs Maternal Input'!E12 -> 3 | K203: 5.5 | M203: 1 | AA203: Age ewes purchased | AC203: =E201 -> 0.5 | AF203: Price of rams | AG203: =G216 -> 1200
B204: =VLOOKUP(r[0]c3&"No Ops",CHOOSE({1,2},tbl_ops[Name]&tbl_ops[Category],INDIRECT("tbl_ops["&var_crop&"]")),2,0) | C204: Flock death rate | E204: ='Prime Lambs Maternal Input'!E13 -> 0.03 | K204: 6.5 | M204: 0 | AA204: Age ewes sold | AC204: =E202 -> 6.5 | AF204: Years rams kept | AG204: =E203 -> 3
B205: =VLOOKUP(r[0]c3&"No Ops",CHOOSE({1,2},tbl_ops[Name]&tbl_ops[Category],INDIRECT("tbl_ops["&var_crop&"]")),2,0) | C205: Average weaning rate | E205: =AC205 -> 1.3 | AA205: Av Weaning % | AC205: ='Prime Lambs Maternal Input'!E10 -> 1.3 | AF205: Age wethers sold | AG205: 0.5
B206: =VLOOKUP(r[0]c3&"No Ops",CHOOSE({1,2},tbl_ops[Name]&tbl_ops[Category],INDIRECT("tbl_ops["&var_crop&"]")),2,0) | C206: % Lambs carried over | E206: 0 | AA206: dse/ewe | AC206: =AE48 -> 1.8 | AF206: Flock death rate | AG206: =E204 -> 0.03
B207: =VLOOKUP(r[0]c3&var_rain,CHOOSE({1,2},tbl_ops[Name]&tbl_ops[Rainfall],INDIRECT("tbl_ops["&var_crop&"]")),2,0)
B208: =VLOOKUP(r[0]c3&var_rain,CHOOSE({1,2},tbl_ops[Name]&tbl_ops[Rainfall],INDIRECT("tbl_ops["&var_crop&"]")),2,0) | C208: SALES | E208: Number | G208: Price/hd | I208: Age | K208: Total
B209: =VLOOKUP(r[0]c3&var_rain,CHOOSE({1,2},tbl_ops[Name]&tbl_ops[Rainfall],INDIRECT("tbl_ops["&var_crop&"]")),2,0) | C209: c.f.a ewes | E209: =AG221 -> 182.3692879 | G209: ='Prime Lambs Maternal Input'!E18 -> 110 | I209: =E202 -> 6.5 | K209: =ROUND(E209,0)*G209 -> 20020
B210: =VLOOKUP(r[0]c3&var_rain,CHOOSE({1,2},tbl_ops[Name]&tbl_ops[Rainfall],INDIRECT("tbl_ops["&var_crop&"]")),2,0) | C210: c.f.a rams | E210: =AG239 -> 6.270727266 | G210: ='Prime Lambs Maternal Input'!E19 -> 20 | I210: =E203+1.5 -> 4.5 | K210: =ROUND(E210,0)*G210 -> 120
C211: Ewe Lambs | E211: ='Prime Lambs Maternal Input'!F20 -> 546 | G211: ='Prime Lambs Maternal Input'!E20 -> 300 | I211: 0.5 | K211: =ROUND(E211,0)*G211 -> 163800
C212: Wether & cull ewe lambs | E212: ='Prime Lambs Maternal Input'!F21 -> 754 | G212: ='Prime Lambs Maternal Input'!E21 -> 210 | I212: 20 Weeks | K212: =ROUND(E212,0)*G212 -> 158340 | AA212: EWES | AB212: OPENING | AC212: NATURAL | AD212: PURCHASES | AE212: DEATHS | AF212: % sold | AG212: SALES | AH212: CLOSING
C213: TOTAL | E213: =SUM(E209:E212) -> 1488.640015 | G213: =K213/E213 -> 229.9279856 | K213: =SUM(K209:K212) -> 342280 | AA213: AGE | AB213: NUMBERS | AC213: INCREASE | AF213: culled | AH213: NUMBERS
C214: PURCHASES | E214: Number | G214: Price/hd | I214: Age | K214: Total | AD214: =IF($AC$203=0.5,AB215,AB214-AE214) -> 213.5699335
C215: Ewes | E215: =AD221 -> 213.5699335 | G215: ='Prime Lambs Maternal Input'!E29 -> 300 | I215: =E201 -> 0.5 | K215: =E215*G215 -> 64070.98004 | AA215: 0.5-1.5yr | AB215: =IF(AC203=0.5,AC202/(1+(1-AG206)*(1-AF215)*(1+(1-AG206)*(1-AF216)*(1+(1-AG206)*(1-AF217)*(1+(1-AG206)*(1-AF218)*(1+(-AG206)*(1-AF219)))))),0) -> 213.5699335 | AD215: =IF($AC$203=1.5,AB215-AE215,0) -> 0 | AE215: 1.2 | AG215: =(AB215-AE215)*AF215 -> 0 | AH215: =AB215+AC215+AD215-AE215-AG215 -> 212.3699335
C216: Rams | E216: =AD239 -> 6.870727266 | G216: ='Prime Lambs Maternal Input'!E30 -> 1200 | I216: 1.5 | K216: =E216*G216 -> 8244.87272 | AA216: 1.5-2.5yr | AB216: =IF(AC203=1.5,AC202/(1+(1-AG206)*(1-AF216)*(1+(1-AG206)*(1-AF217)*(1+(1-AG206)*(1-AF218)*(1+(1-AG206)*(1-AF219))))),AH215) -> 212.3699335 | AD216: =IF(AC203=2.5,AB217-AG216,0) -> 0 | AE216: =AB216*AG206 -> 6.371098004 | AG216: 0 | AH216: 205.9988355
AA217: 2.5-3.5yr | AB217: =IF(AC203=2.5,AC202/(1+(1-AG206)*(1-AF217)*(1+(1-AG206)*(1-AF218)*(1+(1-AG206)*(1-AF219)))),AH216) -> 205.9988355 | AD217: =IF(AC203=3.5,AB218-AG217,0) -> 0 | AE217: =AB217*AG206 -> 6.179965064 | AG217: 0 | AH217: 199.8188704
G218: Calculated Cost | AA218: 3.5-4.5yr | AB218: =IF(AC203=3.5,AC202/(1+(1-AG206)*(1-AF218)*(1+(1-AG206)*(1-AF219))),AH217) -> 199.8188704 | AD218: =IF(AC203=4.5,AB219-AG218,0) -> 0 | AE218: =AB218*AG206 -> 5.994566112 | AG218: 0 | AH218: 193.8243043
C219: STOCK HEALTH REQUIREMENTS | E219: Number | G219: Drench | I219: Vacc. | K219: Blowfly | M219: DSE | X219: Rotation between different drench groups generally does little to slow development of drench | AA219: 4.5-5.5yr | AB219: =IF(AC203=4.5,AC202/(1+(1-AG206)*(1-AF219)),AH218) -> 193.8243043 | AE219: =AB219*AG206 -> 5.814729129 | AF219: =IF(AC204=5.5,1,0) -> 0 | AG219: 0 | AH219: 188.0095752
C220: Ewes | E220: ='Prime Lambs Maternal Input'!E7 -> 1000 | G220: ='Prime Lambs Maternal Input'!$E53*'Prime Lambs Maternal Input'!F53*'Prime Lambs Maternal Input'!I53/1000*'Prime Lambs Maternal Input'!I$56 -> 2925 | I220: ='Prime Lambs Maternal Input'!$E53*'Prime Lambs Maternal Input'!G53*'Prime Lambs Maternal Input'!J53/1000*'Prime Lambs Maternal Input'!J$56*4 -> 940 | K220: ='Prime Lambs Maternal Input'!$E53*'Prime Lambs Maternal Input'!H53*'Prime Lambs Maternal Input'!K53/1000*'Prime Lambs Maternal Input'!K$56 -> 1680 | M220: 1.8 | X220: resistance and should not be used at the expense of these three highly effective practices: | AA220: 5.5-6.5yr | AB220: =AH219 -> 188.0095752 | AE220: =AB220*AG206 -> 5.640287255 | AF220: =IF(AC204=6.5,1,0) -> 1 | AG220: 182.3692879 | AH220: 0
C221: Rams | E221: =AB49 -> 20 | G221: ='Prime Lambs Maternal Input'!$E54*'Prime Lambs Maternal Input'!F54*'Prime Lambs Maternal Input'!I54/1000*'Prime Lambs Maternal Input'!I$56 -> 81 | I221: ='Prime Lambs Maternal Input'!$E54*'Prime Lambs Maternal Input'!G54*'Prime Lambs Maternal Input'!J54/1000*'Prime Lambs Maternal Input'!J$56*4 -> 18.8 | K221: ='Prime Lambs Maternal Input'!$E54*'Prime Lambs Maternal Input'!H54*'Prime Lambs Maternal Input'!K54/1000*'Prime Lambs Maternal Input'!K$56 -> 0 | M221: 2 | X221: • use products most effective on your property | AA221: Ewes | AB221: =SUM(AB216:AB220) -> 1000.021519 | AD221: =AD215+AD216+AD217+AD218+AD214 -> 213.5699335 | AE221: =SUM(AE215:AE220) -> 31.20064556 | AG221: =SUM(AG216:AG220) -> 182.3692879 | AH221: =SUM(AH215:AH219) -> 1000.021519
C222: Lambs | E222: =AC228 -> 1300 | G222: ='Prime Lambs Maternal Input'!$E55*'Prime Lambs Maternal Input'!F55*'Prime Lambs Maternal Input'!I55/1000*'Prime Lambs Maternal Input'!I$56 -> 1560 | I222: ='Prime Lambs Maternal Input'!$E55*'Prime Lambs Maternal Input'!G55*'Prime Lambs Maternal Input'!J55/1000*'Prime Lambs Maternal Input'!J$56*4 -> 2444 | K222: ='Prime Lambs Maternal Input'!$E55*'Prime Lambs Maternal Input'!H55*'Prime Lambs Maternal Input'!K55/1000*'Prime Lambs Maternal Input'!K$56 -> 0 | X222: • use multi-active (combination) products | AA222: d.s.e's | AB222: =AB215+AB221*AC206 -> 2013.608667
C223: TOTAL | E223: =SUM(E220:E222) -> 2320 | G223: =SUM(G220:G222) -> 4566 | I223: =SUM(I220:I222) -> 3402.8 | K223: =SUM(K220:K222) -> 1680 | M223: =SUMPRODUCT($E$220:$E$222,M220:M222) -> 1840 | X223: • use short-acting products
BG224: For more information: https://wormboss.com.au/tests-tools/drench-rotation-versus-combinations-to-combat-drench-resistance/
G225: Wool Cut kg/hd | AA225: LAMBS | AB225: OPENING | AC225: NATURAL | AD225: PURCHASES | AE225: DEATHS | AF225: % sold | AG225: SALES | AH225: CLOSING
C226: SHEARING | E226: Number | I226: Price | K226: Total | AA226: AGE | AB226: NUMBERS | AC226: INCREASE | AF226: culled | AH226: NUMBERS
C227: Ewes | E227: =AB221-AE221 -> 968.8208733 | G227: ='Prime Lambs Maternal Input'!F44 -> 3.5 | I227: ='Prime Lambs Maternal Input'!G44 -> 2.331 | K227: =I227*G227*E227 -> 7904.125094
C228: Crossbred rams | E228: =AB239-AE239 -> 19.4 | G228: ='Prime Lambs Maternal Input'!F45 -> 2.5 | I228: ='Prime Lambs Maternal Input'!G45 -> 1.5552 | K228: =I228*G228*E228 -> 75.4272 | AA228: 0-0.5yr | AC228: =AC202*AC205 -> 1300 | AF228: 1 | AG228: =AC228*AF228 -> 1300 | AH228: =AB228+AC228+AD228-AE228-AG228 -> 0
AA231: RAMS | AB231: OPENING | AC231: NATURAL | AD231: PURCHASES | AE231: DEATHS | AF231: % sold | AG231: SALES | AH231: CLOSING
AA232: AGE | AB232: NUMBERS | AC232: INCREASE | AF232: culled | AH232: NUMBERS
AA234: 0.5-1.5yr | AD234: =AB235/(1-AF234) -> 6.870727266 | AE234: =AB234*$AG$206 -> 0 | AH234: =AB234+AC234+AD234-AE234-AG234 -> 6.870727266
C235: TOTAL | E235: =SUM(E227:E234) -> 988.2208733 | G235: =SUMPRODUCT(E227:E234,G227:G234) -> 3439.373056 | K235: =SUM(K227:K234) -> 7979.552294 | AA235: 1.5-2.5yr | AB235: =IF(AG204=3,(AC202*AG202)/(1+(1-AG206)*(1-AF235)*(1+(1-AG206)*(1-AF236)*(1+(1-AG206)*(1-AF237)))),IF(AG204=4,(AC202*AG202)/(1+(1-AG206)*(1-AF235)*(1+(1-AG206)*(1-AF236)*(1+(1-AG206)*(1-AF237)*(1+(1-AG206)*(1-AF238))))),0)) -> 6.870727266 | AE235: =AB235*$AG$206 -> 0.206121818 | AH235: =AB235+AC235+AD235-AE235-AG235 -> 6.664605448
AA236: 2.5-3.5yr | AB236: =AH235 -> 6.664605448 | AE236: =AB236*$AG$206 -> 0.1999381635 | AH236: =AB236+AC236+AD236-AE236-AG236 -> 6.464667285
AA237: 3.5-4.5yr | AB237: =AH236 -> 6.464667285 | AE237: =AB237*$AG$206 -> 0.1939400186 | AF237: =IF(AG204=3,100%,0) -> 1 | AG237: =(AB237-AE237)*AF237 -> 6.270727266 | AH237: =AB237+AC237+AD237-AE237-AG237 -> 0
G238: Feed Cost ($/T) | I238: Kg Fed per Week | K238: No of Weeks Feeding | M238: Total Cost ($) | AA238: 4.5-5.5yr | AB238: =AH237 -> 0 | AE238: =AB238*$AG$206 -> 0 | AF238: =IF(AG204=4,100%,0) -> 0 | AG238: =AB238-AE238 -> 0 | AH238: =AB238+AC238+AD238-AE238-AG238 -> 0
C239: FEEDING | E239: Number | AB239: =AB234+AB235+AB236+AB237+AB238 -> 20 | AD239: =AD234+AD235+AD236+AD237+AD238 -> 6.870727266 | AE239: =AE234+AE235+AE236+AE237+AE238 -> 0.6 | AG239: =AG234+AG235+AG236+AG237+AG238 -> 6.270727266 | AH239: =AH234+AH235+AH236+AH237+AH238 -> 20
C240: Ewes | E240: ='Prime Lambs Maternal Input'!E63 -> 0 | G240: =IFERROR(M240/(E240*I240/1000*K240),0) -> 0 | I240: =IFERROR(('Prime Lambs Maternal Input'!G63*'Prime Lambs Maternal Input'!H63+'Prime Lambs Maternal Input'!J63*'Prime Lambs Maternal Input'!K63+'Prime Lambs Maternal Input'!M63*'Prime Lambs Maternal Input'!N63)/SUM('Prime Lambs Maternal Input'!H63,'Prime Lambs Maternal Input'!K63,'Prime Lambs Maternal Input'!N63),0) -> 1.333333333 | K240: ='Prime Lambs Maternal Input'!H63+'Prime Lambs Maternal Input'!K63+'Prime Lambs Maternal Input'!N63 -> 36 | M240: ='Prime Lambs Maternal Input'!O63 -> 0 | AA240: d.s.e's | AB240: =AB239*AE49 -> 40
E241: ='Prime Lambs Maternal Input'!E64 -> 0 | G241: =IFERROR(M241/(E241*I241/1000*K241),0) -> 0 | I241: =IFERROR(('Prime Lambs Maternal Input'!G64*'Prime Lambs Maternal Input'!H64+'Prime Lambs Maternal Input'!J64*'Prime Lambs Maternal Input'!K64+'Prime Lambs Maternal Input'!M64*'Prime Lambs Maternal Input'!N64)/SUM('Prime Lambs Maternal Input'!H64,'Prime Lambs Maternal Input'!K64,'Prime Lambs Maternal Input'!N64),0) -> 0 | K241: ='Prime Lambs Maternal Input'!H64+'Prime Lambs Maternal Input'!K64+'Prime Lambs Maternal Input'!N64 -> 0 | M241: ='Prime Lambs Maternal Input'!O64 -> 0
C242: Lambs | E242: ='Prime Lambs Maternal Input'!E65 -> 0 | G242: 0 | I242: =IFERROR(('Prime Lambs Maternal Input'!G65*'Prime Lambs Maternal Input'!H65+'Prime Lambs Maternal Input'!J65*'Prime Lambs Maternal Input'!K65+'Prime Lambs Maternal Input'!M65*'Prime Lambs Maternal Input'!N65)/SUM('Prime Lambs Maternal Input'!H65,'Prime Lambs Maternal Input'!K65,'Prime Lambs Maternal Input'!N65),0) -> 1.25 | K242: ='Prime Lambs Maternal Input'!H65+'Prime Lambs Maternal Input'!K65+'Prime Lambs Maternal Input'!N65 -> 12 | M242: ='Prime Lambs Maternal Input'!O65 -> 0
C243: Rams | E243: ='Prime Lambs Maternal Input'!E66 -> 15 | G243: 370 | I243: =IFERROR(('Prime Lambs Maternal Input'!G66*'Prime Lambs Maternal Input'!H66+'Prime Lambs Maternal Input'!J66*'Prime Lambs Maternal Input'!K66+'Prime Lambs Maternal Input'!M66*'Prime Lambs Maternal Input'!N66)/SUM('Prime Lambs Maternal Input'!H66,'Prime Lambs Maternal Input'!K66,'Prime Lambs Maternal Input'!N66),0) -> 2 | K243: ='Prime Lambs Maternal Input'!H66+'Prime Lambs Maternal Input'!K66+'Prime Lambs Maternal Input'!N66 -> 10 | M243: ='Prime Lambs Maternal Input'!O66 -> 111
E244: ='Prime Lambs Maternal Input'!E67 -> 0 | G244: 0 | I244: =IFERROR(('Prime Lambs Maternal Input'!G67*'Prime Lambs Maternal Input'!H67+'Prime Lambs Maternal Input'!J67*'Prime Lambs Maternal Input'!K67+'Prime Lambs Maternal Input'!M67*'Prime Lambs Maternal Input'!N67)/SUM('Prime Lambs Maternal Input'!H67,'Prime Lambs Maternal Input'!K67,'Prime Lambs Maternal Input'!N67),0) -> 0 | K244: ='Prime Lambs Maternal Input'!H67+'Prime Lambs Maternal Input'!K67+'Prime Lambs Maternal Input'!N67 -> 0 | M244: ='Prime Lambs Maternal Input'!O67 -> 0
K251: Supplements | M251: =SUM('Prime Lambs Maternal Input'!I76:I78) -> 0
C253: TOTAL FEED COST | M253: =SUM(M240:M244,M250:M252) -> 111
C256: GM SENSITIVITY
C257: Gross Margin/DSE | E257: Average Weaning Rate
G258: 1.1 | I258: 1.2 | K258: 1.3 | M258: 1.4 | O258: 1.5 | Q258: 1.6
E259: 117 | G259: =($E$199*G$258*$E259*(1-$K$124)+SUM($K$209:$K$210)+$K$235-$AK$57-$E$199*G$258*$AO$52)/$E$197 -> -3333.084341 | I259: =($E$199*I$258*$E259*(1-$K$124)+SUM($K$209:$K$210)+$K$235-$AK$57-$E$199*I$258*$AO$52)/$E$197 -> -3332.825411 | K259: =($E$199*K$258*$E259*(1-$K$124)+SUM($K$209:$K$210)+$K$235-$AK$57-$E$199*K$258*$AO$52)/$E$197 -> -3332.566481 | M259: =($E$199*M$258*$E259*(1-$K$124)+SUM($K$209:$K$210)+$K$235-$AK$57-$E$199*M$258*$AO$52)/$E$197 -> -3332.307552 | O259: =($E$199*O$258*$E259*(1-$K$124)+SUM($K$209:$K$210)+$K$235-$AK$57-$E$199*O$258*$AO$52)/$E$197 -> -3332.048622 | Q259: =($E$199*Q$258*$E259*(1-$K$124)+SUM($K$209:$K$210)+$K$235-$AK$57-$E$199*Q$258*$AO$52)/$E$197 -> -3331.789692
E260: 122 | G260: -3330.259612 | I260: -3329.743889 | K260: -3329.228166 | M260: -3328.712443 | O260: -3328.19672 | Q260: -3327.680997
C261: Average Lamb Sale Price($/hd) | E261: 127 | G261: -3327.434884 | I261: -3326.662368 | K261: -3325.889851 | M261: -3325.117334 | O261: -3324.344818 | Q261: -3323.572301
E262: 132 | G262: -3324.610156 | I262: -3323.580846 | K262: -3322.551536 | M262: -3321.522226 | O262: -3320.492916 | Q262: -3319.463605
E263: 137 | G263: -3321.785428 | I263: -3320.499324 | K263: -3319.213221 | M263: -3317.927117 | O263: -3316.641013 | Q263: -3315.35491
E264: 142 | G264: -3318.960699 | I264: -3317.417802 | K264: -3315.874905 | M264: -3314.332008 | O264: -3312.789111 | Q264: -3311.246214
E265: 147 | G265: -3316.135971 | I265: -3314.336281 | K265: -3312.53659 | M265: -3310.7369 | O265: -3308.937209 | Q265: -3307.137518
E266: 152 | G266: -3313.311243 | I266: -3311.254759 | K266: -3309.198275 | M266: -3307.141791 | O266: -3305.085307 | Q266: -3303.028823
E267: 157 | G267: -3310.486515 | I267: -3308.173237 | K267: -3305.85996 | M267: -3303.546682 | O267: -3301.233405 | Q267: -3298.920127
E268: 162 | G268: -3307.661786 | I268: -3305.091715 | K268: -3302.521644 | M268: -3299.951573 | O268: -3297.381502 | Q268: -3294.811432
E269: 167 | G269: -3304.837058 | I269: -3302.010194 | K269: -3299.183329 | M269: -3296.356465 | O269: -3293.5296 | Q269: -3290.702736

Sheet Prime Lambs Merino Ewes Input (hidden)
C1: Prime Lambs Merino Ewes
C2: =UPPER(var_animal)&" GROSS MARGIN - "&TEXT(m_year,"0000") -> PRIME LAMBS MERINO EWES GROSS MARGIN - 2025
C4: GENERAL INFORMATION
C5: This represents a Merino Ewe enterprise mated to a terminal sire. All ewe replacements are purchased, but age of replacements can be varied from 1.5 years to 4.5 years. NB. Can be bought from own self-replacing merino enterprise. Following are the various assumptions used in the calculation of the Gross Margin. Cells with yellow highlight can be changed. No allowance has been made for pasture expenses such as seed, fertiliser and chemicals. Refer to pasture gross margins in the “Cropping Gross Margin Plan” for annual and perennial pasture costs. Use the livestock gross margin per DSE as income for the pasture gross margin.
C7: Ewes mated | E7: 1000 | H7: ="Estimated "&TEXT(m_year,"0000")&" Sheep Sale Prices" -> Estimated 2025 Sheep Sale Prices
C8: Age ewes purchased | E8: 1.5 | I8: Agricultural | J8: Pastoral
C9: Age ewes sold | E9: 5.5 | H9: Store lambs 35kg lwt | I9: 125 | J9: 115
C10: Av Weaning % | E10: 1.1 | H10: Wether lambs 55 kg lwt | I10: 210 | J10: 200
C11: Ram percentage | E11: 0.025 | H11: Cast for age ewes | I11: 110 | J11: 100
C12: Years Rams Kept | E12: 3 | H12: Cast for age rams | I12: 20 | J12: 20
C13: Flock death Rate | E13: 0.03
C14: % Lambs carried over | E14: 0
C17: LIVESTOCK SALES | E17: Price/Hd | F17: Number | G17: Total
C18: c.f.a Ewes | E18: 110 | F18: ='Prime Lambs Merino Ewes'!AG220 -> 231.53548 | G18: =E18*ROUND(F18,0) -> 25520
C19: c.f.a Rams | E19: 20 | F19: ='Prime Lambs Merino Ewes'!AG238 -> 7.838409083 | G19: =E19*ROUND(F19,0) -> 160
C20: Finished Lambs 55kg+ | E20: 210 | F20: ='Prime Lambs Merino Ewes'!AG227-F21 -> 1000 | G20: =E20*ROUND(F20,0) -> 210000
C21: Store Lambs | E21: 125 | F21: 100 | G21: =E21*ROUND(F21,0) -> 12500
C25: TOTAL SALES | F25: =SUM(F18:F23) -> 1339.373889 | G25: =SUM(G18:G23) -> 248180
C28: LIVESTOCK PURCHASES | E28: Price/Hd | F28: Number | G28: Total
C29: Ewes | E29: 70 | F29: ='Prime Lambs Merino Ewes'!AD220 -> 261.53548 | G29: =E29*F29 -> 18307.4836 | H29: Change Ewe price depending on
C30: Rams | E30: 1200 | F30: ='Prime Lambs Merino Ewes'!AD238 -> 8.588409083 | G30: =E30*F30 -> 10306.0909 | H30: age purchased.
C32: TOTAL PURCHASES | F32: =SUM(F29:F30) -> 270.1238891 | G32: =SUM(G29:G30) -> 28613.5745
C35: WOOL PRICE (cents/kg) | F35: =TEXT(m_year-3,"0000")&" Average (Clean)" -> 2022 Average (Clean) | G35: =TEXT(m_year-2,"0000")&" Average (Clean)" -> 2023 Average (Clean) | H35: =TEXT(m_year-1,"0000")&" Average (Clean)" -> 2024 Average (Clean) | I35: Budget Base (Clean) | J35: Budget Base (Greasy) | L35: Wool Type | M35: Estimated Clean Price
E36: Wool- Med Rainfall 21 mic 68% yield | F36: 1271 | G36: 1340 | H36: 1373 | I36: 1320 | J36: =I36*I37 -> 897.6 | L36: 19 mic | M36: 1430
E37: Estimated wool yield | I37: 0.68 | L37: 21 mic | M37: 1320
C38: Allow 90% to account for lower value of bellies, skirtings etc. | J38: =J36*0.9 -> 807.84 | L38: 22 mic | M38: 1280
C42: WOOL SALES - SHEARING | F42: Wool Cut
E43: Number | F43: kg/hd | G43: Price | H43: Total
C44: Ewes | E44: ='Prime Lambs Merino Ewes'!E226 -> 970 | F44: 6.5 | G44: =J36/100 -> 8.976 | H44: =E44*F44*G44 -> 56593.68
C45: Crossbred Rams | E45: ='Prime Lambs Merino Ewes'!E227 -> 24.25 | F45: 3 | G45: 1.728 | H45: =E45*F45*G45 -> 125.712
C47: TOTAL | E47: =SUM(E44:E46) -> 994.25 | F47: =(E44*F44)+(E45*F45) -> 6377.75 | H47: =SUM(H44:H46) -> 56719.392
C50: STOCK HEALTH REQUIREMENTS | E50: =HYPERLINK("http://paraboss.com.au","for more info on drench, lice and blowfly product selection refer to www.paraboss.com.au") -> for more info on drench, lice and blowfly product selection refer to www.paraboss.com.au
G51: Number of times | J51: Dosage in ml
E52: Number | F52: Drench | G52: Vacc. | H52: Blowfly | I52: Drench | J52: Vacc. | K52: Blowfly
C53: Ewes | E53: ='Prime Lambs Merino Ewes'!E219 -> 1000 | F53: 1 | G53: 1 | H53: 1 | I53: 13 | J53: 1 | K53: 24
C54: Rams | E54: ='Prime Lambs Merino Ewes'!E220 -> 25 | F54: 2 | G54: 1 | H54: 0 | I54: 18 | J54: 1 | K54: 24
C55: Lambs | E55: ='Prime Lambs Merino Ewes'!E221 -> 1100 | F55: 1 | G55: 2 | H55: 0 | I55: 8 | J55: 1 | K55: 24
H56: Product Cost per litre | I56: 75 | J56: 235 | K56: 70
C57: TOTAL | E57: =SUM(E53:E55) -> 2125 | F57: =SUMPRODUCT($E$53:$E$55,F53:F55) -> 2150 | G57: =SUMPRODUCT($E$53:$E$55,G53:G55) -> 3225 | H57: =SUMPRODUCT($E$53:$E$55,H53:H55) -> 1000
C60: FEEDING
C61: hay/straw/grain/pellets | F61: Feed 1 | G61: Kgs Fed | H61: No of | I61: Feed 2 | J61: Kgs Fed | K61: No of | L61: Feed 3 | M61: Kgs Fed | N61: No of | O61: Total
E62: Number | F62: Cost ($/T) | G62: per Week | H62: Weeks | I62: Cost ($/T) | J62: per Week | K62: Weeks | L62: Cost ($/T) | M62: per Week | N62: Weeks | O62: Cost
C63: Ewes | E63: ='Merino SR'!E213 -> 375 | F63: 300 | G63: 2 | H63: 12 | I63: 370 | J63: 1 | K63: 12 | L63: 250 | M63: 1 | N63: 12 | O63: =(E63*G63*H63)/1000*F63+(E63*J63*K63)/1000*I63+(E63*M63*N63)/1000*L63 -> 5490
O64: 0
C65: Lambs | E65: 950 | F65: 300 | G65: 2 | H65: 6 | I65: 370 | J65: 0.5 | K65: 6 | O65: 4474.5
C66: Rams | E66: 15 | I66: 370 | J66: 2 | K66: 10 | O66: 111
O67: 0
C74: Supplements | G74: Kgs Fed | H74: No weeks | I74: Total
E75: Number | F75: Cost ($/kg) | G75: per week | H75: of Feeding | I75: Cost ($)
C76: Ewes | I76: =(H76*G76*E76)*F76 -> 0
C77: Rams | I77: =(H77*G77*E77)*F77 -> 0
C78: Lambs | I78: =(H78*G78*E78)*F78 -> 0
H80: Total Feed Cost | I80: =SUM(O63:O67,I76:I78) -> 10075.5

Sheet Prime Lambs Merino Ewes (hidden)
C1: Prime Lambs Merino Ewes
C2: =UPPER(Var_Animal)&" GROSS MARGIN - "&TEXT(m_year,"0000") -> PRIME LAMBS MERINO EWES GROSS MARGIN - 2025
C4: ASSUMPTIONS
C6: Ave Breeding Ewe Fibre Diameter | E6: 21 | O6: Total DSE's | Q6: =E197 -> 1850
C7: No. of breeding ewes (1st Cross) | E7: ='Prime Lambs Merino Ewes Input'!$E$7 -> 1000
C8: 1st cross ewe - Terminal meat sire
C32: INCOME | Q32: $
C34: Wool (kg greasy) | E34: =G234 -> 6377.75 | G34: kg | I34: av price | K34: =K234*100/G234*0.9 -> 800.3990875 | M34: c/kg | Q34: =K234 -> 56719.392
C35: Sales | E35: =E212 -> 1339.373889 | G35: animals | I35: av price | K35: =G212 -> 185.254971 | M35: /head | Q35: =K212 -> 248180
C37: Gross Income | Q37: =SUM(Q34:Q35) -> 304899.392
AA45: STOCK VALUE AND D.S.E REQUIREMENT | AG45: Non lamb related expenses | AM45: Lamb Costs | AN45: No: | AO45: per head | AS45: SHEEP GROSS MARGIN
C46: VARIABLE COSTS | AC46: Value | AD46: Ave Live | AE46: DSE | AS46: PRIME LAMB -
C47: Shearing | K47: Rate | AB47: Number | AC47: $/head | AD47: Wt (Kgs) | AE47: rating | AG47: Shearing | AJ47: =SUM(Q48:Q58) -> 10959.85696 | AM47: Marking | AN47: =$E$121 -> 1100 | AO47: =K76+K77 -> 3.82 | AP47: =AN47*AO47 -> 4202
C48: Shearing | E48: =E226 -> 970 | G48: sheep | I48: Reset Rate> | J48: =GM_INFO!C79 | K48: =GM_INFO!C79 -> 381.58 | M48: /100 | Q48: =K48/100*ROUND(E48,0) -> 3701.326 | X48: Most Shearing contractors charge | AA48: ewes | AB48: ='Prime Lambs Merino Ewes Input'!$E$7 -> 1000 | AC48: =(G209+G214)/2 -> 90 | AD48: 55 | AE48: =IF(AND(AD48>=55,AD48<60),1.8,IF(AND(AD48>=60,AD48<65),2.5,IF(AND(AD48>=65,AD48<70),1.9,IF(AND(AD48>=70,AD48<75),2,IF(AND(AD48>=75,AD48<80),2.1,IF(AND(AD48>=80,AD48<85),2.2,IF(AND(AD48>=85,AD48<90),2.3,IF(AD48>=90,2.4,0)))))))) -> 1.8 | AG48: Animal health | AJ48: =(E219*G219+E220*G220)*K90+(E219*I219+E220*I220)*K91+(E219*K219)*K92 -> 4480179.605 | AM48: Animal health | AN48: =$E$121 -> 1100 | AO48: =G220*K91+I220*K90 -> 82.06418605 | AP48: =AN48*AO48 -> 90270.60465
C49: (Federal awards) | E49: =E227 -> 24.25 | G49: rams | I49: Reset Rate> | J49: =GM_INFO!C80 | K49: =GM_INFO!C80 -> 763.16 | M49: /100 | Q49: =K49/100*ROUND(E49,0) -> 183.1584 | X49: 15% or more above the Federal Award rate. | AA49: rams | AB49: ='Prime Lambs Merino Ewes Input'!E11*'Prime Lambs Merino Ewes'!AB48 -> 25 | AC49: =(G210+G215)/2 -> 610 | AD49: 100 | AE49: 2 | AG49: Stock Purchase | AJ49: =SUM(Q105:Q105) -> 28613.5745 | AM49: Freight | AN49: =$E$121 -> 1100 | AO49: =K121 -> 7 | AP49: =AN49*AO49 -> 7700
C50: Shed labour | E50: 5 | G50: days | I50: Reset Rate> | J50: =GM_INFO!C81 | K50: =GM_INFO!C81 -> 289.4 | M50: /day | Q50: =K50*ROUND(E50,0) -> 1447 | AA50: lambs | AB50: =AC227 -> 1100 | AC50: =G211/2 -> 101.1363636 | AD50: 35 | AE50: 0 | AG50: Freight | AH50: sheep | AJ50: =SUM(Q119:Q120) -> 3503.74836 | AM50: Yard Fees | AN50: =$E$121 -> 1100 | AO50: =K125 -> 1 | AP50: =AN50*AO50 -> 1100
C51: Woolclasser | E51: 2.5 | G51: days | I51: Reset Rate> | J51: =GM_INFO!C82 | K51: =GM_INFO!C82 -> 350.85 | M51: /day | Q51: =K51*E51 -> 877.125 | AA51: TOTAL | AB51: =SUM(AB48:AB50) -> 2125 | AC51: =AB48*AC48+AB49*AC49+AB50*AC50/2 -> 160875 | AH51: Wool | AJ51: =Q122 -> 570 | AM51: Levies | AN51: =$E$121 -> 1100 | AO51: =K127+K128 -> 2.67 | AP51: =AN51*AO51 -> 2937 | AS51: Ewes mated | AU51: ='Prime Lambs Merino Ewes Input'!$E$7 -> 1000 | AX51: Ram % | AY51: =E200 -> 0.025
C52: Superannuation (on ord wages only) | I52: Reset Rate> | J52: =GM_INFO!C83 | K52: =GM_INFO!C83 -> 0.115 | M52: wages | Q52: =(Q48+Q49+Q50+Q51)*K52 -> 713.990081 | AG52: Commission on livestock sales | AJ52: =(K209+K210)*K124 -> 1412.4 | AO52: =SUM(AO47:AO51) -> 96.55418605 | AQ52: =AO52*AD50 -> 3379.396512 | AS52: Age ewes purchased | AU52: =E201 -> 1.5 | AX52: Price of rams | AY52: =AL68 -> 0
C53: W/Cover (incl. super + otime etc) | I53: Reset Rate> | J53: =GM_INFO!C84 | K53: =GM_INFO!C84 -> 0.04 | M53: total | Q53: =(Q48+Q49+Q50+Q51+Q52)*K53 -> 276.9039792 | AG53: Yard fees | AJ53: =E119*K125 -> 239.3738891 | AM53: Commission | AN53: =$E$121 -> 1100 | AO53: =G212 -> 185.254971 | AP53: =K124 -> 0.055 | AQ53: =AD50*AO53*AP53 -> 356.6158192 | AS53: Age ewes sold | AU53: =E202 -> 5.5 | AX53: Years rams kept | AY53: =E203 -> 3
C54: Wool packs | E54: =E122 -> 37.51617647 | G54: packs | I54: Reset Rate> | J54: =GM_INFO!C77 | K54: =GM_INFO!C77 -> 15 | M54: /pack | Q54: =K54*ROUND(E54,0) -> 570 | AG54: Levies | AJ54: =E126*(K126+K128) -> 208.2552835 | AS54: Av Weaning % | AU54: ='Prime Lambs Merino Ewes Input'!E10 -> 1.1 | AX54: Age wethers sold | AY54: 0.5
C55: Shed sundries | E55: =E48+E49 -> 994.25 | G55: sheep | I55: Reset Rate> | J55: =GM_INFO!C85 | K55: =GM_INFO!C85 -> 0.22 | M55: /head | Q55: =K55*ROUND(E55,0) -> 218.68 | AG55: Wool Selling Charges | AJ55: =Q130+Q131 -> 2572.78338 | AQ55: =SUM(AQ43:AQ53) -> 3736.012331 | AS55: dse/ewe | AU55: =AE48 -> 1.8 | AX55: Flock death rate | AY55: =E204 -> 0.03
C56: Lice control | E56: =E48+E49 -> 994.25 | G56: sheep | I56: Reset Rate> | J56: =GM_INFO!C66 | K56: =GM_INFO!C66 -> 1.64 | M56: /head | Q56: =K56*ROUND(E56,0) -> 1630.16 | AG56: Feed & other costs | AJ56: =SUM(Q144:Q149) -> 9418.9375
C57: Crutch & Wig | E57: =E48+2*E49 -> 1018.5 | G57: ewes | I57: Reset Rate> | J57: =GM_INFO!C87 | K57: =GM_INFO!C87 -> 131.65 | M57: /100 | Q57: =K57/100*ROUND(E57,0) -> 1341.5135 | AK57: =SUM(AJ47:AJ56) -> 4537678.535
E58: 0 | G58: lambs | I58: Reset Rate> | J58: =GM_INFO!C87 | K58: =GM_INFO!C87 -> 131.65 | M58: /100 | Q58: =K58/100*ROUND(E58,0) -> 0
AS60: EWES | AT60: OPENING | AU60: NATURAL | AV60: PURCHASES | AW60: DEATHS | AX60: % sold | AY60: SALES | AZ60: CLOSING
AS61: AGE | AT61: NUMBERS | AU61: INCREASE | AX61: culled | AZ61: NUMBERS
AS63: 0.5-1.5yr | AV63: =IF($N$78=1.5,AT64,AT63-AW63) -> 0 | AY63: =AT63-AW63 -> 0 | AZ63: =AT63+AU63+AV63-AW63-AY63 -> 0
AS64: 1.5-2.5yr | AT64: =IF(AU52=1.5,AU51/(1+(1-AY55)*(1-AX64)*(1+(1-AY55)*(1-AX65)*(1+(1-AY55)*(1-AX66)*(1+(1-AY55)*(1-AX67))))),0) -> 261.53548 | AV64: =IF(AU52=2.5,AT65-AY64,0) -> 0 | AW64: =AT64*$R$81 -> 0 | AY64: =(AT64-AW64)*AX64 -> 0 | AZ64: 261.53548
AS65: 2.5-3.5yr | AT65: =IF(AU52=2.5,AU51/(1+(1-AY55)*(1-AX65)*(1+(1-AY55)*(1-AX66)*(1+(1-AY55)*(1-AX67)))),AZ64) -> 261.53548 | AV65: =IF(AU52=3.5,AT66-AY65,0) -> 0 | AW65: =AT65*$R$81 -> 0 | AY65: =(AT65-AW65)*AX65 -> 0 | AZ65: 261.53548
AS66: 3.5-4.5yr | AT66: =IF(AU52=3.5,AU51/(1+(1-AY55)*(1-AX66)*(1+(1-AY55)*(1-AX67))),AZ65) -> 261.53548 | AV66: =IF(AU52=4.5,AT67-AY66,0) -> 0 | AW66: =AT66*$R$81 -> 0 | AY66: =(AT66-AW66)*AX66 -> 0 | AZ66: 261.53548
AS67: 4.5-5.5yr | AT67: =IF(AU52=4.5,AU51/(1+(1-AY55)*(1-AX67)),AZ66) -> 261.53548 | AW67: =AT67*$R$81 -> 0 | AX67: =IF(AU53=5.5,1,0) -> 1 | AY67: =(AT67-AW67)*AX67 -> 261.53548 | AZ67: 0
AS68: 5.5-6.5yr | AT68: =AZ67 -> 0 | AW68: =AT68*$R$81 -> 0 | AX68: =IF(AU53=6.5,1,0) -> 0 | AY68: =(AT68-AW68)*AX68 -> 0 | AZ68: 0
AS69: Ewes | AT69: =SUM(AT64:AT68) -> 1046.14192 | AV69: =AV63+AV64+AV65+AV66 -> 0 | AW69: =SUM(AW63:AW68) -> 0 | AY69: =SUM(AY64:AY68) -> 261.53548 | AZ69: =SUM(AZ63:AZ67) -> 784.6064401
AS70: d.s.e's | AT70: =AT63+AT69*AU55 -> 1883.055456
AS73: LAMBS | AT73: OPENING | AU73: NATURAL | AV73: PURCHASES | AW73: DEATHS | AX73: % sold | AY73: SALES | AZ73: CLOSING
AS74: AGE | AT74: NUMBERS | AU74: INCREASE | AX74: culled | AZ74: NUMBERS
C75: Marking
C76: Lamb marking | E76: =AC227 -> 1100 | G76: lambs | I76: Reset Rate> | J76: =GM_INFO!C91 | K76: =GM_INFO!C91 -> 1.5 | M76: /head | Q76: =K76*ROUND(E76,0) -> 1650 | AS76: 0-0.5yr | AU76: =AU51*AU54 -> 1100 | AX76: 1 | AY76: =AU76*AX76 -> 1100 | AZ76: =AT76+AU76+AV76-AW76-AY76 -> 0
C77: Ear tags | E77: =AC227 -> 1100 | G77: lambs | I77: Reset Rate> | J77: =GM_INFO!C92 | K77: =GM_INFO!C92 -> 2.32 | M77: /head | Q77: =K77*ROUND(E77,0) -> 2552
C78: Pain Relief | E78: =AC227 -> 1100 | G78: lambs | I78: Reset Rate> | J78: =GM_INFO!C93 | K78: =GM_INFO!C93 -> 2 | M78: /head | Q78: =K78*ROUND(E78,0) -> 2200
AS79: RAMS | AT79: OPENING | AU79: NATURAL | AV79: PURCHASES | AW79: DEATHS | AX79: % sold | AY79: SALES | AZ79: CLOSING
AS80: AGE | AT80: NUMBERS | AU80: INCREASE | AX80: culled | AZ80: NUMBERS
AS82: 0.5-1.5yr | AV82: =AT83/(1-AX82) -> 8.588409083 | AW82: =AT82*$R$81 -> 0 | AZ82: =AT82+AU82+AV82-AW82-AY82 -> 8.588409083
AS83: 1.5-2.5yr | AT83: =IF(AY53=3,(AU51*AY51)/(1+(1-AY55)*(1-AX83)*(1+(1-AY55)*(1-AX84)*(1+(1-AY55)*(1-AX85)))),IF(AY53=4,(AU51*AY51)/(1+(1-AY55)*(1-AX83)*(1+(1-AY55)*(1-AX84)*(1+(1-AY55)*(1-AX85)*(1+(1-AY55)*(1-AX86))))),0)) -> 8.588409083 | AW83: =AT83*$R$81 -> 0 | AZ83: =AT83+AU83+AV83-AW83-AY83 -> 8.588409083
AS84: 2.5-3.5yr | AT84: =AZ83 -> 8.588409083 | AW84: =AT84*$R$81 -> 0 | AZ84: =AT84+AU84+AV84-AW84-AY84 -> 8.588409083
AS85: 3.5-4.5yr | AT85: =AZ84 -> 8.588409083 | AW85: =AT85*$R$81 -> 0 | AX85: =IF(AY53=3,100%,0) -> 1 | AY85: =(AT85-AW85)*AX85 -> 8.588409083 | AZ85: =AT85+AU85+AV85-AW85-AY85 -> 0
AS86: 4.5-5.5yr | AT86: =AZ85 -> 0 | AW86: =AT86*$R$81 -> 0 | AX86: =IF(AY53=4,100%,0) -> 0 | AY86: =AT86-AW86 -> 0 | AZ86: =AT86+AU86+AV86-AW86-AY86 -> 0
AT87: =AT82+AT83+AT84+AT85+AT86 -> 25.76522725 | AV87: =AV82+AV83+AV84+AV85+AV86 -> 8.588409083 | AW87: =AW82+AW83+AW84+AW85+AW86 -> 0 | AY87: =AY82+AY83+AY84+AY85+AY86 -> 8.588409083 | AZ87: =AZ82+AZ83+AZ84+AZ85+AZ86 -> 25.76522725
AS88: d.s.e's | AT88: =AT87*AE49 -> 51.5304545
C89: Animal Health
C90: Drench | E90: ='Prime Lambs Merino Ewes Input'!F57 -> 2150 | G90: sheep | J90: =GM_INFO!C69 | K90: =Q90/E90 -> 0.7920930233 | M90: /head | Q90: =ROUND(G222,0) -> 1703
C91: Vaccinate | E91: ='Prime Lambs Merino Ewes Input'!G57 -> 3225 | G91: sheep | J91: =GM_INFO!C72 | K91: 0.94 | M91: /head | Q91: =I222 -> 3031.5
C92: Blowfly control | E92: ='Prime Lambs Merino Ewes Input'!H57 -> 1000 | G92: sheep | J92: =GM_INFO!C76 | K92: 1.68 | M92: /head | Q92: =K222 -> 1680
C104: Stock purchases
C105: Purchases | Q105: =K214+K215 -> 28613.5745
C117: Sale Costs
C118: Freight
C119: Livestock | E119: =SUM(E209:E210) -> 239.3738891 | G119: culls | I119: Reset Rate> | J119: =GM_INFO!B161 | K119: =GM_INFO!B161 -> 7 | M119: /head | Q119: =K119*ROUND(E119,0) -> 1673
E120: =E214 -> 261.53548 | G120: ewes | I120: Reset Rate> | J120: =GM_INFO!B162 | K120: =GM_INFO!B162 -> 7 | M120: /head | Q120: =K120*E120 -> 1830.74836
E121: =E211 -> 1100 | G121: prime lambs | I121: Reset Rate> | J121: =GM_INFO!B163 | K121: =GM_INFO!B163 -> 7 | M121: /head | Q121: =K121*ROUND(E121,0) -> 7700
C122: Wool | E122: =G234/170 -> 37.51617647 | G122: bales | I122: Reset Rate> | J122: =GM_INFO!B164 | K122: =GM_INFO!B164 -> 15 | M122: /bale | Q122: =K122*ROUND(E122,0) -> 570
C123: Stock selling charges
C124: Commission/insurance | I124: Reset Rate> | J124: =GM_INFO!C98 | K124: =GM_INFO!C98 -> 0.055 | M124: gross $ | Q124: =K124*Q35 -> 13649.9
C125: Yard fees | E125: =E212 -> 1339.373889 | G125: sheep | I125: Reset Rate> | J125: =GM_INFO!C99 | K125: =GM_INFO!C99 -> 1 | M125: /head | Q125: =K125*ROUND(E125,0) -> 1339
C126: Levy-sheep | E126: =E119 -> 239.3738891 | G126: sheep | I126: Reset Rate> | J126: =GM_INFO!C100 | K126: =GM_INFO!C100 -> 0.2 | M126: /head | Q126: =K126*ROUND(E126,0) -> 47.8
C127: Levy-lambs | E127: =E211 -> 1100 | G127: sheep | I127: Reset Rate> | J127: =GM_INFO!C101 | K127: =GM_INFO!C101 -> 2 | M127: /head | Q127: =K127*ROUND(E127,0) -> 2200
C128: SA sheep industry levy | E128: =E212 -> 1339.373889 | G128: sheep | I128: Reset Rate> | J128: =GM_INFO!C102 | K128: =GM_INFO!C102 -> 0.67 | M128: /head | Q128: =K128*ROUND(E128,0) -> 897.13
C129: Wool selling charges
C130: Brokerage/testing/insurance | I130: Reset Rate> | J130: =GM_INFO!C103 | K130: =GM_INFO!C103 -> 0.27 | M130: /kg | Q130: =K130*E34 -> 1721.9925
C131: Wool levy | I131: Reset Rate> | J131: =GM_INFO!C104 | K131: =GM_INFO!C104 -> 0.015 | M131: gross | Q131: =K131*Q34 -> 850.79088
C143: Feed and Other Costs
C144: Hay | Q144: =SUM('Prime Lambs Merino Ewes Input'!I63:I64) -> 370
C145: Grain | Q145: =SUM('Prime Lambs Merino Ewes Input'!I69:I70,'Prime Lambs Merino Ewes Input'!I75:I77) -> 0
C146: Insurance | E146: =AC51 -> 160875 | G146: value | I146: Reset Rate> | J146: =GM_INFO!B157 | K146: =GM_INFO!B157 -> 4.5 | M146: /$'000 | Q146: =K146/1000*E146 -> 723.9375
C147: Water | E147: =$Q$6 -> 1850 | G147: DSE's | I147: Reset Rate> | J147: =GM_INFO!E130 | K147: =GM_INFO!E130 -> 2.5 | M147: /DSE's | Q147: =K147*E147 -> 4625
C148: Veh Fuel, R&M | E148: =$Q$6 -> 1850 | G148: DSE's | I148: Reset Rate> | J148: =GM_INFO!E131 | K148: =GM_INFO!E131 -> 1.5 | M148: /DSE's | Q148: =K148*E148 -> 2775
C149: Other | E149: =$Q$6 -> 1850 | G149: DSE's | I149: Reset Rate> | J149: =GM_INFO!E132 | K149: =GM_INFO!E132 -> 0.5 | M149: /DSE's | Q149: =K149*E149 -> 925
C170: TOTAL VARIABLE COSTS | Q170: =SUM(Q48:Q166) -> 94289.2307
C172: GROSS MARGIN TOTAL | Q172: =Q37-Q170 -> 210610.1613
C174: GROSS MARGIN/DSE | Q174: =Q172/Q6 -> 113.8433304
C194: PRODUCTION DATA
C196: Stocking rate (DSE/Ha) | E196: 6 | K196: Culling Rate (% from each group) | AA196: SHEEP GROSS MARGIN
C197: Total DSE's | E197: =SUMPRODUCT(AB48:AB50,AE48:AE50) -> 1850 | K197: Age Group | M197: Ewes | O197: Wethers | AA197: PRIME LAMB -
C198: SHEEP GRAZING AREA | E198: =E197/E196 -> 308.3333333 | K198: 0.5 | M198: =AF214 -> 0
C199: Number of ewes mated | E199: ='Prime Lambs Merino Ewes Input'!E7 -> 1000 | K199: 1.5 | M199: 0
C200: Ram percentage | E200: ='Prime Lambs Merino Ewes Input'!E11 -> 0.025 | K200: 2.5 | M200: 0
C201: Age ewes bought (yrs) | E201: ='Prime Lambs Merino Ewes Input'!E8 -> 1.5 | K201: 3.5 | M201: 0
C202: Age ewes culled | E202: ='Prime Lambs Merino Ewes Input'!E9 -> 5.5 | K202: 4.5 | M202: 1 | AA202: Ewes mated | AC202: ='Prime Lambs Merino Ewes Input'!E7 -> 1000 | AF202: Ram % | AG202: =E200 -> 0.025
B203: =VLOOKUP(r[0]c3&"No Ops",CHOOSE({1,2},tbl_ops[Name]&tbl_ops[Category],INDIRECT("tbl_ops["&var_crop&"]")),2,0) | C203: Years rams kept | E203: ='Prime Lambs Merino Ewes Input'!E12 -> 3 | K203: 5.5 | M203: 0 | AA203: Age ewes purchased | AC203: =E201 -> 1.5 | AF203: Price of rams | AG203: =G215 -> 1200
B204: =VLOOKUP(r[0]c3&"No Ops",CHOOSE({1,2},tbl_ops[Name]&tbl_ops[Category],INDIRECT("tbl_ops["&var_crop&"]")),2,0) | C204: Flock death rate | E204: ='Prime Lambs Merino Ewes Input'!E13 -> 0.03 | K204: 6.5 | M204: 0 | AA204: Age ewes sold | AC204: =E202 -> 5.5 | AF204: Years rams kept | AG204: =E203 -> 3
B205: =VLOOKUP(r[0]c3&"No Ops",CHOOSE({1,2},tbl_ops[Name]&tbl_ops[Category],INDIRECT("tbl_ops["&var_crop&"]")),2,0) | C205: Average weaning rate | E205: =AC205 -> 1.1 | AA205: Av Weaning % | AC205: ='Prime Lambs Merino Ewes Input'!E10 -> 1.1 | AF205: Age wethers sold | AG205: 0.5
B206: =VLOOKUP(r[0]c3&"No Ops",CHOOSE({1,2},tbl_ops[Name]&tbl_ops[Category],INDIRECT("tbl_ops["&var_crop&"]")),2,0) | C206: % Lambs carried over | E206: 0 | AA206: dse/ewe | AC206: =AE48 -> 1.8 | AF206: Flock death rate | AG206: =E204 -> 0.03
B207: =VLOOKUP(r[0]c3&var_rain,CHOOSE({1,2},tbl_ops[Name]&tbl_ops[Rainfall],INDIRECT("tbl_ops["&var_crop&"]")),2,0)
B208: =VLOOKUP(r[0]c3&var_rain,CHOOSE({1,2},tbl_ops[Name]&tbl_ops[Rainfall],INDIRECT("tbl_ops["&var_crop&"]")),2,0) | C208: SALES | E208: Number | G208: Price/hd | I208: Age | K208: Total
B209: =VLOOKUP(r[0]c3&var_rain,CHOOSE({1,2},tbl_ops[Name]&tbl_ops[Rainfall],INDIRECT("tbl_ops["&var_crop&"]")),2,0) | C209: c.f.a ewes | E209: =AG220 -> 231.53548 | G209: ='Prime Lambs Merino Ewes Input'!E18 -> 110 | I209: =E202 -> 5.5 | K209: =ROUND(E209,0)*G209 -> 25520
B210: =VLOOKUP(r[0]c3&var_rain,CHOOSE({1,2},tbl_ops[Name]&tbl_ops[Rainfall],INDIRECT("tbl_ops["&var_crop&"]")),2,0) | C210: c.f.a rams | E210: =AG238 -> 7.838409083 | G210: ='Prime Lambs Merino Ewes Input'!E19 -> 20 | I210: =E203+1.5 -> 4.5 | K210: =ROUND(E210,0)*G210 -> 160
C211: Lambs | E211: =AG227 -> 1100 | G211: =K211/E211 -> 202.2727273 | I211: 20 Weeks | K211: =SUM('Prime Lambs Merino Ewes Input'!G20:G21) -> 222500 | AA211: EWES | AB211: OPENING | AC211: NATURAL | AD211: PURCHASES | AE211: DEATHS | AF211: % sold | AG211: SALES | AH211: CLOSING
C212: TOTAL | E212: =SUM(E209:E211) -> 1339.373889 | G212: =SUMPRODUCT(E209:E211,G209:G211)/E212 -> 185.254971 | K212: =SUM(K209:K211) -> 248180 | AA212: AGE | AB212: NUMBERS | AC212: INCREASE | AF212: culled | AH212: NUMBERS
C213: PURCHASES | E213: Number | G213: Price/hd | I213: Age | K213: Total
C214: Ewes | E214: =AD220 -> 261.53548 | G214: ='Prime Lambs Merino Ewes Input'!E29 -> 70 | I214: =E201 -> 1.5 | K214: =E214*G214 -> 18307.4836 | AA214: 0.5-1.5yr | AD214: =IF(AC203=1.5,AB215,AB214-AE214) -> 261.53548 | AG214: =AB214-AE214 -> 0 | AH214: =AB214+AC214+AD214-AE214-AG214 -> 261.53548
C215: Rams | E215: =AD238 -> 8.588409083 | G215: ='Prime Lambs Merino Ewes Input'!E30 -> 1200 | I215: 1.5 | K215: =E215*G215 -> 10306.0909 | AA215: 1.5-2.5yr | AB215: =IF(AC203=1.5,AC202/(1+(1-AG206)*(1-AF215)*(1+(1-AG206)*(1-AF216)*(1+(1-AG206)*(1-AF217)*(1+(1-AG206)*(1-AF218))))),0) -> 261.53548 | AD215: =IF(AC203=2.5,AB216-AG215,0) -> 0 | AE215: =AB215*$AG$206 -> 7.846064401 | AG215: =(AB215-AE215)*AF215 -> 0 | AH215: 253.6894156
AA216: 2.5-3.5yr | AB216: =IF(AC203=2.5,AC202/(1+(1-AG206)*(1-AF216)*(1+(1-AG206)*(1-AF217)*(1+(1-AG206)*(1-AF218)))),AH215) -> 253.6894156 | AD216: =IF(AC203=3.5,AB217-AG216,0) -> 0 | AE216: =AB216*$AG$206 -> 7.610682469 | AG216: =(AB216-AE216)*AF216 -> 0 | AH216: 246.0787332
G217: Calculated Cost | AA217: 3.5-4.5yr | AB217: =IF(AC203=3.5,AC202/(1+(1-AG206)*(1-AF217)*(1+(1-AG206)*(1-AF218))),AH216) -> 246.0787332 | AD217: =IF(AC203=4.5,AB218-AG217,0) -> 0 | AE217: =AB217*$AG$206 -> 7.382361995 | AG217: =(AB217-AE217)*AF217 -> 0 | AH217: 238.6963712
C218: STOCK HEALTH REQUIREMENTS | E218: Number | G218: Drench | I218: Vacc. | K218: Blowfly | M218: DSE | X218: Rotation between different drench groups generally does little to slow development of drench | AA218: 4.5-5.5yr | AB218: =IF(AC203=4.5,AC202/(1+(1-AG206)*(1-AF218)),AH217) -> 238.6963712 | AE218: =AB218*$AG$206 -> 7.160891135 | AF218: =IF(AC204=5.5,1,0) -> 1 | AG218: =(AB218-AE218)*AF218 -> 231.53548 | AH218: 0
C219: Ewes | E219: ='Prime Lambs Merino Ewes Input'!E7 -> 1000 | G219: ='Prime Lambs Merino Ewes Input'!$E53*'Prime Lambs Merino Ewes Input'!F53*'Prime Lambs Merino Ewes Input'!I53/1000*'Prime Lambs Merino Ewes Input'!I$56 -> 975 | I219: ='Prime Lambs Merino Ewes Input'!$E53*'Prime Lambs Merino Ewes Input'!G53*'Prime Lambs Merino Ewes Input'!J53/1000*'Prime Lambs Merino Ewes Input'!J$56*4 -> 940 | K219: ='Prime Lambs Merino Ewes Input'!$E53*'Prime Lambs Merino Ewes Input'!H53*'Prime Lambs Merino Ewes Input'!K53/1000*'Prime Lambs Merino Ewes Input'!K$56 -> 1680 | M219: 1.8 | X219: resistance and should not be used at the expense of these three highly effective practices: | AA219: 5.5-6.5yr | AB219: =AH218 -> 0 | AE219: =AB219*$AG$206 -> 0 | AF219: =IF(AC204=6.5,1,0) -> 0 | AG219: =(AB219-AE219)*AF219 -> 0 | AH219: 0
C220: Rams | E220: =AB49 -> 25 | G220: ='Prime Lambs Merino Ewes Input'!$E54*'Prime Lambs Merino Ewes Input'!F54*'Prime Lambs Merino Ewes Input'!I54/1000*'Prime Lambs Merino Ewes Input'!I$56 -> 67.5 | I220: ='Prime Lambs Merino Ewes Input'!$E54*'Prime Lambs Merino Ewes Input'!G54*'Prime Lambs Merino Ewes Input'!J54/1000*'Prime Lambs Merino Ewes Input'!J$56*4 -> 23.5 | K220: ='Prime Lambs Merino Ewes Input'!$E54*'Prime Lambs Merino Ewes Input'!H54*'Prime Lambs Merino Ewes Input'!K54/1000*'Prime Lambs Merino Ewes Input'!K$56 -> 0 | M220: 2 | X220: • use products most effective on your property | AA220: Ewes | AB220: =SUM(AB215:AB219) -> 1000 | AD220: =AD214+AD215+AD216+AD217 -> 261.53548 | AE220: =SUM(AE214:AE219) -> 30 | AG220: =SUM(AG215:AG219) -> 231.53548 | AH220: =SUM(AH214:AH218) -> 1000
C221: Lambs | E221: =AC227 -> 1100 | G221: ='Prime Lambs Merino Ewes Input'!$E55*'Prime Lambs Merino Ewes Input'!F55*'Prime Lambs Merino Ewes Input'!I55/1000*'Prime Lambs Merino Ewes Input'!I$56 -> 660 | I221: ='Prime Lambs Merino Ewes Input'!$E55*'Prime Lambs Merino Ewes Input'!G55*'Prime Lambs Merino Ewes Input'!J55/1000*'Prime Lambs Merino Ewes Input'!J$56*4 -> 2068 | K221: ='Prime Lambs Merino Ewes Input'!$E55*'Prime Lambs Merino Ewes Input'!H55*'Prime Lambs Merino Ewes Input'!K55/1000*'Prime Lambs Merino Ewes Input'!K$56 -> 0 | X221: • use multi-active (combination) products | AA221: d.s.e's | AB221: =AB214+AB220*AC206 -> 1800
C222: TOTAL | E222: =SUM(E219:E221) -> 2125 | G222: =SUM(G219:G221) -> 1702.5 | I222: =SUM(I219:I221) -> 3031.5 | K222: =SUM(K219:K221) -> 1680 | M222: =SUMPRODUCT($E$219:$E$221,M219:M221) -> 1850 | X222: • use short-acting products
BG223: For more information: https://wormboss.com.au/tests-tools/drench-rotation-versus-combinations-to-combat-drench-resistance/
G224: Wool Cut kg/hd | AA224: LAMBS | AB224: OPENING | AC224: NATURAL | AD224: PURCHASES | AE224: DEATHS | AF224: % sold | AG224: SALES | AH224: CLOSING
C225: SHEARING | E225: Number | I225: Price | K225: Total | AA225: AGE | AB225: NUMBERS | AC225: INCREASE | AF225: culled | AH225: NUMBERS
C226: Ewes | E226: =AB220-AE220 -> 970 | G226: ='Prime Lambs Merino Ewes Input'!F44 -> 6.5 | I226: ='Prime Lambs Merino Ewes Input'!G44 -> 8.976 | K226: =I226*G226*E226 -> 56593.68
C227: Crossbred rams | E227: =AB238-AE238 -> 24.25 | G227: ='Prime Lambs Merino Ewes Input'!F45 -> 3 | I227: ='Prime Lambs Merino Ewes Input'!G45 -> 1.728 | K227: =I227*G227*E227 -> 125.712 | AA227: 0-0.5yr | AC227: =AC202*AC205 -> 1100 | AF227: 1 | AG227: =AC227*AF227 -> 1100 | AH227: =AB227+AC227+AD227-AE227-AG227 -> 0
AA230: RAMS | AB230: OPENING | AC230: NATURAL | AD230: PURCHASES | AE230: DEATHS | AF230: % sold | AG230: SALES | AH230: CLOSING
AA231: AGE | AB231: NUMBERS | AC231: INCREASE | AF231: culled | AH231: NUMBERS
AA233: 0.5-1.5yr | AD233: =AB234/(1-AF233) -> 8.588409083 | AE233: =AB233*$AG$206 -> 0 | AH233: =AB233+AC233+AD233-AE233-AG233 -> 8.588409083
C234: TOTAL | E234: =SUM(E226:E233) -> 994.25 | G234: =SUMPRODUCT(E226:E233,G226:G233) -> 6377.75 | K234: =SUM(K226:K233) -> 56719.392 | AA234: 1.5-2.5yr | AB234: =IF(AG204=3,(AC202*AG202)/(1+(1-AG206)*(1-AF234)*(1+(1-AG206)*(1-AF235)*(1+(1-AG206)*(1-AF236)))),IF(AG204=4,(AC202*AG202)/(1+(1-AG206)*(1-AF234)*(1+(1-AG206)*(1-AF235)*(1+(1-AG206)*(1-AF236)*(1+(1-AG206)*(1-AF237))))),0)) -> 8.588409083 | AE234: =AB234*$AG$206 -> 0.2576522725 | AH234: =AB234+AC234+AD234-AE234-AG234 -> 8.330756811
AA235: 2.5-3.5yr | AB235: =AH234 -> 8.330756811 | AE235: =AB235*$AG$206 -> 0.2499227043 | AH235: =AB235+AC235+AD235-AE235-AG235 -> 8.080834106
AA236: 3.5-4.5yr | AB236: =AH235 -> 8.080834106 | AE236: =AB236*$AG$206 -> 0.2424250232 | AF236: =IF(AG204=3,100%,0) -> 1 | AG236: =(AB236-AE236)*AF236 -> 7.838409083 | AH236: =AB236+AC236+AD236-AE236-AG236 -> 0
G237: Feed Cost ($/T) | I237: Kg Fed per Week | K237: No of Weeks Feeding | M237: Total Cost ($) | AA237: 4.5-5.5yr | AB237: =AH236 -> 0 | AE237: =AB237*$AG$206 -> 0 | AF237: =IF(AG204=4,100%,0) -> 0 | AG237: =AB237-AE237 -> 0 | AH237: =AB237+AC237+AD237-AE237-AG237 -> 0
C238: FEEDING | E238: Number | AB238: =AB233+AB234+AB235+AB236+AB237 -> 25 | AD238: =AD233+AD234+AD235+AD236+AD237 -> 8.588409083 | AE238: =AE233+AE234+AE235+AE236+AE237 -> 0.75 | AG238: =AG233+AG234+AG235+AG236+AG237 -> 7.838409083 | AH238: =AH233+AH234+AH235+AH236+AH237 -> 25
C239: Ewes | E239: ='Prime Lambs Merino Ewes Input'!E63 -> 375 | G239: =IFERROR(M239/(E239*I239/1000*K239),0) -> 305 | I239: =IFERROR(('Prime Lambs Merino Ewes Input'!G63*'Prime Lambs Merino Ewes Input'!H63+'Prime Lambs Merino Ewes Input'!J63*'Prime Lambs Merino Ewes Input'!K63+'Prime Lambs Merino Ewes Input'!M63*'Prime Lambs Merino Ewes Input'!N63)/SUM('Prime Lambs Merino Ewes Input'!H63,'Prime Lambs Merino Ewes Input'!K63,'Prime Lambs Merino Ewes Input'!N63),0) -> 1.333333333 | K239: ='Prime Lambs Merino Ewes Input'!H63+'Prime Lambs Merino Ewes Input'!K63+'Prime Lambs Merino Ewes Input'!N63 -> 36 | M239: ='Prime Lambs Merino Ewes Input'!O63 -> 5490 | AA239: d.s.e's | AB239: =AB238*AE142 -> 0
E240: ='Prime Lambs Merino Ewes Input'!E64 -> 0 | G240: =IFERROR(M240/(E240*I240/1000*K240),0) -> 0 | I240: =IFERROR(('Prime Lambs Merino Ewes Input'!G64*'Prime Lambs Merino Ewes Input'!H64+'Prime Lambs Merino Ewes Input'!J64*'Prime Lambs Merino Ewes Input'!K64+'Prime Lambs Merino Ewes Input'!M64*'Prime Lambs Merino Ewes Input'!N64)/SUM('Prime Lambs Merino Ewes Input'!H64,'Prime Lambs Merino Ewes Input'!K64,'Prime Lambs Merino Ewes Input'!N64),0) -> 0 | K240: ='Prime Lambs Merino Ewes Input'!H64+'Prime Lambs Merino Ewes Input'!K64+'Prime Lambs Merino Ewes Input'!N64 -> 0 | M240: ='Prime Lambs Merino Ewes Input'!O64 -> 0
C241: Lambs | E241: ='Prime Lambs Merino Ewes Input'!E65 -> 950 | G241: 314 | I241: =IFERROR(('Prime Lambs Merino Ewes Input'!G65*'Prime Lambs Merino Ewes Input'!H65+'Prime Lambs Merino Ewes Input'!J65*'Prime Lambs Merino Ewes Input'!K65+'Prime Lambs Merino Ewes Input'!M65*'Prime Lambs Merino Ewes Input'!N65)/SUM('Prime Lambs Merino Ewes Input'!H65,'Prime Lambs Merino Ewes Input'!K65,'Prime Lambs Merino Ewes Input'!N65),0) -> 1.25 | K241: ='Prime Lambs Merino Ewes Input'!H65+'Prime Lambs Merino Ewes Input'!K65+'Prime Lambs Merino Ewes Input'!N65 -> 12 | M241: ='Prime Lambs Merino Ewes Input'!O65 -> 4474.5
C242: Rams | E242: ='Prime Lambs Merino Ewes Input'!E66 -> 15 | G242: 370 | I242: =IFERROR(('Prime Lambs Merino Ewes Input'!G66*'Prime Lambs Merino Ewes Input'!H66+'Prime Lambs Merino Ewes Input'!J66*'Prime Lambs Merino Ewes Input'!K66+'Prime Lambs Merino Ewes Input'!M66*'Prime Lambs Merino Ewes Input'!N66)/SUM('Prime Lambs Merino Ewes Input'!H66,'Prime Lambs Merino Ewes Input'!K66,'Prime Lambs Merino Ewes Input'!N66),0) -> 2 | K242: ='Prime Lambs Merino Ewes Input'!H66+'Prime Lambs Merino Ewes Input'!K66+'Prime Lambs Merino Ewes Input'!N66 -> 10 | M242: ='Prime Lambs Merino Ewes Input'!O66 -> 111
E243: ='Prime Lambs Merino Ewes Input'!E67 -> 0 | G243: 0 | I243: =IFERROR(('Prime Lambs Merino Ewes Input'!G67*'Prime Lambs Merino Ewes Input'!H67+'Prime Lambs Merino Ewes Input'!J67*'Prime Lambs Merino Ewes Input'!K67+'Prime Lambs Merino Ewes Input'!M67*'Prime Lambs Merino Ewes Input'!N67)/SUM('Prime Lambs Merino Ewes Input'!H67,'Prime Lambs Merino Ewes Input'!K67,'Prime Lambs Merino Ewes Input'!N67),0) -> 0 | K243: ='Prime Lambs Merino Ewes Input'!H67+'Prime Lambs Merino Ewes Input'!K67+'Prime Lambs Merino Ewes Input'!N67 -> 0 | M243: ='Prime Lambs Merino Ewes Input'!O67 -> 0
K250: Supplements | M250: =SUM('Prime Lambs Merino Ewes Input'!I76:I78) -> 0
C252: TOTAL FEED COST | M252: =SUM(M239:M243,M249:M251) -> 10075.5
C255: GM SENSITIVITY
C256: Gross Margin/DSE | E256: Average Weaning Rate
G257: 0.9 | I257: 1 | K257: 1.1 | M257: 1.2 | O257: 1.3 | Q257: 1.4
E258: 100 | G258: =($E$199*G$257*$E258*(1-$K$124)+SUM($K$209:$K$210)+$K$234-$AK$57-$E$199*G$257*$AO$52)/$E$197 -> -2409.25833 | I258: =($E$199*I$257*$E258*(1-$K$124)+SUM($K$209:$K$210)+$K$234-$AK$57-$E$199*I$257*$AO$52)/$E$197 -> -2409.369367 | K258: =($E$199*K$257*$E258*(1-$K$124)+SUM($K$209:$K$210)+$K$234-$AK$57-$E$199*K$257*$AO$52)/$E$197 -> -2409.480404 | M258: =($E$199*M$257*$E258*(1-$K$124)+SUM($K$209:$K$210)+$K$234-$AK$57-$E$199*M$257*$AO$52)/$E$197 -> -2409.591441 | O258: =($E$199*O$257*$E258*(1-$K$124)+SUM($K$209:$K$210)+$K$234-$AK$57-$E$199*O$257*$AO$52)/$E$197 -> -2409.702478 | Q258: =($E$199*Q$257*$E258*(1-$K$124)+SUM($K$209:$K$210)+$K$234-$AK$57-$E$199*Q$257*$AO$52)/$E$197 -> -2409.813515
E259: 105 | G259: -2406.959681 | I259: -2406.815313 | K259: -2406.670944 | M259: -2406.526576 | O259: -2406.382208 | Q259: -2406.237839
C260: Average Lamb Sale Price($/hd) | E260: 110 | G260: -2404.661032 | I260: -2404.261259 | K260: -2403.861485 | M260: -2403.461711 | O260: -2403.061938 | Q260: -2402.662164
E261: 115 | G261: -2402.362384 | I261: -2401.707205 | K261: -2401.052026 | M261: -2400.396846 | O261: -2399.741667 | Q261: -2399.086488
E262: 120 | G262: -2400.063735 | I262: -2399.153151 | K262: -2398.242566 | M262: -2397.331982 | O262: -2396.421397 | Q262: -2395.510812
E263: 125 | G263: -2397.765086 | I263: -2396.599097 | K263: -2395.433107 | M263: -2394.267117 | O263: -2393.101127 | Q263: -2391.935137
E264: 130 | G264: -2395.466438 | I264: -2394.045042 | K264: -2392.623647 | M264: -2391.202252 | O264: -2389.780856 | Q264: -2388.359461
E265: 135 | G265: -2393.167789 | I265: -2391.490988 | K265: -2389.814188 | M265: -2388.137387 | O265: -2386.460586 | Q265: -2384.783785
E266: 140 | G266: -2390.869141 | I266: -2388.936934 | K266: -2387.004728 | M266: -2385.072522 | O266: -2383.140316 | Q266: -2381.20811
E267: 145 | G267: -2388.570492 | I267: -2386.38288 | K267: -2384.195269 | M267: -2382.007657 | O267: -2379.820046 | Q267: -2377.632434
E268: 150 | G268: -2386.271843 | I268: -2383.828826 | K268: -2381.385809 | M268: -2378.942792 | O268: -2376.499775 | Q268: -2374.056758

Sheet Lamb Trading Input (hidden)
C2: ="LAMB TRADING GROSS MARGIN - "&TEXT(m_year,"0000") -> LAMB TRADING GROSS MARGIN - 2025
C4: GENERAL INFORMATION
C5: This represents a merino Lamb flock, producing 21 micron wool. Adjust wool price if different micron wool is produced. Following are the various assumptions used in the calculation of the Gross Margin. Cells with yellow highlight can be changed. No allowance has been made for pasture expenses such as seed, fertiliser and chemicals. Refer to pasture gross margins in the “Cropping Gross Margin Plan” for annual and perennial pasture costs. Use the livestock gross margin per DSE as income for the pasture gross margin.
C7: No of Lambs | E7: 1000
C9: Age Lambs sold | E9: 0.8
C10: Age Lambs bought | E10: 0.5
C11: Lambs bought at | E11: 35 | F11: kg liveweight
C12: Lambs sold at | E12: 55 | F12: kg liveweight
C13: Flock death Rate | E13: 0.02
C14: DSE rating/Lamb | E14: 1.8
C17: LIVESTOCK SALES | E17: Price/Hd | F17: Number | G17: Total
C18: Finished Lambs | E18: 210 | F18: =(E7-E7*E13)-F19 -> 960 | G18: =E18*F18 -> 201600
C19: Store Lambs | E19: 125 | F19: 20 | G19: =E19*F19 -> 2500
C25: TOTAL SALES | F25: =SUM(F18:F23) -> 980 | G25: =SUM(G18:G23) -> 204100
C28: LIVESTOCK PURCHASES | E28: Price/Hd | F28: Number | G28: Total
C29: Lambs | E29: 110 | F29: =E7 -> 1000 | G29: =E29*F29 -> 110000
C32: TOTAL PURCHASES | F32: =SUM(F29:F30) -> 1000 | G32: =SUM(G29:G30) -> 110000
C35: WOOL PRICE (cents/kg) | F35: =TEXT(m_year-3,"0000")&" Average (Clean)" -> 2022 Average (Clean) | G35: =TEXT(m_year-2,"0000")&" Average (Clean)" -> 2023 Average (Clean) | H35: =TEXT(m_year-1,"0000")&" Average (Clean)" -> 2024 Average (Clean) | I35: Budget Base (Clean) | J35: Budget Base (Greasy) | L35: Wool Type | M35: Budget Clean Price
E36: Cereal Zone 19 mic 68% yield | F36: 1622 | G36: 1649 | H36: 1533 | I36: 1400 | J36: =I36*0.7 -> 980 | L36: 19 mic | M36: 1400
E37: Estimated wool yield | I37: 0.7 | L37: 21 mic | M37: 1320
C38: Allow 90% to account for lower value of bellies, skirtings etc. | J38: =J36*0.9 -> 882 | L38: 22 mic | M38: 1280
L39: 28 mic | M39: 370
C42: WOOL SALES - SHEARING | F42: Wool Cut | G42: Yield | H42: Average
E43: Number | F43: kg/hd | G43: % | H43: Wool Price | I43: Total
C44: Lambs | E44: 1000 | F44: 1.5 | G44: 0.7 | H44: 1400 | I44: =E44*F44*G44*H44/100 -> 14700
I45: 0
I46: 0
I47: 0
I48: 0
I49: 0
I50: 0
C52: TOTAL | E52: =SUM(E44:E51) -> 1000 | F52: =SUMPRODUCT(E44:E50,F44:F50) -> 1500 | G52: =AVERAGE(G44:G50) -> 0.7 | I52: =SUM(I44:I51) -> 14700
C55: STOCK HEALTH REQUIREMENTS | E55: =HYPERLINK("http://paraboss.com.au","for more info on drench, lice and blowfly product selection refer to www.paraboss.com.au") -> for more info on drench, lice and blowfly product selection refer to www.paraboss.com.au
G56: Number of times | K56: Dosage in ml
E57: Number | F57: Drench | G57: Vacc. | H57: Blowfly | I57: DSE rating | J57: Drench | K57: Vacc. | L57: Blowfly
C58: Lambs | E58: ='Lamb Trading'!E220 -> 1000 | F58: 1 | G58: 1 | H58: 1 | I58: 0.6 | J58: 13 | K58: 1 | L58: 24
C59: TOTAL | E59: =SUM(E58:E58) -> 1000 | F59: =SUMPRODUCT($E$58:$E$58,F58:F58) -> 1000 | G59: =SUMPRODUCT($E$58:$E$58,G58:G58) -> 1000 | H59: =SUMPRODUCT($E$58:$E$58,H58:H58) -> 1000 | I59: =SUMPRODUCT($E$58:$E$58,I58:I58) -> 600
I60: Product Cost per litre | J60: 75 | K60: 235 | L60: 70
C61: Av Live Weight | E61: 45
C62: DSE Rating | E62: 0.8
C67: FEEDING
E68: Supplementry | F68: Feed Lot | I68: Supplementry | J68: Feed Lot
E69: kg fed | F69: kg fed | G69: /animal | H69: $/tonne | I69: Total | J69: Total
C70: Oats/barley | F70: 55 | G70: kg/lamb | H70: 300 | I70: =(H70*E70)/1000 -> 0 | J70: =(H70*F70)/1000 -> 16.5 | L70: Cost per animal for 1) supplementary feeding (in paddock) and 2) containment feeding
C71: Hay | E71: 15 | F71: 10 | G71: kg/lamb | H71: 250 | I71: =(H71*E71)/1000 -> 3.75 | J71: =(H71*F71)/1000 -> 2.5
C72: Lupins | F72: 9 | G72: kg/lamb | H72: 380 | I72: =(H72*E72)/1000 -> 0 | J72: =(H72*F72)/1000 -> 3.42
C73: Supplements | F73: 1 | G73: kg/lamb | H73: 2000 | I73: =(H73*E73)/1000 -> 0 | J73: =(H73*F73)/1000 -> 2
C74: Total | I74: =SUM(I70:I73) -> 3.75 | J74: =SUM(J70:J73) -> 24.42

Sheet Lamb Trading (hidden)
C1: LAMB TRADING
C2: =UPPER(Var_Animal)&" GROSS MARGIN - "&TEXT(m_year,"0000") -> LAMB TRADING GROSS MARGIN - 2025
C4: ASSUMPTIONS
O5: Total DSE's | Q5: =E197 -> 1800
C6: Ave Lamb Fibre Diameter | E6: 20 | O6: Number of Lambs shorn | Q6: 1
C7: Number of Lambs | E7: ='Lamb Trading Input'!$E$7 -> 1000 | O7: Stocking Rate (DSE/Ha) | Q7: =E196 -> 12
C8: Lambs bought at | E8: ='Lamb Trading Input'!E11 -> 35 | G8: kg liveweight | K8: =428.571428571429/2 -> 214.2857143 | M8: c/kg liveweight
C9: Lambs sold at | E9: ='Lamb Trading Input'!E12 -> 55 | G9: kg liveweight | J9: @ | K9: 620 | M9: c/kg dwt
C32: INCOME | Q32: $
C34: Wool (kg greasy) | E34: =I234 -> 1500 | G34: kg | I34: av price | K34: ='Lamb Trading Input'!I52*100/I233*0.9 -> 882 | M34: c/kg | Q34: =E34*K34/100 -> 13230
C35: Sales | E35: =E211 -> 980 | G35: animals | I35: av price | K35: =G210 -> 146.63 | M35: /head | Q35: =K35*E35 -> 143697.4
C37: Gross Income | Q37: =SUM(Q34:Q35) -> 156927.4
AA45: STOCK VALUE AND D.S.E REQUIREMENT
C46: VARIABLE COSTS
C47: Shearing | K47: Rate
C48: Shearing | E48: =E233 -> 1000 | G48: sheep | I48: Reset Rate> | J48: =GM_INFO!C79 | K48: =GM_INFO!C79 -> 381.58 | M48: /100 | Q48: =K48/100*ROUND(E48,0) -> 3815.8 | X48: Most Shearing contractors charge
X49: 15% or more above the Federal Award rate.
C50: Shed labour | E50: 2 | G50: days | I50: Reset Rate> | J50: =GM_INFO!C81 | K50: =GM_INFO!C81 -> 289.4 | M50: /day | Q50: =K50*ROUND(E50,0) -> 578.8 | X50: 15% or more above the Federal Award rate.
C51: Woolclasser | E51: 1 | G51: days | I51: Reset Rate> | J51: =GM_INFO!C82 | K51: =GM_INFO!C82 -> 350.85 | M51: /day | Q51: =K51*E51 -> 350.85
C52: Superannuation (on ord wages only) | I52: Reset Rate> | J52: =GM_INFO!C83 | K52: =GM_INFO!C83 -> 0.115 | M52: wages | Q52: =(Q48+Q50+Q51)*K52 -> 545.72675
C53: W/Cover (incl. super + otime etc) | I53: Reset Rate> | J53: =GM_INFO!C84 | K53: =GM_INFO!C84 -> 0.04 | M53: total | Q53: =(Q48+Q49+Q50+Q51+Q52)*K53 -> 211.64707
C54: Wool packs | E54: =E122 -> 8.823529412 | G54: packs | I54: Reset Rate> | J54: =GM_INFO!C77 | K54: =GM_INFO!C77 -> 15 | M54: /pack | Q54: =K54*ROUND(E54,0) -> 135
C55: Shed sundries | E55: =E48 -> 1000 | G55: sheep | I55: Reset Rate> | J55: =GM_INFO!C85 | K55: =GM_INFO!C85 -> 0.22 | M55: /head | Q55: =K55*ROUND(E55,0) -> 220
C56: Lice control | E56: =E48 -> 1000 | G56: sheep | I56: Reset Rate> | J56: =GM_INFO!C66 | K56: =GM_INFO!C66 -> 1.64 | M56: /head | Q56: =K56*ROUND(E56,0) -> 1640
C57: Crutching | E57: 0 | G57: sheep | I57: Reset Rate> | J57: =GM_INFO!C87 | K57: =GM_INFO!C87 -> 131.65 | M57: /100 | Q57: =K57/100*ROUND(E57,0) -> 0
AS79: RAMS | AT79: OPENING | AU79: NATURAL | AV79: PURCHASES | AW79: DEATHS | AX79: % sold | AY79: SALES | AZ79: CLOSING
AS80: AGE | AT80: NUMBERS | AU80: INCREASE | AX80: culled | AZ80: NUMBERS
AS82: 0.5-1.5yr | AV82: =AT83/(1-AX82) -> 0 | AW82: =AT82*$R$81 -> 0 | AZ82: =AT82+AU82+AV82-AW82-AY82 -> 0
AS83: 1.5-2.5yr | AT83: =IF(AY53=3,(AU51*AY51)/(1+(1-AY55)*(1-AX83)*(1+(1-AY55)*(1-AX84)*(1+(1-AY55)*(1-AX85)))),IF(AY53=4,(AU51*AY51)/(1+(1-AY55)*(1-AX83)*(1+(1-AY55)*(1-AX84)*(1+(1-AY55)*(1-AX85)*(1+(1-AY55)*(1-AX86))))),0)) -> 0 | AW83: =AT83*$R$81 -> 0 | AZ83: =AT83+AU83+AV83-AW83-AY83 -> 0
AS84: 2.5-3.5yr | AT84: =AZ83 -> 0 | AW84: =AT84*$R$81 -> 0 | AZ84: =AT84+AU84+AV84-AW84-AY84 -> 0
AS85: 3.5-4.5yr | AT85: =AZ84 -> 0 | AW85: =AT85*$R$81 -> 0 | AX85: =IF(AY53=3,100%,0) -> 0 | AY85: =(AT85-AW85)*AX85 -> 0 | AZ85: =AT85+AU85+AV85-AW85-AY85 -> 0
AS86: 4.5-5.5yr | AT86: =AZ85 -> 0 | AW86: =AT86*$R$81 -> 0 | AX86: =IF(AY53=4,100%,0) -> 0 | AY86: =AT86-AW86 -> 0 | AZ86: =AT86+AU86+AV86-AW86-AY86 -> 0
AT87: =AT82+AT83+AT84+AT85+AT86 -> 0 | AV87: =AV82+AV83+AV84+AV85+AV86 -> 0 | AW87: =AW82+AW83+AW84+AW85+AW86 -> 0 | AY87: =AY82+AY83+AY84+AY85+AY86 -> 0 | AZ87: =AZ82+AZ83+AZ84+AZ85+AZ86 -> 0
AS88: d.s.e's | AT88: =AT87*AE49 -> 0
C89: Animal Health
C90: Drench | E90: ='Lamb Trading Input'!F59 -> 1000 | G90: sheep | J90: =GM_INFO!C70 | K90: =Q90/E90 -> 0.975 | M90: /head | Q90: =ROUND(G228,0) -> 975
C91: Vaccinate | E91: ='Lamb Trading Input'!G59 -> 1000 | G91: sheep | J91: =GM_INFO!C74 | K91: 0.94 | M91: /head | Q91: =ROUND(I228,0) -> 940
C92: Blowfly control | E92: ='Lamb Trading Input'!H59 -> 1000 | G92: sheep | J92: =GM_INFO!C76 | K92: 1.68 | M92: /head | Q92: =ROUND(K228,0) -> 1680
C93: Other expenses | G93: sheep | I93: Reset Rate> | M93: /head | Q93: =K93*ROUND(E93,0) -> 0
C104: Stock purchases
C105: Purchases | E105: =ROUND(E213,0) -> 1000 | G105: Lambs | I105: Reset Rate> | J105: ='Lamb Trading Input'!E29 | K105: ='Lamb Trading Input'!E29 -> 110 | M105: /head | Q105: =K105*E105 -> 110000
C117: Sale Costs
C118: Freight
C119: Livestock | E119: =E211+E213 -> 1980 | G119: sheep | I119: Reset Rate> | J119: =GM_INFO!B161 | K119: =GM_INFO!B161 -> 7 | M119: /head | Q119: =K119*ROUND(E119,0) -> 13860
I120: Reset Rate> | M120: /head
I121: Reset Rate> | M121: /head
C122: Wool | E122: =I234/170 -> 8.823529412 | G122: bales | I122: Reset Rate> | J122: =GM_INFO!B164 | K122: =GM_INFO!B164 -> 15 | M122: /bale | Q122: =K122*ROUND(E122,0) -> 135
C123: Stock selling charges
C124: Commission/insurance | I124: Reset Rate> | J124: =GM_INFO!C98 | K124: =GM_INFO!C98 -> 0.055 | M124: gross $ | Q124: =K124*Q35 -> 7903.357
C125: Yard fees | E125: =E211 -> 980 | G125: sheep | I125: Reset Rate> | J125: =GM_INFO!C99 | K125: =GM_INFO!C99 -> 1 | M125: /head | Q125: =K125*ROUND(E125,0) -> 980
C126: Levy trans-sheep | E126: =E211 -> 980 | G126: sheep | I126: Reset Rate> | J126: =GM_INFO!C101 | K126: =GM_INFO!C101 -> 2 | M126: /head | Q126: =K126*ROUND(E126,0) -> 1960
C128: SA sheep industry levy | E128: =E211 -> 980 | G128: sheep | I128: Reset Rate> | J128: =GM_INFO!C102 | K128: =GM_INFO!C102 -> 0.67 | M128: /head | Q128: =K128*ROUND(E128,0) -> 656.6
C129: Wool selling charges
C130: Brokerage/testing/insurance | I130: Reset Rate> | J130: =GM_INFO!C103 | K130: =GM_INFO!C103 -> 0.27 | M130: /kg | Q130: =K130*E34 -> 405
C131: Wool levy | I131: Reset Rate> | J131: =GM_INFO!C104 | K131: =GM_INFO!C104 -> 0.015 | M131: gross | Q131: =K131*Q34 -> 198.45
C143: Feed and Other Costs
C144: Supplementary Feeding | E144: 0 | G144: sheep | J144: =M250 | K144: =M250 -> 3.75 | M144: /head | Q144: =IF(E144*K144=0,0,E144*K144) -> 0
C145: Feed Lot | E145: 0 | G145: sheep | J145: =O250 | K145: =O250 -> 24.42 | M145: /head | Q145: =IF(E145=0,0,E145*K145) -> 0
C146: Insurance | E146: =E239*G239 -> 110815 | G146: value | I146: Reset Rate> | J146: =GM_INFO!B157*0.5 | K146: =GM_INFO!B157*0.5 -> 2.25 | M146: /$'000 | Q146: =K146/1000*E146 -> 249.33375
C147: Water | E147: =$E$197 -> 1800 | G147: DSE's | I147: Reset Rate> | J147: =GM_INFO!K130 | K147: =GM_INFO!K130 -> 2.5 | M147: /DSE's | Q147: =K147*E147 -> 4500
C148: Veh Fuel, R&M | E148: =$E$197 -> 1800 | G148: DSE's | I148: Reset Rate> | J148: =GM_INFO!K131 | K148: =GM_INFO!K131 -> 1.5 | M148: /DSE's | Q148: =K148*E148 -> 2700
C149: Other | E149: =$E$197 -> 1800 | G149: DSE's | I149: Reset Rate> | J149: =GM_INFO!K132 | K149: =GM_INFO!K132 -> 0.5 | M149: /DSE's | Q149: =K149*E149 -> 900
C170: TOTAL VARIABLE COSTS | Q170: =SUM(Q48:Q166) -> 155540.5646
C172: GROSS MARGIN TOTAL | Q172: =Q37-Q170 -> 1386.83543
C174: GROSS MARGIN/DSE | Q174: =Q172/E197 -> 0.7704641278
C194: PRODUCTION DATA
C196: Stocking rate (DSE/Ha) | E196: 12 | AA196: SHEEP GROSS MARGIN
C197: Total DSE's | E197: =E199*'Lamb Trading Input'!E14 -> 1800
C198: SHEEP GRAZING AREA | E198: =E197/E196 -> 150
C199: Number of Lambs | E199: ='Lamb Trading Input'!E7 -> 1000
C200: Flock death rate | E200: ='Lamb Trading Input'!E13 -> 0.02
C201: Age Lambs bought | E201: ='Lamb Trading Input'!E10 -> 0.5
C202: Age Lambs sold | E202: ='Lamb Trading Input'!E9 -> 0.8 | AA202: No of Lambs | AC202: ='Lamb Trading Input'!E7 -> 1000
B203: =VLOOKUP(r[0]c3&"No Ops",CHOOSE({1,2},tbl_ops[Name]&tbl_ops[Category],INDIRECT("tbl_ops["&var_crop&"]")),2,0) | AA203: Age Lambs purchased | AC203: =E201 -> 0.5
B204: =VLOOKUP(r[0]c3&"No Ops",CHOOSE({1,2},tbl_ops[Name]&tbl_ops[Category],INDIRECT("tbl_ops["&var_crop&"]")),2,0) | AA204: Age Lambs sold | AC204: =E202 -> 0.8
B205: =VLOOKUP(r[0]c3&"No Ops",CHOOSE({1,2},tbl_ops[Name]&tbl_ops[Category],INDIRECT("tbl_ops["&var_crop&"]")),2,0) | AA205: Flock death rate | AC205: =E200 -> 0.02
B206: =VLOOKUP(r[0]c3&"No Ops",CHOOSE({1,2},tbl_ops[Name]&tbl_ops[Category],INDIRECT("tbl_ops["&var_crop&"]")),2,0) | AA206: dse/Lamb | AC206: ='Lamb Trading Input'!E14 -> 1.8
B208: =VLOOKUP(r[0]c3&var_rain,CHOOSE({1,2},tbl_ops[Name]&tbl_ops[Rainfall],INDIRECT("tbl_ops["&var_crop&"]")),2,0)
B209: =VLOOKUP(r[0]c3&var_rain,CHOOSE({1,2},tbl_ops[Name]&tbl_ops[Rainfall],INDIRECT("tbl_ops["&var_crop&"]")),2,0) | C209: SALES | E209: Number | G209: Price/hd | I209: Age | K209: Total
B210: =VLOOKUP(r[0]c3&var_rain,CHOOSE({1,2},tbl_ops[Name]&tbl_ops[Rainfall],INDIRECT("tbl_ops["&var_crop&"]")),2,0) | C210: Prime Lambs | E210: =E199-(E199*E200) -> 980 | G210: =E9*0.43*K9/100 -> 146.63 | I210: =E202 -> 0.8 | K210: =E210*G210 -> 143697.4
B211: =VLOOKUP(r[0]c3&var_rain,CHOOSE({1,2},tbl_ops[Name]&tbl_ops[Rainfall],INDIRECT("tbl_ops["&var_crop&"]")),2,0) | C211: TOTAL | E211: =E210 -> 980 | K211: =K210 -> 143697.4 | AA211: LambS | AB211: OPENING | AC211: NATURAL | AD211: PURCHASES | AE211: DEATHS | AF211: % sold | AG211: SALES | AH211: CLOSING
C212: PURCHASES | E212: Number | G212: Price/hd | I212: Age | K212: Total | AA212: AGE | AB212: NUMBERS | AC212: INCREASE | AF212: culled | AH212: NUMBERS
C213: Store Lambs | E213: =E199 -> 1000 | G213: =(E8*K8)/100 -> 75 | I213: =E201 -> 0.5 | K213: =ROUND(E213,0)*G213 -> 75000
AA214: 0-0.5yr | AD214: =IF(AC203=0.5,AB215-AE214-AG214,0) -> 208.1615931 | AE214: =AB214*$AC$205 -> 0 | AF214: =IF(AC204=0.5,100%,0) -> 0 | AG214: =AC214*AF214 -> 0 | AH214: =AB214+AC214+AD214-AE214-AG214 -> 208.1615931
X215: Rotation between different drench groups generally does little to slow development of drench | AA215: 0.5-1.5yr | AB215: =IF(AC203=0.5,AC202/(1+(1-AC205)*(1-AF215)*(1+(1-AC205)*(1-AF216)*(1+(1-AC205)*(1-AF217)*(1+(1-AC205)*(1-AF218))))),0) -> 208.1615931 | AD215: =IF(AC203=1.5,AB216-AE215-AG215,0) -> 0 | AE215: 4.163231862 | AF215: =IF(AC204=1.5,100%,0) -> 0 | AG215: =(AB215-AE215)*AF215 -> 0 | AH215: 203.9983612
X216: resistance and should not be used at the expense of these three highly effective practices: | AA216: 1.5-2.5yr | AB216: =IF(AC203=1.5,AC202/(1+(1-AC205)*(1-AF216)*(1+(1-AC205)*(1-AF217)*(1+(1-AC205)*(1-AF218)))),AH215) -> 203.9983612 | AE216: 4.079967224 | AF216: =IF(AC204=2.5,100%,0) -> 0 | AG216: =(AB216-AE216)*AF216 -> 0 | AH216: 199.918394
X217: • use products most effective on your property | AA217: 2.5-3.5yr | AB217: =AH216 -> 199.918394 | AE217: 3.99836788 | AF217: =IF(AC204=3.5,100%,0) -> 0 | AG217: =(AB217-AE217)*AF217 -> 0 | AH217: 195.9200261
G218: Calculated Cost | X218: • use multi-active (combination) products | AA218: 3.5-4.5yr | AB218: =AH217 -> 195.9200261 | AE218: 3.918400522 | AF218: =IF(AC204=4.5,100%,0) -> 0 | AG218: =(AB218-AE218)*AF218 -> 0 | AH218: 192.0016256
C219: STOCK HEALTH REQUIREMENTS | E219: Number | G219: Drench | I219: Vacc. | K219: Blowfly | X219: • use short-acting products | AA219: 4.5-5.5yr | AB219: =AH218 -> 192.0016256 | AE219: 3.840032512 | AF219: =IF(AC204=5.5,100%,0) -> 0 | AG219: =(AB219-AE219)*AF219 -> 0 | AH219: 188.1615931
C220: Lambs | E220: =ROUND('Lamb Trading Input'!E7,0) -> 1000 | G220: ='Lamb Trading Input'!$E58*'Lamb Trading Input'!F58*'Lamb Trading Input'!J58/1000*'Lamb Trading Input'!J$60 -> 975 | I220: ='Lamb Trading Input'!$E58*'Lamb Trading Input'!G58*'Lamb Trading Input'!K58/1000*'Lamb Trading Input'!K$60*4 -> 940 | K220: ='Lamb Trading Input'!$E58*'Lamb Trading Input'!H58*'Lamb Trading Input'!L58/1000*'Lamb Trading Input'!L$60 -> 1680 | AA220: Total | AB220: =SUM(AB215:AB219) -> 1000 | AD220: =SUM(AD214:AD219) -> 208.1615931 | AE220: =SUM(AE214:AE219) -> 20 | AG220: =SUM(AG214:AG219) -> 0 | AH220: =SUM(AH214:AH219) -> 1188.161593 | BG220: For more information: https://wormboss.com.au/tests-tools/drench-rotation-versus-combinations-to-combat-drench-resistance/
AA221: d.s.e's | AB221: =AB220*AC206 -> 1800
C228: TOTAL | E228: =SUM(E220:E227) -> 1000 | G228: =SUM(G220:G227) -> 975 | I228: =SUM(I220:I227) -> 940 | K228: =SUM(K220:K227) -> 1680
G231: Wool Cut kg/hd | I231: Total | K231: Yield | M231: Total
C232: SHEARING | E232: Number | I232: Greasy kg | K232: % | M232: clean kg
C233: Lambs | E233: ='Lamb Trading Input'!E52 -> 1000 | G233: ='Lamb Trading Input'!F52/1000 -> 1.5 | I233: =G233*E233 -> 1500 | K233: ='Lamb Trading Input'!G44 -> 0.7 | M233: =E233*G233*K233 -> 1050
C234: TOTAL | E234: =E233 -> 1000 | I234: =I233 -> 1500
C237: STOCK VALUE | G237: Value | I237: Av Live | K237: DSE
E238: Number | G238: $/head | I238: weight (kgs) | K238: rating
C239: Lambs | E239: =E199 -> 1000 | G239: =(G210+G213)/2 -> 110.815 | I239: ='Lamb Trading Input'!E61 -> 45 | K239: ='Lamb Trading Input'!E62 -> 0.8
C240: TOTAL | E240: =E239 -> 1000
E244: Supplementry | G244: Feed Lot | M244: Supplementry | O244: Feed Lot
C245: FEEDING | E245: kg fed | G245: kg fed | I245: /animal | K245: $/tonne | M245: Total | O245: Total
C246: ='Lamb Trading Input'!C70 -> Oats/barley | E246: ='Lamb Trading Input'!E70 -> 0 | G246: ='Lamb Trading Input'!F70 -> 55 | I246: ='Lamb Trading Input'!G70 -> kg/lamb | K246: ='Lamb Trading Input'!H70 -> 300 | M246: ='Lamb Trading Input'!I70 -> 0 | O246: ='Lamb Trading Input'!J70 -> 16.5
C247: ='Lamb Trading Input'!C71 -> Hay | E247: ='Lamb Trading Input'!E71 -> 15 | G247: ='Lamb Trading Input'!F71 -> 10 | I247: ='Lamb Trading Input'!G71 -> kg/lamb | K247: ='Lamb Trading Input'!H71 -> 250 | M247: ='Lamb Trading Input'!I71 -> 3.75 | O247: ='Lamb Trading Input'!J71 -> 2.5
C248: ='Lamb Trading Input'!C72 -> Lupins | E248: ='Lamb Trading Input'!E72 -> 0 | G248: ='Lamb Trading Input'!F72 -> 9 | I248: ='Lamb Trading Input'!G72 -> kg/lamb | K248: ='Lamb Trading Input'!H72 -> 380 | M248: ='Lamb Trading Input'!I72 -> 0 | O248: ='Lamb Trading Input'!J72 -> 3.42
C249: ='Lamb Trading Input'!C73 -> Supplements | E249: ='Lamb Trading Input'!E73 -> 0 | G249: ='Lamb Trading Input'!F73 -> 1 | I249: ='Lamb Trading Input'!G73 -> kg/lamb | K249: ='Lamb Trading Input'!H73 -> 2000 | M249: ='Lamb Trading Input'!I73 -> 0 | O249: ='Lamb Trading Input'!J73 -> 2
M250: ='Lamb Trading Input'!I74 -> 3.75 | O250: ='Lamb Trading Input'!J74 -> 24.42
C259: GM SENSITIVITY
C260: Gross Margin/DSE | E260: Average Greasy Wool Price (c/Kg)
G261: 801 | I261: 851 | K261: 901 | L261: 901 | M261: 951 | N261: 951 | O261: 1001 | P261: 1001 | Q261: 1051
E262: 121.63 | G262: =(G$261*$E$34*(1-$K$131)/100+$E262*$E$35*(1-$K$124)-($Q$170-$Q$124-$Q$131))/$E$197 -> -12.75691087 | I262: =(I$261*$E$34*(1-$K$131)/100+$E262*$E$35*(1-$K$124)-($Q$170-$Q$124-$Q$131))/$E$197 -> -12.34649421 | K262: =(K$261*$E$34*(1-$K$131)/100+$E262*$E$35*(1-$K$124)-($Q$170-$Q$124-$Q$131))/$E$197 -> -11.93607754 | M262: =(M$261*$E$34*(1-$K$131)/100+$E262*$E$35*(1-$K$124)-($Q$170-$Q$124-$Q$131))/$E$197 -> -11.52566087 | O262: =(O$261*$E$34*(1-$K$131)/100+$E262*$E$35*(1-$K$124)-($Q$170-$Q$124-$Q$131))/$E$197 -> -11.11524421 | Q262: =(Q$261*$E$34*(1-$K$131)/100+$E262*$E$35*(1-$K$124)-($Q$170-$Q$124-$Q$131))/$E$197 -> -10.70482754
E263: 126.63 | G263: -10.18441087 | I263: -9.773994206 | K263: -9.363577539 | M263: -8.953160872 | O263: -8.542744206 | Q263: -8.132327539
C264: Average Sheep Sale Price($/hd) | E264: 131.63 | G264: -7.611910872 | I264: -7.201494206 | K264: -6.791077539 | M264: -6.380660872 | O264: -5.970244206 | Q264: -5.559827539
E265: 136.63 | G265: -5.039410872 | I265: -4.628994206 | K265: -4.218577539 | M265: -3.808160872 | O265: -3.397744206 | Q265: -2.987327539
E266: 141.63 | G266: -2.466910872 | I266: -2.056494206 | K266: -1.646077539 | M266: -1.235660872 | O266: -0.8252442056 | Q266: -0.4148275389
E267: 146.63 | G267: 0.1055891278 | I267: 0.5160057944 | K267: 0.9264224611 | M267: 1.336839128 | O267: 1.747255794 | Q267: 2.157672461
E268: 151.63 | G268: 2.678089128 | I268: 3.088505794 | K268: 3.498922461 | M268: 3.909339128 | O268: 4.319755794 | Q268: 4.730172461
E269: 156.63 | G269: 5.250589128 | I269: 5.661005794 | K269: 6.071422461 | M269: 6.481839128 | O269: 6.892255794 | Q269: 7.302672461
E270: 161.63 | G270: 7.823089128 | I270: 8.233505794 | K270: 8.643922461 | M270: 9.054339128 | O270: 9.464755794 | Q270: 9.875172461
E271: 166.63 | G271: 10.39558913 | I271: 10.80600579 | K271: 11.21642246 | M271: 11.62683913 | O271: 12.03725579 | Q271: 12.44767246
E272: 171.63 | G272: 12.96808913 | I272: 13.37850579 | K272: 13.78892246 | M272: 14.19933913 | O272: 14.60975579 | Q272: 15.02017246

Sheet Merino SR Input (hidden)
C2: ="MERINO SR GROSS MARGIN - "&TEXT(m_year,"0000") -> MERINO SR GROSS MARGIN - 2025
C4: GENERAL INFORMATION
C5: This represents a self-replacing merino ewe flock, producing 21 micron wool. Adjust wool price if different micron wool is produced. Following are the various assumptions used in the calculation of the Gross Margin. Cells with yellow highlight can be changed. No allowance has been made for pasture expenses such as seed, fertiliser and chemicals. Refer to pasture gross margins in the “Cropping Gross Margin Plan” for annual and perennial pasture costs. Use the livestock gross margin per DSE as income for the pasture gross margin.
C7: Stocking rate (DSE/Ha) | E7: 6 | G7: Years Rams Kept | I7: 4
C8: Ewes mated | E8: 1000 | G8: Flock death Rate | I8: 0.03 | L8: Average Weaning Perentage
C9: Total DSE's | E9: ='Merino SR'!M228 -> 2420 | G9: % Lambs carried over | I9: 0 | M9: Agricultural | N9: Pastoral
C10: SHEEP GRAZING AREA | E10: 285 | L10: Av % | M10: 0.95 | N10: 0.8
C11: Age ewes 1st mating | E11: 1.5
C12: Age ewes sold | E12: 6.5
C13: Av Weaning % | E13: 0.95
C14: Ram percentage | E14: 0.025
C17: LIVESTOCK SALES | E17: Price/Hd | F17: Number | G17: Total | L17: ="Estimated "&TEXT(m_year,"0000")&" Sheep Sale Prices" -> Estimated 2025 Sheep Sale Prices
C18: c.f.a Ewes | E18: 110 | F18: ='Merino SR'!AG220 -> 203.9596235 | G18: =E18*ROUND(F18,0) -> 22440 | M18: Agricultural | N18: Pastoral
C19: c.f.a Merino Rams | E19: 20 | F19: ='Merino SR'!AG244 -> 5.788387001 | G19: 120 | L19: Store lambs 35kg lwt | M19: 100 | N19: 90
C20: ewe hoggets | E20: 220 | F20: ='Merino SR'!AG222 -> 226.7903765 | G20: 49940 | L20: Ewe Lambs | M20: 110 | N20: 100
C21: wether lambs 55kg lwt | E21: 200 | F21: ='Merino SR'!AG230-F22 -> 375 | G21: 75000 | L21: Wether lambs 55 kg lwt | M21: 200 | N21: 190
C22: Store Lambs | E22: 100 | F22: 100 | G22: 10000 | L22: Ewe hoggets | M22: 220 | N22: 150
G23: 0 | L23: Cast for age ewes | M23: 110 | N23: 100
L24: Cast for age rams | M24: 20 | N24: 20
C25: TOTAL SALES | F25: =SUM(F18:F23) -> 911.538387 | G25: =SUM(G18:G23) -> 157500
C28: LIVESTOCK PURCHASES | E28: Price/Hd | F28: Number | G28: Total
C29: Ewes | E29: 250 | F29: =ROUND('Merino SR'!AD220,0) -> 0 | G29: =E29*F29 -> 0
C30: Rams | E30: 1200 | F30: =ROUND('Merino SR'!AD244,0) -> 7 | G30: =E30*F30 -> 8400
C32: TOTAL PURCHASES | F32: =SUM(F29:F30) -> 7 | G32: =SUM(G29:G30) -> 8400
C35: WOOL PRICE (cents/kg) | F35: =TEXT(m_year-3,"0000")&" Average (Clean)" -> 2022 Average (Clean) | G35: =TEXT(m_year-2,"0000")&" Average (Clean)" -> 2023 Average (Clean) | H35: =TEXT(m_year-1,"0000")&" Average (Clean)" -> 2024 Average (Clean) | I35: Budget Base (Clean) | J35: Budget Base (Greasy) | L35: Wool Type | M35: Estimated Clean Price
E36: Cereal Zone 21 mic 68% yield | F36: 1271 | G36: 1340 | H36: 1373 | I36: 1320 | J36: =I36*I37 -> 897.6 | L36: 19 mic | M36: 1430
E37: Estimated wool yield | I37: 0.68 | L37: 21 mic | M37: 1320
C38: Allow 90% to account for lower value of bellies, skirtings etc. | J38: =J36*0.9 -> 807.84 | L38: 22 mic | M38: 1280
C42: WOOL SALES - SHEARING | F42: Wool Cut | G42: Wool Price
E43: Number | F43: kg/hd | G43: cents/kg
C44: Ewes | E44: ='Merino SR'!E233 -> 980.4055419 | F44: 6.5 | G44: =$J$38 -> 807.84
C45: Ewe hoggets | E45: ='Merino SR'!E234 -> 467.875 | F45: 5.5 | G45: =$J$38 -> 807.84
C46: Wether weaners | E46: ='Merino SR'!E235 -> 0 | F46: 5 | G46: =$J$38 -> 807.84
C47: Lambs | E47: ='Merino SR'!E236 -> 950 | F47: 2 | G47: =$J$38 -> 807.84
C48: Merino rams | E48: ='Merino SR'!E237 -> 24.625 | F48: 9.5 | G48: =$J$38 -> 807.84
C52: TOTAL | E52: =SUM(E44:E51) -> 2422.905542 | F52: =SUMPRODUCT(E44:E50,F44:F50) -> 11079.88602
C55: STOCK HEALTH REQUIREMENTS | E55: =HYPERLINK("http://paraboss.com.au","for more info on drench, lice and blowfly product selection refer to www.paraboss.com.au") -> for more info on drench, lice and blowfly product selection refer to www.paraboss.com.au
G56: Number of times | J56: Dosage in ml
E57: Number | F57: Drench | G57: Vacc. | H57: Blowfly | I57: Drench | J57: Vacc. | K57: Blowfly
C58: Ewes | E58: ='Merino SR'!E220 -> 1000 | F58: 1 | G58: 1 | H58: 1 | I58: 13 | J58: 1 | K58: 24
C59: Ewe hoggets | E59: ='Merino SR'!E221 -> 475 | F59: 1 | G59: 1 | H59: 1 | I59: 18 | J59: 1 | K59: 24
C60: Wether weaners | E60: ='Merino SR'!E222 -> 0 | F60: 1 | G60: 1 | H60: 1 | I60: 18 | J60: 1 | K60: 24
C61: Merino lambs | E61: ='Merino SR'!E223 -> 950 | F61: 1 | G61: 2 | H61: 0 | I61: 18 | J61: 1 | K61: 24
C62: Merino rams | E62: ='Merino SR'!E224 -> 25 | F62: 2 | G62: 1 | H62: 1 | I62: 18 | J62: 1 | K62: 24
H63: Product Cost per litre | I63: 75 | J63: 235 | K63: 70
C64: TOTAL | E64: =SUM(E58:E62) -> 2450 | F64: =SUMPRODUCT($E$58:$E$62,F58:F62) -> 2475 | G64: =SUMPRODUCT($E$58:$E$62,G58:G62) -> 3400 | H64: =SUMPRODUCT($E$58:$E$62,H58:H62) -> 1500
C67: FEEDING
C68: hay/straw/grain/pellets | F68: Feed 1 | G68: Kgs Fed | H68: No of | I68: Feed 2 | J68: Kgs Fed | K68: No of | L68: Feed 3 | M68: Kgs Fed | N68: No of | O68: Total
E69: Number | F69: Cost ($/T) | G69: per Week | H69: Weeks | I69: Cost ($/T) | J69: per Week | K69: Weeks | L69: Cost ($/T) | M69: per Week | N69: Weeks | O69: Cost
C70: Merino ewes | E70: ='Merino SR'!E220 -> 1000 | F70: 300 | G70: 2 | H70: 12 | I70: 370 | J70: 1 | K70: 12 | L70: 250 | M70: 1 | N70: 12 | O70: =(E70*G70*H70)/1000*F70+(E70*J70*K70)/1000*I70+(E70*M70*N70)/1000*L70 -> 14640
O71: 0
C72: Weaners | E72: 950 | F72: 300 | G72: 2 | H72: 6 | I72: 370 | J72: 0.5 | K72: 6 | O72: 4474.5
C73: Ewe hoggets | O73: 0
C74: Rams | E74: 15 | I74: 370 | J74: 2 | K74: 10 | O74: 111
C84: Supplements | G84: Kgs Fed | H84: No weeks | I84: Total
E85: Number | F85: Cost ($/kg) | G85: per week | H85: of Feeding | I85: Cost ($)
I86: =(H86*G86*E86)*F86 -> 0
I87: =(H87*G87*E87)*F87 -> 0
H89: Total Feed Cost | I89: =SUM(O70:O74,I86:I87) -> 19225.5

Sheet Merino SR (hidden)
C1: MERINO SR
C2: =UPPER(Var_Animal)&" GROSS MARGIN - "&TEXT(m_year,"0000") -> MERINO SR GROSS MARGIN - 2025
C4: ASSUMPTIONS
C6: Ave Breeding Ewe Fibre Diameter | E6: 21 | O6: Total DSE's | Q6: ='Merino SR Input'!E9 -> 2420
C7: No. of breeding ewes | E7: ='Merino SR Input'!$E$8 -> 1000 | O7: Stocking Rate (DSE/Ha) | Q7: ='Merino SR Input'!E7 -> 6
C32: INCOME | Q32: $
C34: Wool (kg greasy) | E34: =I241 -> 11079.88602 | G34: kg | I34: av price | K34: ='Merino SR Input'!J38 -> 807.84 | M34: c/kg | Q34: =M241 -> 89507.75124
C35: Sales | E35: =E217 -> 911.538387 | G35: animals | I35: av price | K35: =G217 -> 172.7848243 | M35: /head | Q35: =I217 -> 157500
C37: Gross Income | Q37: =SUM(Q34:Q35) -> 247007.7512
AA45: STOCK VALUE AND D.S.E REQUIREMENT
C46: VARIABLE COSTS
C47: Shearing | K47: Rate
C48: Shearing | E48: =E241-E237 -> 2398.280542 | G48: sheep | I48: Reset Rate> | J48: =GM_INFO!C79 | K48: =GM_INFO!C79 -> 381.58 | M48: /100 | Q48: =K48/100*ROUND(E48,0) -> 9150.2884 | X48: Most Shearing contractors charge
C49: (Federal awards) | E49: =E224 -> 25 | G49: rams | I49: Reset Rate> | J49: =GM_INFO!C80 | K49: =GM_INFO!C80 -> 763.16 | M49: /100 | Q49: =K49/100*ROUND(E49,0) -> 190.79 | X49: 15% or more above the Federal Award rate.
C50: Shed labour | E50: 8 | G50: days | I50: Reset Rate> | J50: =GM_INFO!C81 | K50: =GM_INFO!C81 -> 289.4 | M50: /day | Q50: =K50*ROUND(E50,0) -> 2315.2
C51: Woolclasser | E51: 4 | G51: days | I51: Reset Rate> | J51: =GM_INFO!C82 | K51: =GM_INFO!C82 -> 350.85 | M51: /day | Q51: =K51*E51 -> 1403.4
C52: Superannuation (on ord wages only) | I52: Reset Rate> | J52: =GM_INFO!C83 | K52: =GM_INFO!C83 -> 0.115 | M52: wages | Q52: =(Q48+Q49+Q50+Q51)*K52 -> 1501.863016
C53: W/Cover (incl. super + otime etc) | I53: Reset Rate> | J53: =GM_INFO!C84 | K53: =GM_INFO!C84 -> 0.04 | M53: total | Q53: =(Q48+Q49+Q50+Q51+Q52)*K53 -> 582.4616566
C54: Wool packs | E54: =E122 -> 65.17580013 | G54: packs | I54: Reset Rate> | J54: =GM_INFO!C77 | K54: =GM_INFO!C77 -> 15 | M54: /pack | Q54: =K54*ROUND(E54,0) -> 975
C55: Shed sundries | E55: =E48+E49 -> 2423.280542 | G55: sheep | I55: Reset Rate> | J55: =GM_INFO!C85 | K55: =GM_INFO!C85 -> 0.22 | M55: /head | Q55: =K55*ROUND(E55,0) -> 533.06
C56: Lice control | E56: =E48+E49 -> 2423.280542 | G56: sheep | I56: Reset Rate> | J56: =GM_INFO!C66 | K56: =GM_INFO!C66 -> 1.64 | M56: /head | Q56: =K56*ROUND(E56,0) -> 3973.72
C57: Crutch & Wig | E57: =SUM(E233:E235) -> 1448.280542 | G57: ewes | I57: Reset Rate> | J57: =GM_INFO!C87 | K57: =GM_INFO!C87 -> 131.65 | M57: /100 | Q57: =K57/100*ROUND(E57,0) -> 1906.292
E58: =E49 -> 25 | G58: rams | I58: Reset Rate> | J58: =GM_INFO!C88 | K58: =GM_INFO!C88 -> 244.22 | M58: /100 | Q58: =K58/100*ROUND(E58,0) -> 61.055
C75: Marking
C76: Lamb marking | E76: =E199*E205 -> 950 | G76: lambs | I76: Reset Rate> | J76: =GM_INFO!C90 | K76: =GM_INFO!C90 -> 2 | M76: /head | Q76: =K76*ROUND(E76,0) -> 1900
C77: Ear tags | E77: =E76 -> 950 | G77: lambs | I77: Reset Rate> | J77: =GM_INFO!C92 | K77: =GM_INFO!C92 -> 2.32 | M77: /head | Q77: =K77*ROUND(E77,0) -> 2204
C78: Pain relief | E78: 950 | G78: lambs | I78: Reset Rate> | J78: =GM_INFO!C94 | K78: =GM_INFO!C94 -> 1.995 | M78: /head | Q78: =K78*ROUND(E78,0) -> 1895.25
AS79: RAMS | AT79: OPENING | AU79: NATURAL | AV79: PURCHASES | AW79: DEATHS | AX79: % sold | AY79: SALES | AZ79: CLOSING
AS80: AGE | AT80: NUMBERS | AU80: INCREASE | AX80: culled | AZ80: NUMBERS
AS82: 0.5-1.5yr | AV82: =AT83/(1-AX82) -> 0 | AW82: =AT82*$R$81 -> 0 | AZ82: =AT82+AU82+AV82-AW82-AY82 -> 0
AS83: 1.5-2.5yr | AT83: =IF(AY53=3,(AU51*AY51)/(1+(1-AY55)*(1-AX83)*(1+(1-AY55)*(1-AX84)*(1+(1-AY55)*(1-AX85)))),IF(AY53=4,(AU51*AY51)/(1+(1-AY55)*(1-AX83)*(1+(1-AY55)*(1-AX84)*(1+(1-AY55)*(1-AX85)*(1+(1-AY55)*(1-AX86))))),0)) -> 0 | AW83: =AT83*$R$81 -> 0 | AZ83: =AT83+AU83+AV83-AW83-AY83 -> 0
AS84: 2.5-3.5yr | AT84: =AZ83 -> 0 | AW84: =AT84*$R$81 -> 0 | AZ84: =AT84+AU84+AV84-AW84-AY84 -> 0
AS85: 3.5-4.5yr | AT85: =AZ84 -> 0 | AW85: =AT85*$R$81 -> 0 | AX85: =IF(AY53=3,100%,0) -> 0 | AY85: =(AT85-AW85)*AX85 -> 0 | AZ85: =AT85+AU85+AV85-AW85-AY85 -> 0
AS86: 4.5-5.5yr | AT86: =AZ85 -> 0 | AW86: =AT86*$R$81 -> 0 | AX86: =IF(AY53=4,100%,0) -> 0 | AY86: =AT86-AW86 -> 0 | AZ86: =AT86+AU86+AV86-AW86-AY86 -> 0
AT87: =AT82+AT83+AT84+AT85+AT86 -> 0 | AV87: =AV82+AV83+AV84+AV85+AV86 -> 0 | AW87: =AW82+AW83+AW84+AW85+AW86 -> 0 | AY87: =AY82+AY83+AY84+AY85+AY86 -> 0 | AZ87: =AZ82+AZ83+AZ84+AZ85+AZ86 -> 0
AS88: d.s.e's | AT88: =AT87*AE49 -> 0
C89: Animal Health
C90: Drench | E90: ='Merino SR Input'!F64 -> 2475 | G90: sheep | J90: =GM_INFO!C69 | K90: =Q90/E90 -> 1.198383838 | M90: /head | Q90: =ROUND(G228,0) -> 2966
C91: Vaccinate | E91: ='Merino SR Input'!G64 -> 3400 | G91: sheep | J91: =GM_INFO!C72 | K91: 0.94 | M91: /head | Q91: =ROUND(I228,0) -> 3196
C92: Blowfly control | E92: ='Merino SR Input'!H64 -> 1500 | G92: sheep | J92: =GM_INFO!C76 | K92: 1.68 | M92: /head | Q92: =ROUND(K228,0) -> 2520
C104: Stock purchases
C105: Purchases | E105: =ROUND(AD244,0) -> 7 | G105: rams | I105: Reset Rate> | J105: ='Merino SR Input'!E30 | K105: ='Merino SR Input'!E30 -> 1200 | M105: /head | Q105: =K105*E105 -> 8400
C117: Sale Costs
C118: Freight
C119: Livestock | E119: =E217 -> 911.538387 | G119: sheep | I119: Reset Rate> | J119: =GM_INFO!B161 | K119: =GM_INFO!B161 -> 7 | M119: /head | Q119: =K119*ROUND(E119,0) -> 6384
I120: Reset Rate> | M120: /head
I121: Reset Rate> | M121: /head
C122: Wool | E122: =I241/170 -> 65.17580013 | G122: bales | I122: Reset Rate> | J122: =GM_INFO!B164 | K122: =GM_INFO!B164 -> 15 | M122: /bale | Q122: =K122*ROUND(E122,0) -> 975
C123: Stock selling charges
C124: Commission/insurance | I124: Reset Rate> | J124: =GM_INFO!C98 | K124: =GM_INFO!C98 -> 0.055 | M124: gross $ | Q124: =K124*Q35 -> 8662.5
C125: Yard fees | E125: =E217 -> 911.538387 | G125: sheep | I125: Reset Rate> | J125: =GM_INFO!C99 | K125: =GM_INFO!C99 -> 1 | M125: /head | Q125: =K125*ROUND(E125,0) -> 912
C126: Levy trans-sheep | E126: =SUM(E210:E212) -> 436.538387 | G126: sheep | I126: Reset Rate> | J126: =GM_INFO!C100 | K126: =GM_INFO!C100 -> 0.2 | M126: /head | Q126: =K126*ROUND(E126,0) -> 87.4
C127: Levy trans-lambs | E127: =E213 -> 375 | G127: sheep | I127: Reset Rate> | J127: =GM_INFO!C101 | K127: =GM_INFO!C101 -> 2 | M127: /head | Q127: =K127*ROUND(E127,0) -> 750
C128: SA sheep industry levy | E128: =E217 -> 911.538387 | G128: sheep | I128: Reset Rate> | J128: =GM_INFO!C102 | K128: =GM_INFO!C102 -> 0.67 | M128: /head | Q128: =K128*ROUND(E128,0) -> 611.04
C129: Wool selling charges
C130: Brokerage/testing/insurance | I130: Reset Rate> | J130: =GM_INFO!C103 | K130: =GM_INFO!C103 -> 0.27 | M130: /kg | Q130: =K130*E34 -> 2991.569226
C131: Wool levy | I131: Reset Rate> | J131: =GM_INFO!C104 | K131: =GM_INFO!C104 -> 0.015 | M131: gross | Q131: =K131*Q34 -> 1342.616269
C143: Feed and Other Costs
C144: Hand Feeding | Q144: ='Merino SR Input'!I89 -> 19225.5
C146: Insurance | E146: =E229 -> 423322.8194 | G146: value | I146: Reset Rate> | J146: =GM_INFO!B157 | K146: =GM_INFO!B157 -> 4.5 | M146: /$'000 | Q146: =K146/1000*E146 -> 1904.952687
C147: Water | E147: ='Merino SR Input'!$E$9 -> 2420 | G147: DSE's | I147: Reset Rate> | J147: =GM_INFO!E130 | K147: =GM_INFO!E130 -> 2.5 | M147: /DSE's | Q147: =K147*E147 -> 6050
C148: Veh Fuel, R&M | E148: ='Merino SR Input'!$E$9 -> 2420 | G148: DSE's | I148: Reset Rate> | J148: =GM_INFO!E131 | K148: =GM_INFO!E131 -> 1.5 | M148: /DSE's | Q148: =K148*E148 -> 3630
C149: Other | E149: ='Merino SR Input'!$E$9 -> 2420 | G149: DSE's | I149: Reset Rate> | J149: =GM_INFO!E132 | K149: =GM_INFO!E132 -> 0.5 | M149: /DSE's | Q149: =K149*E149 -> 1210
C170: TOTAL VARIABLE COSTS | Q170: =SUM(Q48:Q166) -> 100410.9583
C172: GROSS MARGIN TOTAL | Q172: =Q37-Q170 -> 146596.793
C174: GROSS MARGIN/DSE | Q174: =Q172/Q6 -> 60.57718719
C194: PRODUCTION DATA
AA196: SHEEP GROSS MARGIN
AA197: PRIME LAMB -
C199: Number of ewes mated | E199: ='Merino SR Input'!E8 -> 1000 | K199: Culling Rate (% from each group)
C200: Ram percentage | E200: ='Merino SR Input'!E14 -> 0.025 | K200: Age Group | M200: Ewes | O200: Wethers
C201: Age ewes 1st mating | E201: ='Merino SR Input'!E11 -> 1.5 | K201: 0.5 | M201: =AF213 -> 0
C202: Age ewes culled | E202: ='Merino SR Input'!E12 -> 6.5 | K202: 1.5 | M202: 0.492220025 | AA202: Ewes mated | AC202: ='Merino SR Input'!E8 -> 1000 | AF202: Ram % | AG202: =E200 -> 0.025
B203: =VLOOKUP(r[0]c3&"No Ops",CHOOSE({1,2},tbl_ops[Name]&tbl_ops[Category],INDIRECT("tbl_ops["&var_crop&"]")),2,0) | C203: Years rams kept | E203: ='Merino SR Input'!I7 -> 4 | K203: 2.5 | M203: 0.05 | AA203: Age at 1st mating | AC203: =E201 -> 1.5 | AF203: Price of rams | AG203: ='Merino SR Input'!E30 -> 1200
B204: =VLOOKUP(r[0]c3&"No Ops",CHOOSE({1,2},tbl_ops[Name]&tbl_ops[Category],INDIRECT("tbl_ops["&var_crop&"]")),2,0) | C204: Flock death rate | E204: ='Merino SR Input'!I8 -> 0.03 | K204: 3.5 | M204: 0.05 | AA204: Age ewes sold | AC204: =E202 -> 6.5 | AF204: Years rams kept | AG204: =E203 -> 4
B205: =VLOOKUP(r[0]c3&"No Ops",CHOOSE({1,2},tbl_ops[Name]&tbl_ops[Category],INDIRECT("tbl_ops["&var_crop&"]")),2,0) | C205: Average weaning rate | E205: =AC205 -> 0.95 | K205: 4.5 | M205: 0.05 | AA205: Av Weaning % | AC205: ='Merino SR Input'!E13 -> 0.95 | AF205: Age wethers sold | AG205: 0.5
B206: =VLOOKUP(r[0]c3&"No Ops",CHOOSE({1,2},tbl_ops[Name]&tbl_ops[Category],INDIRECT("tbl_ops["&var_crop&"]")),2,0) | C206: % Lambs carried over | E206: 0 | K206: 5.5 | M206: 0.05 | AA206: dse/ewe | AC206: 1.6 | AF206: Flock death rate | AG206: =E204 -> 0.03
C207: Age wethers sold | E207: =AG205 -> 0.5 | K207: 6.5 | M207: 1
B208: =VLOOKUP(r[0]c3&var_rain,CHOOSE({1,2},tbl_ops[Name]&tbl_ops[Rainfall],INDIRECT("tbl_ops["&var_crop&"]")),2,0)
B209: =VLOOKUP(r[0]c3&var_rain,CHOOSE({1,2},tbl_ops[Name]&tbl_ops[Rainfall],INDIRECT("tbl_ops["&var_crop&"]")),2,0) | C209: SALES | E209: Number | G209: Price/hd | I209: Total
B210: =VLOOKUP(r[0]c3&var_rain,CHOOSE({1,2},tbl_ops[Name]&tbl_ops[Rainfall],INDIRECT("tbl_ops["&var_crop&"]")),2,0) | C210: c.f.a ewes | E210: =AG220 -> 203.9596235 | G210: ='Merino SR Input'!E18 -> 110 | I210: =ROUND(E210,0)*G210 -> 22440
B211: =VLOOKUP(r[0]c3&var_rain,CHOOSE({1,2},tbl_ops[Name]&tbl_ops[Rainfall],INDIRECT("tbl_ops["&var_crop&"]")),2,0) | C211: c.f.a merino rams | E211: =AG244 -> 5.788387001 | G211: ='Merino SR Input'!E19 -> 20 | I211: =ROUND(E211,0)*G211 -> 120 | AA211: EWES | AB211: OPENING | AC211: NATURAL | AD211: PURCHASES | AE211: DEATHS | AF211: % sold | AG211: SALES | AH211: CLOSING
C212: Ewe hoggets | E212: =AG222 -> 226.7903765 | G212: ='Merino SR Input'!E20 -> 220 | I212: =ROUND(E212,0)*G212 -> 49940 | AA212: AGE | AB212: NUMBERS | AC212: INCREASE | AF212: culled | AH212: NUMBERS
C213: Wether lambs | E213: =AG230-E214 -> 375 | G213: ='Merino SR Input'!E21 -> 200 | I213: =ROUND(E213,0)*G213 -> 75000 | AA213: 0-0.5yr | AC213: =AC202*AC205/2 -> 475 | AE213: =AB213*$AG$206 -> 0 | AF213: 0 | AG213: =AC213*AF213 -> 0 | AH213: =AB213+AC213+AD213-AE213-AG213 -> 475
C214: Store Lambs | E214: ='Merino SR Input'!F22 -> 100 | G214: ='Merino SR Input'!E22 -> 100 | I214: =ROUND(E214,0)*G214 -> 10000 | AA214: 0.5-1.5yr | AB214: =AH213 -> 475 | AE214: 14.25 | AF214: =(AB214*(1-AG206)-AB215)/(AB214-AE214) -> 0.492220025 | AG214: =AB214-AE214-AB215 -> 226.7903765 | AH214: 233.9596235
AA215: 1.5-2.5yr | AB215: =AC202/(1+(1-AG206)*(1-AF215)*(1+(1-AG206)*(1-AF216)*(1+(1-AG206)*(1-AF217)*(1+(1-AG206)*(1-AF218))))) -> 233.9596235 | AE215: 7.018788705 | AF215: 0.05 | AG215: =(AB215-AE215)*AF215 -> 11.34704174 | AH215: 215.5937931
AA216: 2.5-3.5yr | AB216: =AH215 -> 215.5937931 | AE216: 6.467813792 | AF216: 0.05 | AG216: =(AB216-AE216)*AF216 -> 10.45629896 | AH216: 198.6696803
C217: TOTAL | E217: =SUM(E210:E214) -> 911.538387 | G217: =I217/E217 -> 172.7848243 | I217: =SUM(I210:I216) -> 157500 | AA217: 3.5-4.5yr | AB217: =AH216 -> 198.6696803 | AE217: 5.960090409 | AF217: 0.05 | AG217: =(AB217-AE217)*AF217 -> 9.635479495 | AH217: 183.0741104
G218: Calculated Cost | X218: Rotation between different drench groups generally does little to slow development of drench | AA218: 4.5-5.5yr | AB218: =AH217 -> 183.0741104 | AE218: 5.492223312 | AF218: =IF(AC204=5.5,1,5%) -> 0.05 | AG218: =(AB218-AE218)*AF218 -> 8.879094354 | AH218: =AB218+AC218+AD218-AE218-AG218 -> 168.7027927
C219: STOCK HEALTH REQUIREMENTS | E219: Number | G219: Drench | I219: Vacc. | K219: Blowfly | M219: DSE | X219: resistance and should not be used at the expense of these three highly effective practices: | AA219: 5.5-6.5yr | AB219: =AH218 -> 168.7027927 | AE219: 5.061083782 | AF219: =IF(AC204=6.5,100%,0) -> 1 | AG219: =(AB219-AE219)*AF219 -> 163.641709 | AH219: 0
C220: Ewes | E220: ='Merino SR Input'!E8 -> 1000 | G220: ='Merino SR Input'!$E58*'Merino SR Input'!F58*'Merino SR Input'!I58/1000*'Merino SR Input'!I$63 -> 975 | I220: ='Merino SR Input'!$E58*'Merino SR Input'!G58*'Merino SR Input'!J58/1000*'Merino SR Input'!J$63*4 -> 940 | K220: ='Merino SR Input'!$E58*'Merino SR Input'!H58*'Merino SR Input'!K58/1000*'Merino SR Input'!K$63 -> 1680 | M220: 1.8 | X220: • use products most effective on your property | AA220: Ewes | AB220: =SUM(AB215:AB219) -> 1000 | AC220: =SUM(AC213:AC217) -> 475 | AD220: =SUM(AD213:AD219) -> 0 | AE220: =SUM(AE213:AE218) -> 39.18891622 | AG220: =SUM(AG215:AG219) -> 203.9596235 | AH220: =SUM(AH214:AH218) -> 1000
C221: Ewe hoggets | E221: =AB222 -> 475 | G221: ='Merino SR Input'!$E59*'Merino SR Input'!F59*'Merino SR Input'!I59/1000*'Merino SR Input'!I$63 -> 641.25 | I221: ='Merino SR Input'!$E59*'Merino SR Input'!G59*'Merino SR Input'!J59/1000*'Merino SR Input'!J$63*4 -> 446.5 | K221: ='Merino SR Input'!$E59*'Merino SR Input'!H59*'Merino SR Input'!K59/1000*'Merino SR Input'!K$63 -> 798 | M221: 1.2 | X221: • use multi-active (combination) products | AA221: d.s.e's | AB221: =AB214+AC206*(AB215+AB216+AB217+AB218) -> 1805.075532
C222: Wether weaners | E222: =AB228 -> 0 | G222: ='Merino SR Input'!$E60*'Merino SR Input'!F60*'Merino SR Input'!I60/1000*'Merino SR Input'!I$63 -> 0 | I222: ='Merino SR Input'!$E60*'Merino SR Input'!G60*'Merino SR Input'!J60/1000*'Merino SR Input'!J$63*4 -> 0 | K222: ='Merino SR Input'!$E60*'Merino SR Input'!H60*'Merino SR Input'!K60/1000*'Merino SR Input'!K$63 -> 0 | M222: 0.8 | X222: • use short-acting products | AA222: Ewe Hoggets | AB222: =AB214 -> 475 | AG222: =AG214 -> 226.7903765 | AH222: =AH213 -> 475
C223: Merino lambs | E223: =AC213+AC227 -> 950 | G223: ='Merino SR Input'!$E61*'Merino SR Input'!F61*'Merino SR Input'!I61/1000*'Merino SR Input'!I$63 -> 1282.5 | I223: ='Merino SR Input'!$E61*'Merino SR Input'!G61*'Merino SR Input'!J61/1000*'Merino SR Input'!J$63*4 -> 1786 | K223: ='Merino SR Input'!$E61*'Merino SR Input'!H61*'Merino SR Input'!K61/1000*'Merino SR Input'!K$63 -> 0 | M223: 0 | BG223: For more information: https://wormboss.com.au/tests-tools/drench-rotation-versus-combinations-to-combat-drench-resistance/
C224: Merino rams | E224: =AB244 -> 25 | G224: ='Merino SR Input'!$E62*'Merino SR Input'!F62*'Merino SR Input'!I62/1000*'Merino SR Input'!I$63 -> 67.5 | I224: ='Merino SR Input'!$E62*'Merino SR Input'!G62*'Merino SR Input'!J62/1000*'Merino SR Input'!J$63*4 -> 23.5 | K224: ='Merino SR Input'!$E62*'Merino SR Input'!H62*'Merino SR Input'!K62/1000*'Merino SR Input'!K$63 -> 42 | M224: 2 | AA224: WETHERS | AB224: OPENING | AC224: NATURAL | AD224: PURCHASES | AE224: DEATHS | AF224: % sold | AG224: SALES | AH224: CLOSING
AA225: AGE | AB225: NUMBERS | AC225: INCREASE | AF225: culled | AH225: NUMBERS
AA227: 0-0.5yr | AC227: =AC205*AC202/2 -> 475 | AE227: =AB227*$AG$206 -> 0 | AF227: =IF(AG205=0.5,100%,0) -> 1 | AG227: =AC227*AF227 -> 475 | AH227: =AB227+AC227+AD227-AE227-AG227 -> 0
C228: TOTAL | E228: =SUM(E220:E227) -> 2450 | G228: =SUM(G220:G227) -> 2966.25 | I228: =SUM(I220:I227) -> 3196 | K228: =SUM(K220:K227) -> 2520 | M228: =SUMPRODUCT($E$220:$E$227,M220:M227) -> 2420 | AA228: 0.5-1.5yr | AB228: =AH227 -> 0 | AE228: =AB228*$AG$206 -> 0 | AF228: =IF(AG205=1.5,100%,0) -> 0 | AG228: =(AB228-AE228)*AF228 -> 0 | AH228: =AB228+AC228+AD228-AE228-AG228 -> 0
C229: TOTAL VALUE | E229: =E228*G217 -> 423322.8194 | AA229: 1.5-2.5 | AB229: =AH228 -> 0 | AE229: =AB229*$AG$206 -> 0 | AF229: =IF(AG205=2.5,100%,0) -> 0 | AG229: =(AB229-AE229)*AF229 -> 0
AA230: Wth lambs | AB230: =AB227 -> 0 | AC230: =AC227 -> 475 | AD230: 0 | AE230: =AE227 -> 0 | AG230: =AG227 -> 475 | AH230: 0
G231: Wool Cut kg/hd | I231: Total | K231: Wool Price | M231: Total | AA231: Wth hgts | AB231: =AB228 -> 0 | AC231: 0 | AD231: 0 | AE231: =AE228 -> 0 | AG231: 0 | AH231: 0
C232: SHEARING | E232: Number | I232: Greasy kg | K232: cents/kg | AA232: Wethers | AB232: =AB229 -> 0 | AC232: 0 | AD232: 0 | AE232: =AE229 -> 0 | AG232: 0 | AH232: 0
C233: Ewes | E233: =AB220-0.5*AE220 -> 980.4055419 | G233: ='Merino SR Input'!F44 -> 6.5 | I233: =G233*E233 -> 6372.636022 | K233: ='Merino SR Input'!G44 -> 807.84 | M233: =K233*G233*E233/100 -> 51480.70284 | AA233: d.s.e's | AB233: =AB231+AB232 -> 0
C234: Ewe hoggets | E234: =AB214-0.5*AE214 -> 467.875 | G234: ='Merino SR Input'!F45 -> 5.5 | I234: =G234*E234 -> 2573.3125 | K234: ='Merino SR Input'!G45 -> 807.84 | M234: =K234*G234*E234/100 -> 20788.2477
C235: Wether weaners | E235: =AB228-0.5*AE228 -> 0 | G235: ='Merino SR Input'!F46 -> 5 | I235: =G235*E235 -> 0 | K235: ='Merino SR Input'!G46 -> 807.84 | M235: =K235*G235*E235/100 -> 0
C236: Lambs | E236: =AC213+AC227 -> 950 | G236: ='Merino SR Input'!F47 -> 2 | I236: =G236*E236 -> 1900 | K236: ='Merino SR Input'!G47 -> 807.84 | M236: =K236*G236*E236/100 -> 15348.96 | AA236: RAMS | AB236: OPENING | AC236: NATURAL | AD236: PURCHASES | AE236: DEATHS | AF236: % sold | AG236: SALES | AH236: CLOSING
C237: Merino rams | E237: =AB244-0.5*AE244 -> 24.625 | G237: ='Merino SR Input'!F48 -> 9.5 | I237: =G237*E237 -> 233.9375 | K237: ='Merino SR Input'!G48 -> 807.84 | M237: =K237*G237*E237/100 -> 1889.8407 | AA237: AGE | AB237: NUMBERS | AC237: INCREASE | AF237: culled | AH237: NUMBERS
AA239: 0.5-1.5yr | AD239: =AB240/(1-AF239) -> 6.538387001 | AH239: =AB239+AC239+AD239-AE239-AG239 -> 6.538387001
AA240: 1.5-2.5yr | AB240: =IF(AG204=3,(AC202*AG202)/(1+(1-AG206)*(1-AF240)*(1+(1-AG206)*(1-AF241)*(1+(1-AG206)*(1-AF242)))),IF(AG204=4,(AC202*AG202)/(1+(1-AG206)*(1-AF240)*(1+(1-AG206)*(1-AF241)*(1+(1-AG206)*(1-AF242)*(1+(1-AG206)*(1-AF243))))),0)) -> 6.538387001 | AE240: =AB240*$AG$206 -> 0.19615161 | AF240: 0 | AG240: =(SUM(AB240:AD240)-AE240)*AF240 -> 0 | AH240: =AB240+AC240+AD240-AE240-AG240 -> 6.342235391
C241: TOTAL | E241: =SUM(E233:E239) -> 2422.905542 | G241: =SUMPRODUCT(E233:E234,G233:G234) -> 8945.948522 | I241: =SUM(I233:I239) -> 11079.88602 | M241: =SUM(M233:M239) -> 89507.75124 | AA241: 2.5-3.5yr | AB241: =AH240 -> 6.342235391 | AE241: =AB241*$AG$206 -> 0.1902670617 | AF241: 0 | AG241: =(SUM(AB241:AD241)-AE241)*AF241 -> 0 | AH241: =AB241+AC241+AD241-AE241-AG241 -> 6.151968329
AA242: 3.5-4.5yr | AB242: =AH241 -> 6.151968329 | AE242: =AB242*$AG$206 -> 0.1845590499 | AF242: =IF(AG204=3,100%,0) -> 0 | AG242: =(SUM(AB242:AD242)-AE242)*AF242 -> 0 | AH242: =AB242+AC242+AD242-AE242-AG242 -> 5.967409279
AA243: 4.5-5.5yr | AB243: =AH242 -> 5.967409279 | AE243: =AB243*$AG$206 -> 0.1790222784 | AF243: =IF(AG204=4,100%,0) -> 1 | AG243: =AB243-AE243 -> 5.788387001 | AH243: =AB243+AC243+AD243-AE243-AG243 -> 0
G244: Feed Cost ($/T) | I244: Kg Fed per Week | K244: No of Weeks Feeding | M244: Total Cost ($) | AB244: =AB239+AB240+AB241+AB242+AB243 -> 25 | AD244: =AD239+AD240+AD241+AD242+AD243 -> 6.538387001 | AE244: =AE239+AE240+AE241+AE242+AE243 -> 0.75 | AG244: =AG239+AG240+AG241+AG242+AG243 -> 5.788387001 | AH244: =AH239+AH240+AH241+AH242+AH243 -> 25
C245: FEEDING | E245: Number | AA245: d.s.e's | AB245: =AB244*2 -> 50
C246: Merino ewes | E246: ='Merino SR Input'!E70 -> 1000 | G246: =IFERROR(M246/(E246*I246/1000*K246),0) -> 305 | I246: =IFERROR(('Merino SR Input'!G70*'Merino SR Input'!H70+'Merino SR Input'!J70*'Merino SR Input'!K70+'Merino SR Input'!M70*'Merino SR Input'!N70)/SUM('Merino SR Input'!H70,'Merino SR Input'!K70,'Merino SR Input'!N70),0) -> 1.333333333 | K246: ='Merino SR Input'!H70+'Merino SR Input'!K70+'Merino SR Input'!N70 -> 36 | M246: ='Merino SR Input'!O70 -> 14640
E247: ='Merino SR Input'!E71 -> 0 | G247: =IFERROR(M247/(E247*I247/1000*K247),0) -> 0 | I247: =IFERROR(('Merino SR Input'!G71*'Merino SR Input'!H71+'Merino SR Input'!J71*'Merino SR Input'!K71+'Merino SR Input'!M71*'Merino SR Input'!N71)/SUM('Merino SR Input'!H71,'Merino SR Input'!K71,'Merino SR Input'!N71),0) -> 0 | K247: ='Merino SR Input'!H71+'Merino SR Input'!K71+'Merino SR Input'!N71 -> 0 | M247: ='Merino SR Input'!O71 -> 0
C248: Weaners | E248: ='Merino SR Input'!E72 -> 950 | G248: 314 | I248: =IFERROR(('Merino SR Input'!G72*'Merino SR Input'!H72+'Merino SR Input'!J72*'Merino SR Input'!K72+'Merino SR Input'!M72*'Merino SR Input'!N72)/SUM('Merino SR Input'!H72,'Merino SR Input'!K72,'Merino SR Input'!N72),0) -> 1.25 | K248: ='Merino SR Input'!H72+'Merino SR Input'!K72+'Merino SR Input'!N72 -> 12 | M248: ='Merino SR Input'!O72 -> 4474.5
C249: Ewe hoggets | E249: ='Merino SR Input'!E73 -> 0 | G249: 0 | I249: =IFERROR(('Merino SR Input'!G73*'Merino SR Input'!H73+'Merino SR Input'!J73*'Merino SR Input'!K73+'Merino SR Input'!M73*'Merino SR Input'!N73)/SUM('Merino SR Input'!H73,'Merino SR Input'!K73,'Merino SR Input'!N73),0) -> 0 | K249: ='Merino SR Input'!H73+'Merino SR Input'!K73+'Merino SR Input'!N73 -> 0 | M249: ='Merino SR Input'!O73 -> 0
C250: Rams | E250: ='Merino SR Input'!E74 -> 15 | G250: 370 | I250: =IFERROR(('Merino SR Input'!G74*'Merino SR Input'!H74+'Merino SR Input'!J74*'Merino SR Input'!K74+'Merino SR Input'!M74*'Merino SR Input'!N74)/SUM('Merino SR Input'!H74,'Merino SR Input'!K74,'Merino SR Input'!N74),0) -> 2 | K250: ='Merino SR Input'!H74+'Merino SR Input'!K74+'Merino SR Input'!N74 -> 10 | M250: ='Merino SR Input'!O74 -> 111
K253: Supplements | M253: =SUM('Merino SR Input'!I86:I87) -> 0
C258: TOTAL FEED COST | M258: =SUM(M246:M250,M253:M257) -> 19225.5
C263: GM SENSITIVITY
C264: Gross Margin/DSE | E264: Average Greasy Wool Price (c/Kg)
G265: 750 | I265: 800 | K265: 808 | M265: 950 | O265: 1000 | Q265: 1050
E266: 39.16329679 | G266: =(G$265*$E$34*(1-$K$131)/100+$E266*$E$35*(1-$K$124)-($Q$170-$Q$124-$Q$131))/$Q$6 -> 10.40587923 | I266: =(I$265*$E$34*(1-$K$131)/100+$E266*$E$35*(1-$K$124)-($Q$170-$Q$124-$Q$131))/$Q$6 -> 12.66077339 | K266: =(K$265*$E$34*(1-$K$131)/100+$E266*$E$35*(1-$K$124)-($Q$170-$Q$124-$Q$131))/$Q$6 -> 13.02155645 | M266: =(M$265*$E$34*(1-$K$131)/100+$E266*$E$35*(1-$K$124)-($Q$170-$Q$124-$Q$131))/$Q$6 -> 19.42545587 | O266: =(O$265*$E$34*(1-$K$131)/100+$E266*$E$35*(1-$K$124)-($Q$170-$Q$124-$Q$131))/$Q$6 -> 21.68035003 | Q266: =(Q$265*$E$34*(1-$K$131)/100+$E266*$E$35*(1-$K$124)-($Q$170-$Q$124-$Q$131))/$Q$6 -> 23.93524419
E267: 44.16329679 | G267: 12.1856391 | I267: 14.44053325 | K267: 14.80131632 | M267: 21.20521573 | O267: 23.46010989 | Q267: 25.71500405
C268: Average Sheep Sale Price($/hd) | E268: 49.16329679 | G268: 13.96539896 | I268: 16.22029312 | K268: 16.58107619 | M268: 22.9849756 | O268: 25.23986976 | Q268: 27.49476392
E269: 54.16329679 | G269: 15.74515883 | I269: 18.00005299 | K269: 18.36083605 | M269: 24.76473547 | O269: 27.01962963 | Q269: 29.27452379
E270: 59.16329679 | G270: 17.5249187 | I270: 19.77981286 | K270: 20.14059592 | M270: 26.54449533 | O270: 28.79938949 | Q270: 31.05428365
E271: 64.16329679 | G271: 19.30467856 | I271: 21.55957272 | K271: 21.92035579 | M271: 28.3242552 | O271: 30.57914936 | Q271: 32.83404352
E272: 69.16329679 | G272: 21.08443843 | I272: 23.33933259 | K272: 23.70011566 | M272: 30.10401507 | O272: 32.35890923 | Q272: 34.61380339
E273: 74.16329679 | G273: 22.8641983 | I273: 25.11909246 | K273: 25.47987552 | M273: 31.88377494 | O273: 34.1386691 | Q273: 36.39356326
E274: 79.16329679 | G274: 24.64395817 | I274: 26.89885233 | K274: 27.25963539 | M274: 33.6635348 | O274: 35.91842896 | Q274: 38.17332312
E275: 84.16329679 | G275: 26.42371803 | I275: 28.67861219 | K275: 29.03939526 | M275: 35.44329467 | O275: 37.69818883 | Q275: 39.95308299
E276: 89.16329679 | G276: 28.2034779 | I276: 30.45837206 | K276: 30.81915512 | M276: 37.22305454 | O276: 39.4779487 | Q276: 41.73284286
C279: FLOCK STRUCTURE | E279: This table shows the number of merino sheep in each age group at mating
E280: Age Group
C281: Class of Sheep | E281: 0.5 y.o. | G281: 1.5 y.o. | I281: 2.5 y.o. | K281: 3.5 y.o. | M281: 4.5 y.o. | O281: 5.5 y.o. | Q281: 6.5 y.o.
C282: Ewes | E282: =$AB214 -> 475 | G282: =$AB215 -> 233.9596235 | I282: =$AB216 -> 215.5937931 | K282: =$AB217 -> 198.6696803 | M282: =$AB218 -> 183.0741104 | O282: =$AB219 -> 168.7027927 | Q282: 0
C283: Wethers | E283: =$AB228 -> 0 | G283: =$AB229 -> 0 | I283: 0 | K283: 0 | M283: 0 | O283: 0 | Q283: 0
C284: Rams | G284: =$AB240 -> 6.538387001 | I284: =$AB241 -> 6.342235391 | K284: =$AB242 -> 6.151968329 | M284: =$AB243 -> 5.967409279 | O284: 0 | Q284: 0

Sheet Wethers Input (hidden)
C2: ="WETHERS GROSS MARGIN - "&TEXT(m_year,"0000") -> WETHERS GROSS MARGIN - 2025
C4: GENERAL INFORMATION
C5: This represents a merino wether flock, producing 21 micron wool. Adjust wool price if different micron wool is produced. Following are the various assumptions used in the calculation of the Gross Margin. Cells with yellow highlight can be changed. No allowance has been made for pasture expenses such as seed, fertiliser and chemicals. Refer to pasture gross margins in the “Cropping Gross Margin Plan” for annual and perennial pasture costs. Use the livestock gross margin per DSE as income for the pasture gross margin.
C7: No of Wethers | E7: 1000
C9: Age Wethers sold | E9: 5.5
C10: Age Wethers bought | E10: 0.5
C13: Flock death Rate | E13: 0.03
C14: DSE rating/wether | E14: 1.2
C17: LIVESTOCK SALES | E17: Price/Hd | F17: Number | G17: Total | L17: ="Estimated "&TEXT(m_year,"0000")&" Sheep Sale Prices" -> Estimated 2025 Sheep Sale Prices
C18: Wethers | E18: 110 | F18: =ROUND(Wethers!AG220,0) -> 182 | G18: =E18*F18 -> 20020 | M18: Agricultural | N18: Pastoral
L24: Store lambs 35kg lwt | M24: 100 | N24: 90
C25: TOTAL SALES | F25: =SUM(F18:F23) -> 182 | G25: =SUM(G18:G23) -> 20020 | L25: Cast for age Wethers | M25: 110 | N25: 100
C28: LIVESTOCK PURCHASES | E28: Price/Hd | F28: Number | G28: Total
C29: Wethers | E29: 100 | F29: =Wethers!AD220 -> 212.3653636 | G29: =E29*F29 -> 21236.53636
L30: Ewe Lambs | M30: 175 | N30: 160
C32: TOTAL PURCHASES | F32: =SUM(F29:F30) -> 212.3653636 | G32: =SUM(G29:G30) -> 21236.53636
C35: WOOL PRICE (cents/kg) | F35: =TEXT(m_year-3,"0000")&" Average (Clean)" -> 2022 Average (Clean) | G35: =TEXT(m_year-2,"0000")&" Average (Clean)" -> 2023 Average (Clean) | H35: =TEXT(m_year-1,"0000")&" Average (Clean)" -> 2024 Average (Clean) | I35: Budget Base (Clean) | J35: Budget Base (Greasy) | L35: Wool Type | M35: Budget Clean Price
E36: Cereal Zone 21 mic 68% yield | F36: 1271 | G36: 1340 | H36: 1373 | I36: 1320 | J36: =I36*I37 -> 897.6 | L36: 19 mic | M36: 1400
E37: Estimated wool yield | I37: 0.68 | L37: 21 mic | M37: 1320
C38: Allow 90% to account for lower value of bellies, skirtings etc. | J38: =J36*0.9 -> 807.84 | L38: 22 mic | M38: 1280
C42: WOOL SALES - SHEARING | F42: Wool Cut | G42: Wool Price
E43: Number | F43: kg/hd | G43: cents/kg
C44: Wethers | E44: =Wethers!E233 -> 985 | F44: 7.5 | G44: =J38 -> 807.84
C52: TOTAL | E52: =SUM(E44:E51) -> 985 | F52: =SUMPRODUCT(E44:E50,F44:F50) -> 7387.5
C55: STOCK HEALTH REQUIREMENTS | E55: =HYPERLINK("http://paraboss.com.au","for more info on drench, lice and blowfly product selection refer to www.paraboss.com.au") -> for more info on drench, lice and blowfly product selection refer to www.paraboss.com.au
G56: Number of times | J56: Dosage in ml
E57: Number | F57: Drench | G57: Vacc. | H57: Blowfly | I57: Drench | J57: Vacc. | K57: Blowfly
C58: Wethers | E58: =Wethers!E220 -> 1000 | F58: 1 | G58: 1 | H58: 1 | I58: 13 | J58: 1 | K58: 24
H63: Product Cost per litre | I63: 75 | J63: 235 | K63: 70
C64: TOTAL | E64: =SUM(E58:E62) -> 1000 | F64: =SUMPRODUCT($E$58:$E$62,F58:F62) -> 1000 | G64: =SUMPRODUCT($E$58:$E$62,G58:G62) -> 1000 | H64: =SUMPRODUCT($E$58:$E$62,H58:H62) -> 1000
C67: FEEDING
C68: HAY | F68: Hay | G68: Kgs Fed | H68: No Weeks | I68: Total
E69: Number | F69: Cost ($/T) | G69: per Week | H69: of Feeding | I69: Cost ($)
C70: Cereal Hay | E70: =Wethers!E220 -> 1000 | F70: 220 | G70: 1.5 | H70: 10 | I70: =(H70*G70*E70)/1000*F70 -> 3300
C71: Legume Hay | I71: =(H71*G71*E71)/1000*F71 -> 0
I72: =(H72*G72*E72)/1000*F72 -> 0
C74: GRAIN | F74: Grain | G74: Kgs Fed | H74: No Weeks | I74: Total
E75: Number | F75: Cost ($/T) | G75: per Week | H75: of Feeding | I75: Cost ($)
C76: Lupins | E76: =Wethers!E220 -> 1000 | F76: 320 | I76: =(H76*G76*E76)/1000*F76 -> 0
C77: Barley | I77: =(H77*G77*E77)/1000*F77 -> 0
C78: Oats | I78: =(H78*G78*E78)/1000*F78 -> 0
C80: Supplements | G80: Kgs Fed | H80: No weeks | I80: Total
E81: Number | F81: Cost ($/kg) | G81: per week | H81: of Feeding | I81: Cost ($)
I82: =(H82*G82*E82)*F82 -> 0
I83: =(H83*G83*E83)*F83 -> 0
H85: Total Feed Cost | I85: =SUM(I70:I72,I76:I78,I82:I83) -> 3300

Sheet Wethers (hidden)
C1: WHETHERS
C2: ="WETHERS GROSS MARGIN - "&TEXT(m_year,"0000") -> WETHERS GROSS MARGIN - 2025
C4: ASSUMPTIONS
C6: Ave Wether Fibre Diameter | E6: 21 | O6: Gross Margin per Ha | Q6: =Q172/E198 -> 139.0786646
C7: Number of Wethers | E7: ='Wethers Input'!$E$7 -> 1000 | O7: Gross Margin per DSE | Q7: =Q174 -> 23.17977743
C8: Stocking Rate (DSE/Ha) | E8: =E196 -> 6 | O8: Gross Margin/Wether | Q8: =Q172/E199 -> 27.81573291
C32: INCOME | Q32: $
C34: Wool (kg greasy) | E34: =I234 -> 7387.5 | G34: kg | I34: av price | K34: ='Wethers Input'!J38 -> 807.84 | M34: c/kg | Q34: =E34*K34/100 -> 59679.18
C35: Sales | E35: =E211 -> 182.3653636 | G35: animals | I35: av price | K35: =G210 -> 110 | M35: /head | Q35: =K35*E35 -> 20060.19
C37: Gross Income | Q37: =SUM(Q34:Q35) -> 79739.37
AA45: STOCK VALUE AND D.S.E REQUIREMENT
C46: VARIABLE COSTS
C47: Shearing | K47: Rate
C48: Shearing | E48: =E234 -> 985 | G48: sheep | I48: Reset Rate> | J48: =GM_INFO!C79 | K48: =GM_INFO!C79 -> 381.58 | M48: /100 | Q48: =K48/100*ROUND(E48,0) -> 3758.563 | X48: Most Shearing contractors charge
X49: 15% or more above the Federal Award rate.
C50: Shed labour | E50: 4 | G50: days | I50: Reset Rate> | J50: =GM_INFO!C81 | K50: =GM_INFO!C81 -> 289.4 | M50: /day | Q50: =K50*ROUND(E50,0) -> 1157.6 | X50: 15% or more above the Federal Award rate.
C51: Woolclasser | E51: 2 | G51: days | I51: Reset Rate> | J51: =GM_INFO!C82 | K51: =GM_INFO!C82 -> 350.85 | M51: /day | Q51: =K51*E51 -> 701.7
C52: Superannuation (on ord wages only) | I52: Reset Rate> | J52: =GM_INFO!C83 | K52: =GM_INFO!C83 -> 0.115 | M52: wages | Q52: =(Q48+Q50+Q51)*K52 -> 646.054245
C53: W/Cover (incl. super + otime etc) | I53: Reset Rate> | J53: =GM_INFO!C84 | K53: =GM_INFO!C84 -> 0.04 | M53: total | Q53: =(Q48+Q49+Q50+Q51+Q52)*K53 -> 250.5566898
C54: Wool packs | E54: =E122 -> 43.45588235 | G54: packs | I54: Reset Rate> | J54: =GM_INFO!C77 | K54: =GM_INFO!C77 -> 15 | M54: /pack | Q54: =K54*ROUND(E54,0) -> 645
C55: Shed sundries | E55: =E48 -> 985 | G55: sheep | I55: Reset Rate> | J55: =GM_INFO!C85 | K55: =GM_INFO!C85 -> 0.22 | M55: /head | Q55: =K55*ROUND(E55,0) -> 216.7
C56: Lice control | E56: =E48 -> 985 | G56: sheep | I56: Reset Rate> | J56: =GM_INFO!C66 | K56: =GM_INFO!C66 -> 1.64 | M56: /head | Q56: =K56*ROUND(E56,0) -> 1615.4
C57: Crutching | E57: =E228 -> 1000 | G57: sheep | I57: Reset Rate> | J57: =GM_INFO!C87 | K57: =GM_INFO!C89 -> 122.11 | M57: /100 | Q57: =K57/100*ROUND(E57,0) -> 1221.1
AS79: RAMS | AT79: OPENING | AU79: NATURAL | AV79: PURCHASES | AW79: DEATHS | AX79: % sold | AY79: SALES | AZ79: CLOSING
AS80: AGE | AT80: NUMBERS | AU80: INCREASE | AX80: culled | AZ80: NUMBERS
AS82: 0.5-1.5yr | AV82: =AT83/(1-AX82) -> 0 | AW82: =AT82*$R$81 -> 0 | AZ82: =AT82+AU82+AV82-AW82-AY82 -> 0
AS83: 1.5-2.5yr | AT83: =IF(AY53=3,(AU51*AY51)/(1+(1-AY55)*(1-AX83)*(1+(1-AY55)*(1-AX84)*(1+(1-AY55)*(1-AX85)))),IF(AY53=4,(AU51*AY51)/(1+(1-AY55)*(1-AX83)*(1+(1-AY55)*(1-AX84)*(1+(1-AY55)*(1-AX85)*(1+(1-AY55)*(1-AX86))))),0)) -> 0 | AW83: =AT83*$R$81 -> 0 | AZ83: =AT83+AU83+AV83-AW83-AY83 -> 0
AS84: 2.5-3.5yr | AT84: =AZ83 -> 0 | AW84: =AT84*$R$81 -> 0 | AZ84: =AT84+AU84+AV84-AW84-AY84 -> 0
AS85: 3.5-4.5yr | AT85: =AZ84 -> 0 | AW85: =AT85*$R$81 -> 0 | AX85: =IF(AY53=3,100%,0) -> 0 | AY85: =(AT85-AW85)*AX85 -> 0 | AZ85: =AT85+AU85+AV85-AW85-AY85 -> 0
AS86: 4.5-5.5yr | AT86: =AZ85 -> 0 | AW86: =AT86*$R$81 -> 0 | AX86: =IF(AY53=4,100%,0) -> 0 | AY86: =AT86-AW86 -> 0 | AZ86: =AT86+AU86+AV86-AW86-AY86 -> 0
AT87: =AT82+AT83+AT84+AT85+AT86 -> 0 | AV87: =AV82+AV83+AV84+AV85+AV86 -> 0 | AW87: =AW82+AW83+AW84+AW85+AW86 -> 0 | AY87: =AY82+AY83+AY84+AY85+AY86 -> 0 | AZ87: =AZ82+AZ83+AZ84+AZ85+AZ86 -> 0
AS88: d.s.e's | AT88: =AT87*AE49 -> 0
C89: Animal Health
C90: Drench | E90: ='Wethers Input'!F64 -> 1000 | G90: sheep | J90: =GM_INFO!C69 | K90: =Q90/E90 -> 0.975 | M90: /head | Q90: =ROUND(G228,0) -> 975
C91: Vaccinate | E91: ='Wethers Input'!G64 -> 1000 | G91: sheep | J91: =GM_INFO!C72 | K91: 0.94 | M91: /head | Q91: =ROUND(I228,0) -> 940
C92: Blowfly control | E92: ='Wethers Input'!H64 -> 1000 | G92: sheep | J92: =GM_INFO!C76 | K92: 1.68 | M92: /head | Q92: =ROUND(K228,0) -> 1680
C93: Other expenses | G93: sheep | I93: Reset Rate> | M93: /head | Q93: =K93*ROUND(E93,0) -> 0
C104: Stock purchases
C105: Purchases | E105: =ROUND(E213,0) -> 212 | G105: wethers | I105: Reset Rate> | J105: ='Wethers Input'!E29 | K105: ='Wethers Input'!E29 -> 100 | M105: /head | Q105: =K105*E105 -> 21200
C117: Sale Costs
C118: Freight
C119: Livestock | E119: =E211+E213 -> 394.7307272 | G119: sheep | I119: Reset Rate> | J119: =GM_INFO!B161 | K119: =GM_INFO!B161 -> 7 | M119: /head | Q119: =K119*ROUND(E119,0) -> 2765
I120: Reset Rate> | M120: /head
I121: Reset Rate> | M121: /head
C122: Wool | E122: =I234/170 -> 43.45588235 | G122: bales | I122: Reset Rate> | J122: =GM_INFO!B164 | K122: =GM_INFO!B164 -> 15 | M122: /bale | Q122: =K122*ROUND(E122,0) -> 645
C123: Stock selling charges
C124: Commission/insurance | I124: Reset Rate> | J124: =GM_INFO!C98 | K124: =GM_INFO!C98 -> 0.055 | M124: gross $ | Q124: =K124*Q35 -> 1103.31045
C125: Yard fees | E125: =E211 -> 182.3653636 | G125: sheep | I125: Reset Rate> | J125: =GM_INFO!C99 | K125: =GM_INFO!C99 -> 1 | M125: /head | Q125: =K125*ROUND(E125,0) -> 182
C126: Levy trans-sheep | E126: =E211 -> 182.3653636 | G126: sheep | I126: Reset Rate> | J126: =GM_INFO!C100 | K126: =GM_INFO!C100 -> 0.2 | M126: /head | Q126: =K126*ROUND(E126,0) -> 36.4
C128: SA sheep industry levy | E128: =E211 -> 182.3653636 | G128: sheep | I128: Reset Rate> | J128: =GM_INFO!C102 | K128: =GM_INFO!C102 -> 0.67 | M128: /head | Q128: =K128*ROUND(E128,0) -> 121.94
C129: Wool selling charges
C130: Brokerage/testing/insurance | I130: Reset Rate> | J130: =GM_INFO!C103 | K130: =GM_INFO!C103 -> 0.27 | M130: /kg | Q130: =K130*E34 -> 1994.625
C131: Wool levy | I131: Reset Rate> | J131: =GM_INFO!C104 | K131: =GM_INFO!C104 -> 0.015 | M131: gross | Q131: =K131*Q34 -> 895.1877
C143: Feed and Other Costs
C144: Hand Feeding | Q144: ='Wethers Input'!I85 -> 3300
C146: Insurance | E146: =E239*G239 -> 105000 | G146: value | I146: Reset Rate> | J146: =GM_INFO!B157 | K146: =GM_INFO!B157 -> 4.5 | M146: /$'000 | Q146: =K146/1000*E146 -> 472.5
C147: Water | E147: =$E$197 -> 1200 | G147: DSE's | I147: Reset Rate> | J147: =GM_INFO!G130 | K147: =GM_INFO!G130 -> 2.5 | M147: /DSE's | Q147: =K147*E147 -> 3000
C148: Veh Fuel, R&M | E148: =$E$197 -> 1200 | G148: DSE's | I148: Reset Rate> | J148: =GM_INFO!G131 | K148: =GM_INFO!G131 -> 1.5 | M148: /DSE's | Q148: =K148*E148 -> 1800
C149: Other | E149: =$E$197 -> 1200 | G149: DSE's | I149: Reset Rate> | J149: =GM_INFO!G132 | K149: =GM_INFO!G132 -> 0.5 | M149: /DSE's | Q149: =K149*E149 -> 600
C170: TOTAL VARIABLE COSTS | Q170: =SUM(Q48:Q166) -> 51923.63708
C172: GROSS MARGIN TOTAL | Q172: =Q37-Q170 -> 27815.73291
C174: GROSS MARGIN/DSE | Q174: =Q172/E197 -> 23.17977743
C194: PRODUCTION DATA
C196: Stocking rate (DSE/Ha) | E196: 6 | K196: Culling Rate (% from each group) | Q196: Stock | AA196: SHEEP GROSS MARGIN
C197: Total DSE's | E197: ='Wethers Input'!E7*'Wethers Input'!E14 -> 1200 | K197: Age Group | M197: Ewes | O197: Wethers | Q197: No's
C198: SHEEP GRAZING AREA | E198: =E197/E196 -> 200 | K198: 0.5 | O198: =AF214 -> 0 | Q198: =AH214 -> 212.3653636
C199: Number of wethers | E199: ='Wethers Input'!E7 -> 1000 | K199: 1.5 | O199: 0 | Q199: 205.9944027
C200: Flock death rate | E200: ='Wethers Input'!E13 -> 0.03 | K200: 2.5 | O200: 0 | Q200: 199.8145706
C201: Age wethers bought | E201: ='Wethers Input'!E10 -> 0.5 | K201: 3.5 | O201: 0 | Q201: 193.8201335
C202: Age wethers culled | E202: ='Wethers Input'!E9 -> 5.5 | K202: 4.5 | O202: 0 | Q202: 188.0055295 | AA202: No of wethers | AC202: ='Wethers Input'!E7 -> 1000
B203: =VLOOKUP(r[0]c3&"No Ops",CHOOSE({1,2},tbl_ops[Name]&tbl_ops[Category],INDIRECT("tbl_ops["&var_crop&"]")),2,0) | K203: 5.5 | O203: 1 | Q203: 0 | AA203: Age wethers purchased | AC203: =E201 -> 0.5
B204: =VLOOKUP(r[0]c3&"No Ops",CHOOSE({1,2},tbl_ops[Name]&tbl_ops[Category],INDIRECT("tbl_ops["&var_crop&"]")),2,0) | AA204: Age wethers sold | AC204: =E202 -> 5.5
B205: =VLOOKUP(r[0]c3&"No Ops",CHOOSE({1,2},tbl_ops[Name]&tbl_ops[Category],INDIRECT("tbl_ops["&var_crop&"]")),2,0) | AA205: Flock death rate | AC205: =E200 -> 0.03
B206: =VLOOKUP(r[0]c3&"No Ops",CHOOSE({1,2},tbl_ops[Name]&tbl_ops[Category],INDIRECT("tbl_ops["&var_crop&"]")),2,0) | AA206: dse/wether | AC206: ='Wethers Input'!E14 -> 1.2
B208: =VLOOKUP(r[0]c3&var_rain,CHOOSE({1,2},tbl_ops[Name]&tbl_ops[Rainfall],INDIRECT("tbl_ops["&var_crop&"]")),2,0)
B209: =VLOOKUP(r[0]c3&var_rain,CHOOSE({1,2},tbl_ops[Name]&tbl_ops[Rainfall],INDIRECT("tbl_ops["&var_crop&"]")),2,0) | C209: SALES | E209: Number | G209: Price/hd | I209: Age | K209: Total
B210: =VLOOKUP(r[0]c3&var_rain,CHOOSE({1,2},tbl_ops[Name]&tbl_ops[Rainfall],INDIRECT("tbl_ops["&var_crop&"]")),2,0) | C210: c.f.a wethers | E210: =AG220 -> 182.3653636 | G210: ='Wethers Input'!E18 -> 110 | I210: =E202 -> 5.5 | K210: =ROUND(E210,0)*G210 -> 20020
B211: =VLOOKUP(r[0]c3&var_rain,CHOOSE({1,2},tbl_ops[Name]&tbl_ops[Rainfall],INDIRECT("tbl_ops["&var_crop&"]")),2,0) | C211: TOTAL | E211: =E210 -> 182.3653636 | K211: =K210 -> 20020 | AA211: WETHERS | AB211: OPENING | AC211: NATURAL | AD211: PURCHASES | AE211: DEATHS | AF211: % sold | AG211: SALES | AH211: CLOSING
C212: PURCHASES | E212: Number | G212: Price/hd | I212: Age | K212: Total | AA212: AGE | AB212: NUMBERS | AC212: INCREASE | AF212: culled | AH212: NUMBERS
C213: Wethers | E213: =AD220 -> 212.3653636 | G213: ='Wethers Input'!E29 -> 100 | I213: =E201 -> 0.5 | K213: =ROUND(E213,0)*G213 -> 21200
AA214: 0-0.5yr | AD214: =IF(AC203=0.5,AB215-AE214-AG214,0) -> 212.3653636 | AE214: =AB214*$AC$205 -> 0 | AF214: =IF(AC204=0.5,100%,0) -> 0 | AG214: =AC214*AF214 -> 0 | AH214: =AB214+AC214+AD214-AE214-AG214 -> 212.3653636
AA215: 0.5-1.5yr | AB215: =IF(AC203=0.5,AC202/(1+(1-AC205)*(1-AF215)*(1+(1-AC205)*(1-AF216)*(1+(1-AC205)*(1-AF217)*(1+(1-AC205)*(1-AF218))))),0) -> 212.3653636 | AD215: =IF(AC203=1.5,AB216-AE215-AG215,0) -> 0 | AE215: 6.370960909 | AF215: =IF(AC204=1.5,100%,0) -> 0 | AG215: =(AB215-AE215)*AF215 -> 0 | AH215: 205.9944027
AA216: 1.5-2.5yr | AB216: =IF(AC203=1.5,AC202/(1+(1-AC205)*(1-AF216)*(1+(1-AC205)*(1-AF217)*(1+(1-AC205)*(1-AF218)))),AH215) -> 205.9944027 | AE216: 6.179832081 | AF216: =IF(AC204=2.5,100%,0) -> 0 | AG216: =(AB216-AE216)*AF216 -> 0 | AH216: 199.8145706
X217: Rotation between different drench groups generally does little to slow development of drench | AA217: 2.5-3.5yr | AB217: =AH216 -> 199.8145706 | AE217: 5.994437119 | AF217: =IF(AC204=3.5,100%,0) -> 0 | AG217: =(AB217-AE217)*AF217 -> 0 | AH217: 193.8201335
G218: Calculated Cost | X218: resistance and should not be used at the expense of these three highly effective practices: | AA218: 3.5-4.5yr | AB218: =AH217 -> 193.8201335 | AE218: 5.814604005 | AF218: =IF(AC204=4.5,100%,0) -> 0 | AG218: =(AB218-AE218)*AF218 -> 0 | AH218: 188.0055295
C219: STOCK HEALTH REQUIREMENTS | E219: Number | G219: Drench | I219: Vacc. | K219: Blowfly | X219: • use products most effective on your property | AA219: 4.5-5.5yr | AB219: =AH218 -> 188.0055295 | AE219: 5.640165885 | AF219: =IF(AC204=5.5,100%,0) -> 1 | AG219: =(AB219-AE219)*AF219 -> 182.3653636 | AH219: 0
C220: Wethers | E220: =ROUND('Wethers Input'!E7,0) -> 1000 | G220: ='Wethers Input'!$E58*'Wethers Input'!F58*'Wethers Input'!I58/1000*'Wethers Input'!I$63 -> 975 | I220: ='Wethers Input'!$E58*'Wethers Input'!G58*'Wethers Input'!J58/1000*'Wethers Input'!J$63*4 -> 940 | K220: ='Wethers Input'!$E58*'Wethers Input'!H58*'Wethers Input'!K58/1000*'Wethers Input'!K$63 -> 1680 | X220: • use multi-active (combination) products | AA220: Total | AB220: =SUM(AB215:AB219) -> 1000 | AD220: =SUM(AD214:AD219) -> 212.3653636 | AE220: =SUM(AE214:AE219) -> 30 | AG220: =SUM(AG214:AG219) -> 182.3653636 | AH220: =SUM(AH214:AH219) -> 1000
AA221: d.s.e's | AB221: =AB220*AC206 -> 1200
C228: TOTAL | E228: =SUM(E220:E227) -> 1000 | G228: =SUM(G220:G227) -> 975 | I228: =SUM(I220:I227) -> 940 | K228: =SUM(K220:K227) -> 1680 | X228: • use short-acting products
BH229: For more information: https://wormboss.com.au/tests-tools/drench-rotation-versus-combinations-to-combat-drench-resistance/
G231: Wool Cut kg/hd | I231: Total | K231: Wool Price
C232: SHEARING | E232: Number | I232: Greasy kg | K232: cents/kg
C233: Wethers | E233: =AB220-AE220*0.5 -> 985 | G233: ='Wethers Input'!F44 -> 7.5 | I233: =G233*E233 -> 7387.5 | K233: ='Wethers Input'!G44 -> 807.84
C234: TOTAL | E234: =E233 -> 985 | I234: =I233 -> 7387.5
C237: STOCK VALUE | G237: Value
E238: Number | G238: $/head
C239: Wethers | E239: =E199 -> 1000 | G239: =(G213+G210)/2 -> 105
C240: TOTAL | E240: =E239 -> 1000
G244: Hay Cost ($/T) | I244: Kg Fed per Week | K244: No of Weeks Feeding | M244: Total Cost ($)
C245: FEEDING | E245: Number
C246: Wethers | E246: ='Wethers Input'!E70 -> 1000 | G246: ='Wethers Input'!F70 -> 220 | I246: ='Wethers Input'!G70 -> 1.5 | K246: ='Wethers Input'!H70 -> 10 | M246: =(E246*G246*I246*K246)/1000 -> 3300
E247: ='Wethers Input'!E71 -> 0 | G247: ='Wethers Input'!F71 -> 0 | I247: ='Wethers Input'!G71 -> 0 | K247: ='Wethers Input'!H71 -> 0 | M247: =(E247*G247*I247*K247)/1000 -> 0
E248: ='Wethers Input'!E72 -> 0 | G248: ='Wethers Input'!F72 -> 0 | I248: ='Wethers Input'!G72 -> 0 | K248: ='Wethers Input'!H72 -> 0 | M248: =(E248*G248*I248*K248)/1000 -> 0
G249: Grain Cost ($/T) | I249: Kg Fed per Week | K249: No of Weeks Feeding | M249: Total Cost ($)
E250: Number
C251: Wethers | E251: ='Wethers Input'!E76 -> 1000 | G251: ='Wethers Input'!F76 -> 320 | I251: ='Wethers Input'!G76 -> 0 | K251: ='Wethers Input'!H76 -> 0 | M251: =(E251*G251*I251*K251)/1000 -> 0
E252: ='Wethers Input'!E77 -> 0 | G252: ='Wethers Input'!F77 -> 0 | I252: ='Wethers Input'!G77 -> 0 | K252: ='Wethers Input'!H77 -> 0 | M252: =(E252*G252*I252*K252)/1000 -> 0
E253: ='Wethers Input'!E78 -> 0 | G253: ='Wethers Input'!F78 -> 0 | I253: ='Wethers Input'!G78 -> 0 | K253: ='Wethers Input'!H78 -> 0 | M253: =(E253*G253*I253*K253)/1000 -> 0
C254: TOTAL FEED COST | M254: =SUM(M246:M248,M251:M253) -> 3300
C259: GM SENSITIVITY
C260: Gross Margin/DSE | E260: Average Greasy Wool Price (c/Kg)
G261: 750 | I261: 800 | K261: 808 | M261: 950 | O261: 1000 | Q261: 1050
E262: 50 | G262: =(G$261*$E$34*(1-$K$131)/100+$E262*$E$35*(1-$K$124)-($Q$170-$Q$124-$Q$131))/$E$197 -> 11.05565062 | I262: =(I$261*$E$34*(1-$K$131)/100+$E262*$E$35*(1-$K$124)-($Q$170-$Q$124-$Q$131))/$E$197 -> 14.08760375 | K262: =(K$261*$E$34*(1-$K$131)/100+$E262*$E$35*(1-$K$124)-($Q$170-$Q$124-$Q$131))/$E$197 -> 14.57271625 | M262: =(M$261*$E$34*(1-$K$131)/100+$E262*$E$35*(1-$K$124)-($Q$170-$Q$124-$Q$131))/$E$197 -> 23.18346312 | O262: =(O$261*$E$34*(1-$K$131)/100+$E262*$E$35*(1-$K$124)-($Q$170-$Q$124-$Q$131))/$E$197 -> 26.21541625 | Q262: =(Q$261*$E$34*(1-$K$131)/100+$E262*$E$35*(1-$K$124)-($Q$170-$Q$124-$Q$131))/$E$197 -> 29.24736937
E263: 55 | G263: 11.77371424 | I263: 14.80566737 | K263: 15.29077987 | M263: 23.90152674 | O263: 26.93347987 | Q263: 29.96543299
C264: Average Sheep Sale Price($/hd) | E264: 60 | G264: 12.49177786 | I264: 15.52373099 | K264: 16.00884349 | M264: 24.61959036 | O264: 27.65154349 | Q264: 30.68349661
E265: 65 | G265: 13.20984148 | I265: 16.2417946 | K265: 16.7269071 | M265: 25.33765398 | O265: 28.3696071 | Q265: 31.40156023
E266: 70 | G266: 13.9279051 | I266: 16.95985822 | K266: 17.44497072 | M266: 26.0557176 | O266: 29.08767072 | Q266: 32.11962385
E267: 75 | G267: 14.64596872 | I267: 17.67792184 | K267: 18.16303434 | M267: 26.77378122 | O267: 29.80573434 | Q267: 32.83768747
E268: 80 | G268: 15.36403234 | I268: 18.39598546 | K268: 18.88109796 | M268: 27.49184484 | O268: 30.52379796 | Q268: 33.55575109
E269: 85 | G269: 16.08209596 | I269: 19.11404908 | K269: 19.59916158 | M269: 28.20990846 | O269: 31.24186158 | Q269: 34.27381471
E270: 90 | G270: 16.80015958 | I270: 19.8321127 | K270: 20.3172252 | M270: 28.92797208 | O270: 31.9599252 | Q270: 34.99187833
E271: 95 | G271: 17.5182232 | I271: 20.55017632 | K271: 21.03528882 | M271: 29.6460357 | O271: 32.67798882 | Q271: 35.70994195
E272: 100 | G272: 18.23628681 | I272: 21.26823994 | K272: 21.75335244 | M272: 30.36409931 | O272: 33.39605244 | Q272: 36.42800556

Sheet Cleanskin Sheep Input (hidden)
C2: ="CLEANSKIN SHEEP GROSS MARGIN - "&TEXT(m_year,"0000") -> CLEANSKIN SHEEP GROSS MARGIN - 2025
C4: GENERAL INFORMATION
C5: This represents a fully wool shedding self-replacing flock, with no shearing, crutching or lice control. Assumes only one lambing each year. Following are the various assumptions used in the calculation of the Gross Margin. Cells with yellow highlight can be changed. No allowance has been made for pasture expenses such as seed, fertiliser and chemicals. Refer to pasture gross margins in the “Cropping Gross Margin Plan” for annual and perennial pasture costs. Use the livestock gross margin per DSE as income for the pasture gross margin.
C7: Ewes mated | E7: 1000
C8: Age ewes 1st mating | E8: 1 | L8: Average Weaning Perentage
C9: Age ewes sold | E9: 6.5 | M9: Agricultural | N9: Pastoral
C10: Av Weaning % | E10: 1.5 | L10: Av % | M10: 1.5 | N10: 1.3
C11: Ram percentage | E11: 0.025
C12: Years Rams Kept | E12: 4
C13: Flock death Rate | E13: 0.03
C17: LIVESTOCK SALES | E17: Price/Hd | F17: Number | G17: Total | L17: ="Estimated "&TEXT(m_year,"0000")&" Sheep Sale Prices" -> Estimated 2025 Sheep Sale Prices
C18: c.f.a Ewes | E18: 110 | F18: ='Cleanskin Sheep'!AG220 -> 203.9596235 | G18: =E18*ROUND(F18,0) -> 22440 | M18: Agricultural | N18: Pastoral
C19: c.f.a Rams | E19: 20 | F19: ='Cleanskin Sheep'!AG244 -> 5.788387001 | G19: =E19*ROUND(F19,0) -> 120 | L19: Store lambs 35kg lwt | M19: 125 | N19: 115
C20: ewe hoggets | E20: 250 | F20: ='Cleanskin Sheep'!AG222 -> 493.5403765 | G20: =E20*ROUND(F20,0) -> 123500 | L20: Wether lambs 55 kg lwt | M20: 210 | N20: 200
C21: Wether lambs finished 55kg lwt | E21: 210 | F21: ='Cleanskin Sheep'!AG230-F22 -> 700 | G21: =E21*ROUND(F21,0) -> 147000 | L21: Cast for age ewes | M21: 110 | N21: 100
C22: Store lambs | E22: 125 | F22: 50 | G22: =E22*ROUND(F22,0) -> 6250 | L22: Cast for age rams | M22: 20 | N22: 20
C25: TOTAL SALES | F25: =SUM(F18:F23) -> 1453.288387 | G25: =SUM(G18:G23) -> 299310
C28: LIVESTOCK PURCHASES | E28: Price/Hd | F28: Number | G28: Total
C30: Rams | E30: 1200 | F30: =ROUND('Cleanskin Sheep'!AD244,0) -> 7 | G30: =E30*F30 -> 8400
C32: TOTAL PURCHASES | F32: =SUM(F29:F30) -> 7 | G32: =SUM(G29:G30) -> 8400
C54: STOCK HEALTH REQUIREMENTS | E54: =HYPERLINK("http://paraboss.com.au","for more info on drench, lice and blowfly product selection refer to www.paraboss.com.au") -> for more info on drench, lice and blowfly product selection refer to www.paraboss.com.au
G55: Number of times | K55: Dosage in ml
E56: Number | F56: Drench | G56: Vacc. | H56: Blowfly | I56: Lice | J56: Drench | K56: Vacc. | L56: Blowfly | M56: Lice
C57: Ewes | E57: ='Cleanskin Sheep'!E220 -> 1000 | F57: 1 | G57: 1 | J57: 13 | K57: 1 | L57: 24 | M57: 1
C58: Ewe hoggets | E58: ='Cleanskin Sheep'!E221 -> 750 | F58: 1 | G58: 1 | J58: 13 | K58: 1 | L58: 24 | M58: 1
C59: Wether weaners | E59: ='Cleanskin Sheep'!E222 -> 0 | F59: 1 | G59: 1 | J59: 13 | K59: 1 | L59: 24 | M59: 1
C60: Lambs | E60: ='Cleanskin Sheep'!E223 -> 1500 | F60: 1 | G60: 2 | J60: 13 | K60: 1 | L60: 24 | M60: 1
C61: Rams | E61: ='Cleanskin Sheep'!E224 -> 25 | F61: 2 | G61: 1 | J61: 13 | K61: 1 | L61: 24 | M61: 1
I62: Product Cost per litre | J62: 75 | K62: 235 | L62: 70 | M62: 71
C63: TOTAL | E63: =SUM(E57:E61) -> 3275 | F63: =SUMPRODUCT($E$57:$E$61,F57:F61) -> 3300 | G63: =SUMPRODUCT($E$57:$E$61,G57:G61) -> 4775 | H63: =SUMPRODUCT($E$57:$E$61,H57:H61) -> 0 | I63: =SUMPRODUCT($E$57:$E$61,I57:I61) -> 0
C66: FEEDING
C67: hay/straw/grain/pellets | F67: Feed 1 | G67: Kgs Fed | H67: No of | I67: Feed 2 | J67: Kgs Fed | K67: No of | L67: Feed 3 | M67: Kgs Fed | N67: No of | O67: Total
E68: Number | F68: Cost ($/T) | G68: per Week | H68: Weeks | I68: Cost ($/T) | J68: per Week | K68: Weeks | L68: Cost ($/T) | M68: per Week | N68: Weeks | O68: Cost
C69: Ewes | E69: 1000 | F69: 300 | G69: 2 | H69: 12 | I69: 370 | J69: 1 | K69: 12 | L69: 250 | M69: 1 | N69: 12 | O69: =(E69*G69*H69)/1000*F69+(E69*J69*K69)/1000*I69+(E69*M69*N69)/1000*L69 -> 14640
O70: 0
C71: Weaners | E71: 950 | F71: 300 | G71: 2 | H71: 6 | I71: 370 | J71: 0.5 | K71: 6 | O71: 4474.5
C72: Ewe hoggets | O72: 0
C73: Rams | E73: 15 | I73: 370 | J73: 2 | K73: 10 | O73: 111
C82: Supplements | G82: Kgs Fed | H82: No weeks | I82: Total
E83: Number | F83: Cost ($/kg) | G83: per week | H83: of Feeding | I83: Cost ($)
I84: =(H84*G84*E84)*F84 -> 0
I85: =(H85*G85*E85)*F85 -> 0
H87: Total Feed Cost | I87: =SUM(O69:O73,I78:I82,I84:I85) -> 19225.5

Sheet Cleanskin Sheep (hidden)
C1: CLEANSKIN SHEEP
C2: =UPPER(Var_Animal)&" GROSS MARGIN - "&TEXT(m_year,"0000") -> CLEANSKIN SHEEP GROSS MARGIN - 2025
C4: ASSUMPTIONS
O6: Total DSE's | Q6: =E197 -> 2950
C7: No. of breeding ewes | E7: ='Cleanskin Sheep Input'!$E$7 -> 1000 | O7: Stocking Rate (DSE/Ha) | Q7: =E196 -> 6
C32: INCOME | Q32: $
C35: Sales | E35: =ROUND(E214,0) -> 1453 | G35: animals | I35: av price | K35: =G214 -> 205.9536171 | M35: /head | Q35: =I214 -> 299310
C37: Gross Income | Q37: =SUM(Q34:Q35) -> 299310
AA45: STOCK VALUE AND D.S.E REQUIREMENT
C46: VARIABLE COSTS
C75: Marking | K75: Rate
C76: Lamb marking | E76: =E199*E203 -> 1500 | G76: lambs | I76: Reset Rate> | J76: =GM_INFO!C91 | K76: =GM_INFO!C91 -> 1.5 | M76: /head | Q76: =K76*ROUND(E76,0) -> 2250
C77: Ear tags | E77: =E76 -> 1500 | G77: lambs | I77: Reset Rate> | J77: =GM_INFO!C92 | K77: =GM_INFO!C92 -> 2.32 | M77: /head | Q77: =K77*ROUND(E77,0) -> 3480
AS79: RAMS | AT79: OPENING | AU79: NATURAL | AV79: PURCHASES | AW79: DEATHS | AX79: % sold | AY79: SALES | AZ79: CLOSING
AS80: AGE | AT80: NUMBERS | AU80: INCREASE | AX80: culled | AZ80: NUMBERS
AS82: 0.5-1.5yr | AV82: =AT83/(1-AX82) -> 0 | AW82: =AT82*$R$81 -> 0 | AZ82: =AT82+AU82+AV82-AW82-AY82 -> 0
AS83: 1.5-2.5yr | AT83: =IF(AY53=3,(AU51*AY51)/(1+(1-AY55)*(1-AX83)*(1+(1-AY55)*(1-AX84)*(1+(1-AY55)*(1-AX85)))),IF(AY53=4,(AU51*AY51)/(1+(1-AY55)*(1-AX83)*(1+(1-AY55)*(1-AX84)*(1+(1-AY55)*(1-AX85)*(1+(1-AY55)*(1-AX86))))),0)) -> 0 | AW83: =AT83*$R$81 -> 0 | AZ83: =AT83+AU83+AV83-AW83-AY83 -> 0
AS84: 2.5-3.5yr | AT84: =AZ83 -> 0 | AW84: =AT84*$R$81 -> 0 | AZ84: =AT84+AU84+AV84-AW84-AY84 -> 0
AS85: 3.5-4.5yr | AT85: =AZ84 -> 0 | AW85: =AT85*$R$81 -> 0 | AX85: =IF(AY53=3,100%,0) -> 0 | AY85: =(AT85-AW85)*AX85 -> 0 | AZ85: =AT85+AU85+AV85-AW85-AY85 -> 0
AS86: 4.5-5.5yr | AT86: =AZ85 -> 0 | AW86: =AT86*$R$81 -> 0 | AX86: =IF(AY53=4,100%,0) -> 0 | AY86: =AT86-AW86 -> 0 | AZ86: =AT86+AU86+AV86-AW86-AY86 -> 0
AT87: =AT82+AT83+AT84+AT85+AT86 -> 0 | AV87: =AV82+AV83+AV84+AV85+AV86 -> 0 | AW87: =AW82+AW83+AW84+AW85+AW86 -> 0 | AY87: =AY82+AY83+AY84+AY85+AY86 -> 0 | AZ87: =AZ82+AZ83+AZ84+AZ85+AZ86 -> 0
AS88: d.s.e's | AT88: =AT87*AE49 -> 0
C89: Animal Health
C90: Drench | E90: ='Cleanskin Sheep Input'!F63 -> 3300 | G90: sheep | J90: =GM_INFO!C69 | K90: =IFERROR(Q90/E90,0) -> 0.9751515152 | M90: /head | Q90: =ROUND(G228,0) -> 3218
C91: Vaccinate | E91: ='Cleanskin Sheep Input'!G63 -> 4775 | G91: sheep | J91: =GM_INFO!C72 | K91: 0.940104712 | M91: /head | Q91: =ROUND(I228,0) -> 4489
C92: Blowfly control | E92: ='Cleanskin Sheep Input'!H63 -> 0 | G92: sheep | J92: =GM_INFO!C76 | K92: 0 | M92: /head | Q92: =ROUND(K228,0) -> 0
C93: Lice control | E93: ='Cleanskin Sheep Input'!I63 -> 0 | G93: sheep | J93: =GM_INFO!C66 | K93: 0 | M93: /head | Q93: =ROUND(M228,0) -> 0
C104: Stock purchases
C105: Purchases | E105: =ROUND(AD244,0) -> 7 | G105: rams | I105: Reset Rate> | J105: ='Cleanskin Sheep Input'!E30 | K105: ='Cleanskin Sheep Input'!E30 -> 1200 | M105: /head | Q105: =K105*E105 -> 8400
C117: Sale Costs
C118: Freight
C119: ewes | E119: =E210 -> 203.9596235 | G119: sheep | I119: Reset Rate> | J119: =GM_INFO!B161 | K119: =GM_INFO!B161 -> 7 | M119: /head | Q119: =K119*ROUND(E119,0) -> 1428
C120: rams | E120: =E211 -> 5.788387001 | G120: sheep | I120: Reset Rate> | J120: =GM_INFO!B165 | K120: =GM_INFO!B165 -> 7 | M120: /head | Q120: =K120*ROUND(E120,0) -> 42
C121: hoggets | E121: =E212 -> 493.5403765 | G121: sheep | I121: Reset Rate> | J121: =GM_INFO!B166 | K121: =GM_INFO!B166 -> 7 | M121: /head | Q121: =K121*ROUND(E121,0) -> 3458
C122: lambs | E122: =E213 -> 750 | G122: sheep | I122: Reset Rate> | J122: =GM_INFO!B163 | K122: =GM_INFO!B163 -> 7 | M122: /head | Q122: =K122*ROUND(E122,0) -> 5250
C123: Stock selling charges
C124: Commission/insurance | I124: Reset Rate> | J124: =GM_INFO!C98 | K124: =GM_INFO!C98 -> 0.055 | M124: gross $ | Q124: =K124*Q35 -> 16462.05
C125: Yard fees | E125: =E214 -> 1453.288387 | G125: sheep | I125: Reset Rate> | J125: =GM_INFO!C99 | K125: =GM_INFO!C99 -> 1 | M125: /head | Q125: =K125*ROUND(E125,0) -> 1453
C126: Levy trans-sheep | E126: =SUM(E210:E212) -> 703.288387 | G126: sheep | I126: Reset Rate> | J126: =GM_INFO!C100 | K126: =GM_INFO!C100 -> 0.2 | M126: /head | Q126: =K126*ROUND(E126,0) -> 140.6
C127: Levy trans-lambs | E127: =E213 -> 750 | G127: sheep | I127: Reset Rate> | J127: =GM_INFO!C101 | K127: =GM_INFO!C101 -> 2 | M127: /head | Q127: =K127*ROUND(E127,0) -> 1500
C128: SA sheep industry levy | E128: =E214 -> 1453.288387 | G128: sheep | I128: Reset Rate> | J128: =GM_INFO!C102 | K128: =GM_INFO!C102 -> 0.67 | M128: /head | Q128: =K128*ROUND(E128,0) -> 973.51
C143: Feed and Other Costs
C144: Hand Feeding | Q144: ='Cleanskin Sheep Input'!I87 -> 19225.5
C146: Insurance | E146: =E229 -> 674498.096 | G146: value | I146: Reset Rate> | J146: =GM_INFO!B157 | K146: =GM_INFO!B157 -> 4.5 | M146: /$'000 | Q146: =K146/1000*E146 -> 3035.241432
C147: Water | E147: =$E$197 -> 2950 | G147: DSE's | I147: Reset Rate> | J147: =GM_INFO!H130 | K147: =GM_INFO!H130 -> 2.5 | M147: /DSE's | Q147: =K147*E147 -> 7375
C148: Veh Fuel, R&M | E148: =$E$197 -> 2950 | G148: DSE's | I148: Reset Rate> | J148: =GM_INFO!H131 | K148: =GM_INFO!H131 -> 1.5 | M148: /DSE's | Q148: =K148*E148 -> 4425
C149: Other | E149: =$E$197 -> 2950 | G149: DSE's | I149: Reset Rate> | J149: =GM_INFO!H132 | K149: =GM_INFO!H132 -> 0.5 | M149: /DSE's | Q149: =K149*E149 -> 1475
C170: TOTAL VARIABLE COSTS | Q170: =SUM(Q48:Q166) -> 88079.90143
C172: GROSS MARGIN TOTAL | Q172: =Q37-Q170 -> 211230.0986
C174: GROSS MARGIN/DSE | Q174: =Q172/Q6 -> 71.60342324
C194: PRODUCTION DATA
C196: Stocking rate (DSE/Ha) | E196: 6 | K196: Culling Rate (% from each group) | AA196: SHEEP GROSS MARGIN
C197: Total DSE's | E197: =O228 -> 2950 | K197: Age Group | M197: Ewes | O197: Wethers | AA197: PRIME LAMB -
C198: SHEEP GRAZING AREA | E198: =E197/E196 -> 491.6666667 | K198: 0.5 | M198: =AF213 -> 0 | O198: =AF227 -> 1
C199: Number of ewes mated | E199: ='Cleanskin Sheep Input'!E7 -> 1000 | K199: 1.5 | M199: 0.6784060158 | O199: 0
C200: Ram percentage | E200: ='Cleanskin Sheep Input'!E11 -> 0.025 | K200: 2.5 | M200: 0.05 | O200: 0
C201: Years rams kept | E201: ='Cleanskin Sheep Input'!E12 -> 4 | K201: 3.5 | M201: 0.05 | O201: 0
C202: Flock death rate | E202: ='Cleanskin Sheep Input'!E13 -> 0.03 | K202: 4.5 | M202: 0.05 | O202: 0 | AA202: Ewes mated | AC202: ='Cleanskin Sheep Input'!E7 -> 1000 | AF202: Ram % | AG202: =E200 -> 0.025
B203: =VLOOKUP(r[0]c3&"No Ops",CHOOSE({1,2},tbl_ops[Name]&tbl_ops[Category],INDIRECT("tbl_ops["&var_crop&"]")),2,0) | C203: Average weaning rate | E203: =AC205 -> 1.5 | K203: 5.5 | M203: 0.05 | O203: 0 | AA203: Age at 1st mating | AC203: ='Cleanskin Sheep Input'!E8 -> 1 | AF203: Price of rams | AG203: ='Cleanskin Sheep Input'!E30 -> 1200
B204: =VLOOKUP(r[0]c3&"No Ops",CHOOSE({1,2},tbl_ops[Name]&tbl_ops[Category],INDIRECT("tbl_ops["&var_crop&"]")),2,0) | C204: Age wethers sold | E204: =AG205 -> 0.5 | K204: 6.5 | M204: 1 | O204: 0 | AA204: Age ewes sold | AC204: ='Cleanskin Sheep Input'!E9 -> 6.5 | AF204: Years rams kept | AG204: =E201 -> 4
B205: =VLOOKUP(r[0]c3&"No Ops",CHOOSE({1,2},tbl_ops[Name]&tbl_ops[Category],INDIRECT("tbl_ops["&var_crop&"]")),2,0) | AA205: Av Weaning % | AC205: ='Cleanskin Sheep Input'!E10 -> 1.5 | AF205: Age wethers sold | AG205: 0.5
B206: =VLOOKUP(r[0]c3&"No Ops",CHOOSE({1,2},tbl_ops[Name]&tbl_ops[Category],INDIRECT("tbl_ops["&var_crop&"]")),2,0) | AA206: dse/ewe | AC206: 1.6 | AF206: Flock death rate | AG206: =E202 -> 0.03
B208: =VLOOKUP(r[0]c3&var_rain,CHOOSE({1,2},tbl_ops[Name]&tbl_ops[Rainfall],INDIRECT("tbl_ops["&var_crop&"]")),2,0)
B209: =VLOOKUP(r[0]c3&var_rain,CHOOSE({1,2},tbl_ops[Name]&tbl_ops[Rainfall],INDIRECT("tbl_ops["&var_crop&"]")),2,0) | C209: SALES | E209: Number | G209: Price/hd | I209: Total
B210: =VLOOKUP(r[0]c3&var_rain,CHOOSE({1,2},tbl_ops[Name]&tbl_ops[Rainfall],INDIRECT("tbl_ops["&var_crop&"]")),2,0) | C210: c.f.a ewes | E210: =AG220 -> 203.9596235 | G210: ='Cleanskin Sheep Input'!E18 -> 110 | I210: =ROUND(E210,0)*G210 -> 22440
B211: =VLOOKUP(r[0]c3&var_rain,CHOOSE({1,2},tbl_ops[Name]&tbl_ops[Rainfall],INDIRECT("tbl_ops["&var_crop&"]")),2,0) | C211: c.f.a rams | E211: =AG244 -> 5.788387001 | G211: ='Cleanskin Sheep Input'!E19 -> 20 | I211: =ROUND(E211,0)*G211 -> 120 | AA211: EWES | AB211: OPENING | AC211: NATURAL | AD211: PURCHASES | AE211: DEATHS | AF211: % sold | AG211: SALES | AH211: CLOSING
C212: Ewe hoggets | E212: =AG222 -> 493.5403765 | G212: ='Cleanskin Sheep Input'!E20 -> 250 | I212: =ROUND(E212,0)*G212 -> 123500 | AA212: AGE | AB212: NUMBERS | AC212: INCREASE | AF212: culled | AH212: NUMBERS
C213: Lambs | E213: =AG230 -> 750 | G213: =I213/E213 -> 204.3333333 | I213: =SUM('Cleanskin Sheep Input'!G21:G22) -> 153250 | AA213: 0-0.5yr | AC213: =AC202*AC205/2 -> 750 | AE213: =AB213*$AG$206 -> 0 | AF213: 0 | AG213: =AC213*AF213 -> 0 | AH213: =AB213+AC213+AD213-AE213-AG213 -> 750
C214: TOTAL | E214: =SUM(E210:E213) -> 1453.288387 | G214: =I214/E214 -> 205.9536171 | I214: =SUM(I210:I213) -> 299310 | AA214: 0.5-1.5yr | AB214: =AH213 -> 750 | AE214: 22.5 | AF214: =(AB214*(1-AG206)-AB215)/(AB214-AE214) -> 0.6784060158 | AG214: =AB214-AE214-AB215 -> 493.5403765 | AH214: 233.9596235
AA215: 1.5-2.5yr | AB215: =AC202/(1+(1-AG206)*(1-AF215)*(1+(1-AG206)*(1-AF216)*(1+(1-AG206)*(1-AF217)*(1+(1-AG206)*(1-AF218))))) -> 233.9596235 | AE215: 7.018788705 | AF215: 0.05 | AG215: =(AB215-AE215)*AF215 -> 11.34704174 | AH215: 215.5937931
AA216: 2.5-3.5yr | AB216: =AH215 -> 215.5937931 | AE216: 6.467813792 | AF216: 0.05 | AG216: =(AB216-AE216)*AF216 -> 10.45629896 | AH216: 198.6696803
AA217: 3.5-4.5yr | AB217: =AH216 -> 198.6696803 | AE217: 5.960090409 | AF217: 0.05 | AG217: =(AB217-AE217)*AF217 -> 9.635479495 | AH217: 183.0741104
G218: Calculated Cost | AA218: 4.5-5.5yr | AB218: =AH217 -> 183.0741104 | AE218: 5.492223312 | AF218: =IF(AC204=5.5,1,5%) -> 0.05 | AG218: =(AB218-AE218)*AF218 -> 8.879094354 | AH218: =AB218+AC218+AD218-AE218-AG218 -> 168.7027927
C219: STOCK HEALTH REQUIREMENTS | E219: Number | G219: Drench | I219: Vacc. | K219: Blowfly | M219: Lice | O219: DSE | X219: Rotation between different drench groups generally does little to slow development of drench | AA219: 5.5-6.5yr | AB219: =AH218 -> 168.7027927 | AE219: 5.061083782 | AF219: =IF(AC204=6.5,100%,0) -> 1 | AG219: =(AB219-AE219)*AF219 -> 163.641709 | AH219: 0
C220: Ewes | E220: =ROUND('Cleanskin Sheep Input'!E7,0) -> 1000 | G220: ='Cleanskin Sheep Input'!$E57*'Cleanskin Sheep Input'!F57*'Cleanskin Sheep Input'!J57/1000*'Cleanskin Sheep Input'!J$62 -> 975 | I220: ='Cleanskin Sheep Input'!$E57*'Cleanskin Sheep Input'!G57*'Cleanskin Sheep Input'!K57/1000*'Cleanskin Sheep Input'!K$62*4 -> 940 | K220: ='Cleanskin Sheep Input'!$E57*'Cleanskin Sheep Input'!H57*'Cleanskin Sheep Input'!L57/1000*'Cleanskin Sheep Input'!L$62 -> 0 | M220: ='Cleanskin Sheep Input'!$E57*'Cleanskin Sheep Input'!I57*'Cleanskin Sheep Input'!M57/1000*'Cleanskin Sheep Input'!M$62 -> 0 | O220: 2 | X220: resistance and should not be used at the expense of these three highly effective practices: | AA220: Ewes | AB220: =SUM(AB215:AB219) -> 1000 | AC220: =SUM(AC213:AC217) -> 750 | AD220: =SUM(AD213:AD219) -> 0 | AE220: =SUM(AE213:AE218) -> 47.43891622 | AG220: =SUM(AG215:AG219) -> 203.9596235 | AH220: =SUM(AH214:AH218) -> 1000
C221: Ewe hoggets | E221: =ROUND(AB222,0) -> 750 | G221: ='Cleanskin Sheep Input'!$E58*'Cleanskin Sheep Input'!F58*'Cleanskin Sheep Input'!J58/1000*'Cleanskin Sheep Input'!J$62 -> 731.25 | I221: ='Cleanskin Sheep Input'!$E58*'Cleanskin Sheep Input'!G58*'Cleanskin Sheep Input'!K58/1000*'Cleanskin Sheep Input'!K$62*4 -> 705 | K221: ='Cleanskin Sheep Input'!$E58*'Cleanskin Sheep Input'!H58*'Cleanskin Sheep Input'!L58/1000*'Cleanskin Sheep Input'!L$62 -> 0 | M221: ='Cleanskin Sheep Input'!$E58*'Cleanskin Sheep Input'!I58*'Cleanskin Sheep Input'!M58/1000*'Cleanskin Sheep Input'!M$62 -> 0 | O221: 1.2 | X221: • use products most effective on your property | AA221: d.s.e's | AB221: =AB214+AC206*(AB215+AB216+AB217+AB218) -> 2080.075532
C222: Wether weaners | E222: =ROUND(AB228,0) -> 0 | G222: ='Cleanskin Sheep Input'!$E59*'Cleanskin Sheep Input'!F59*'Cleanskin Sheep Input'!J59/1000*'Cleanskin Sheep Input'!J$62 -> 0 | I222: ='Cleanskin Sheep Input'!$E59*'Cleanskin Sheep Input'!G59*'Cleanskin Sheep Input'!K59/1000*'Cleanskin Sheep Input'!K$62*4 -> 0 | K222: ='Cleanskin Sheep Input'!$E59*'Cleanskin Sheep Input'!H59*'Cleanskin Sheep Input'!L59/1000*'Cleanskin Sheep Input'!L$62 -> 0 | M222: ='Cleanskin Sheep Input'!$E59*'Cleanskin Sheep Input'!I59*'Cleanskin Sheep Input'!M59/1000*'Cleanskin Sheep Input'!M$62 -> 0 | O222: 1 | X222: • use multi-active (combination) products | AA222: Ewe Hoggets | AB222: =AB214 -> 750 | AG222: =AG214 -> 493.5403765 | AH222: =AH213 -> 750
C223: Lambs | E223: =ROUND(AC213+AC227,0) -> 1500 | G223: ='Cleanskin Sheep Input'!$E60*'Cleanskin Sheep Input'!F60*'Cleanskin Sheep Input'!J60/1000*'Cleanskin Sheep Input'!J$62 -> 1462.5 | I223: ='Cleanskin Sheep Input'!$E60*'Cleanskin Sheep Input'!G60*'Cleanskin Sheep Input'!K60/1000*'Cleanskin Sheep Input'!K$62*4 -> 2820 | K223: ='Cleanskin Sheep Input'!$E60*'Cleanskin Sheep Input'!H60*'Cleanskin Sheep Input'!L60/1000*'Cleanskin Sheep Input'!L$62 -> 0 | M223: ='Cleanskin Sheep Input'!$E60*'Cleanskin Sheep Input'!I60*'Cleanskin Sheep Input'!M60/1000*'Cleanskin Sheep Input'!M$62 -> 0 | O223: 0 | X223: • use short-acting products | AA223: Ewe lambs | AG223: =AG213 -> 0
C224: Rams | E224: =ROUND(AB244,0) -> 25 | G224: ='Cleanskin Sheep Input'!$E61*'Cleanskin Sheep Input'!F61*'Cleanskin Sheep Input'!J61/1000*'Cleanskin Sheep Input'!J$62 -> 48.75 | I224: ='Cleanskin Sheep Input'!$E61*'Cleanskin Sheep Input'!G61*'Cleanskin Sheep Input'!K61/1000*'Cleanskin Sheep Input'!K$62*4 -> 23.5 | K224: ='Cleanskin Sheep Input'!$E61*'Cleanskin Sheep Input'!H61*'Cleanskin Sheep Input'!L61/1000*'Cleanskin Sheep Input'!L$62 -> 0 | M224: ='Cleanskin Sheep Input'!$E61*'Cleanskin Sheep Input'!I61*'Cleanskin Sheep Input'!M61/1000*'Cleanskin Sheep Input'!M$62 -> 0 | O224: 2 | AA224: WETHERS | AB224: OPENING | AC224: NATURAL | AD224: PURCHASES | AE224: DEATHS | AF224: % sold | AG224: SALES | AH224: CLOSING | BG224: For more information: https://wormboss.com.au/tests-tools/drench-rotation-versus-combinations-to-combat-drench-resistance/
AA225: AGE | AB225: NUMBERS | AC225: INCREASE | AF225: culled | AH225: NUMBERS
AA227: 0-0.5yr | AC227: =AC202*AC205/2 -> 750 | AE227: =AB227*$AG$206 -> 0 | AF227: =IF(AG205=0.5,100%,0) -> 1 | AG227: =AC227*AF227 -> 750 | AH227: =AB227+AC227+AD227-AE227-AG227 -> 0
C228: TOTAL | E228: =SUM(E220:E227) -> 3275 | G228: =SUM(G220:G227) -> 3217.5 | I228: =SUM(I220:I227) -> 4488.5 | K228: =SUM(K220:K227) -> 0 | M228: =SUM(M220:M227) -> 0 | O228: =SUMPRODUCT($E$220:$E$227,O220:O227) -> 2950 | AA228: 0.5-1.5yr | AB228: =AH227 -> 0 | AE228: =AB228*$AG$206 -> 0 | AF228: =IF(AG205=1.5,100%,0) -> 0 | AG228: =(AB228-AE228)*AF228 -> 0 | AH228: =AB228+AC228+AD228-AE228-AG228 -> 0
C229: TOTAL VALUE | E229: =E228*G214 -> 674498.096 | AA229: 1.5-2.5 | AB229: =AH228 -> 0 | AE229: =AB229*$AG$206 -> 0 | AF229: =IF(AG205=2.5,100%,0) -> 0 | AG229: =(AB229-AE229)*AF229 -> 0
AA230: Wth lambs | AB230: =AB227 -> 0 | AC230: =AC227 -> 750 | AD230: =AD227 -> 0 | AE230: 0 | AG230: =AG227 -> 750 | AH230: 0
AA231: Wth hgts | AB231: 0 | AC231: 0 | AD231: 0 | AE231: 0 | AG231: 0 | AH231: 0
AA232: Wethers | AB232: 0 | AC232: 0 | AD232: 0 | AE232: 0 | AG232: 0 | AH232: 0
AA233: d.s.e's | AB233: =AB231+AB232 -> 0
AA236: RAMS | AB236: OPENING | AC236: NATURAL | AD236: PURCHASES | AE236: DEATHS | AF236: % sold | AG236: SALES | AH236: CLOSING
AA237: AGE | AB237: NUMBERS | AC237: INCREASE | AF237: culled | AH237: NUMBERS
AA239: 0.5-1.5yr | AD239: =AB240/(1-AF239) -> 6.538387001 | AH239: =AB239+AC239+AD239-AE239-AG239 -> 6.538387001
AA240: 1.5-2.5yr | AB240: =IF(AG204=3,(AC202*AG202)/(1+(1-AG206)*(1-AF240)*(1+(1-AG206)*(1-AF241)*(1+(1-AG206)*(1-AF242)))),IF(AG204=4,(AC202*AG202)/(1+(1-AG206)*(1-AF240)*(1+(1-AG206)*(1-AF241)*(1+(1-AG206)*(1-AF242)*(1+(1-AG206)*(1-AF243))))),0)) -> 6.538387001 | AE240: =AB240*$AG$206 -> 0.19615161 | AF240: 0 | AG240: =(SUM(AB240:AD240)-AE240)*AF240 -> 0 | AH240: =AB240+AC240+AD240-AE240-AG240 -> 6.342235391
AA241: 2.5-3.5yr | AB241: =AH240 -> 6.342235391 | AE241: =AB241*$AG$206 -> 0.1902670617 | AF241: 0 | AG241: =(SUM(AB241:AD241)-AE241)*AF241 -> 0 | AH241: =AB241+AC241+AD241-AE241-AG241 -> 6.151968329
AA242: 3.5-4.5yr | AB242: =AH241 -> 6.151968329 | AE242: =AB242*$AG$206 -> 0.1845590499 | AF242: =IF(AG204=3,100%,0) -> 0 | AG242: =(SUM(AB242:AD242)-AE242)*AF242 -> 0 | AH242: =AB242+AC242+AD242-AE242-AG242 -> 5.967409279
AA243: 4.5-5.5yr | AB243: =AH242 -> 5.967409279 | AE243: =AB243*$AG$206 -> 0.1790222784 | AF243: =IF(AG204=4,100%,0) -> 1 | AG243: =AB243-AE243 -> 5.788387001 | AH243: =AB243+AC243+AD243-AE243-AG243 -> 0
G244: Feed Cost ($/T) | I244: Kg Fed per Week | K244: No of Weeks Feeding | M244: Total Cost ($) | AB244: =AB239+AB240+AB241+AB242+AB243 -> 25 | AD244: =AD239+AD240+AD241+AD242+AD243 -> 6.538387001 | AE244: =AE239+AE240+AE241+AE242+AE243 -> 0.75 | AG244: =AG239+AG240+AG241+AG242+AG243 -> 5.788387001 | AH244: =AH239+AH240+AH241+AH242+AH243 -> 25
C245: FEEDING | E245: Number | AA245: d.s.e's | AB245: =AB244*2 -> 50
C246: Merino ewes | E246: ='Cleanskin Sheep Input'!E69 -> 1000 | G246: =IFERROR(M246/(E246*I246/1000*K246),0) -> 305 | I246: =IFERROR(('Cleanskin Sheep Input'!G69*'Cleanskin Sheep Input'!H69+'Cleanskin Sheep Input'!J69*'Cleanskin Sheep Input'!K69+'Cleanskin Sheep Input'!M69*'Cleanskin Sheep Input'!N69)/SUM('Cleanskin Sheep Input'!H69,'Cleanskin Sheep Input'!K69,'Cleanskin Sheep Input'!N69),0) -> 1.333333333 | K246: ='Cleanskin Sheep Input'!H69+'Cleanskin Sheep Input'!K69+'Cleanskin Sheep Input'!N69 -> 36 | M246: ='Cleanskin Sheep Input'!O69 -> 14640
E247: ='Cleanskin Sheep Input'!E70 -> 0 | G247: =IFERROR(M247/(E247*I247/1000*K247),0) -> 0 | I247: =IFERROR(('Cleanskin Sheep Input'!G70*'Cleanskin Sheep Input'!H70+'Cleanskin Sheep Input'!J70*'Cleanskin Sheep Input'!K70+'Cleanskin Sheep Input'!M70*'Cleanskin Sheep Input'!N70)/SUM('Cleanskin Sheep Input'!H70,'Cleanskin Sheep Input'!K70,'Cleanskin Sheep Input'!N70),0) -> 0 | K247: ='Cleanskin Sheep Input'!H70+'Cleanskin Sheep Input'!K70+'Cleanskin Sheep Input'!N70 -> 0 | M247: ='Cleanskin Sheep Input'!O70 -> 0
C248: Weaners | E248: ='Cleanskin Sheep Input'!E71 -> 950 | G248: 314 | I248: =IFERROR(('Cleanskin Sheep Input'!G71*'Cleanskin Sheep Input'!H71+'Cleanskin Sheep Input'!J71*'Cleanskin Sheep Input'!K71+'Cleanskin Sheep Input'!M71*'Cleanskin Sheep Input'!N71)/SUM('Cleanskin Sheep Input'!H71,'Cleanskin Sheep Input'!K71,'Cleanskin Sheep Input'!N71),0) -> 1.25 | K248: ='Cleanskin Sheep Input'!H71+'Cleanskin Sheep Input'!K71+'Cleanskin Sheep Input'!N71 -> 12 | M248: ='Cleanskin Sheep Input'!O71 -> 4474.5
C249: Ewe hoggets | E249: ='Cleanskin Sheep Input'!E72 -> 0 | G249: 0 | I249: =IFERROR(('Cleanskin Sheep Input'!G72*'Cleanskin Sheep Input'!H72+'Cleanskin Sheep Input'!J72*'Cleanskin Sheep Input'!K72+'Cleanskin Sheep Input'!M72*'Cleanskin Sheep Input'!N72)/SUM('Cleanskin Sheep Input'!H72,'Cleanskin Sheep Input'!K72,'Cleanskin Sheep Input'!N72),0) -> 0 | K249: ='Cleanskin Sheep Input'!H72+'Cleanskin Sheep Input'!K72+'Cleanskin Sheep Input'!N72 -> 0 | M249: ='Cleanskin Sheep Input'!O72 -> 0
C250: Rams | E250: ='Cleanskin Sheep Input'!E73 -> 15 | G250: 370 | I250: =IFERROR(('Cleanskin Sheep Input'!G73*'Cleanskin Sheep Input'!H73+'Cleanskin Sheep Input'!J73*'Cleanskin Sheep Input'!K73+'Cleanskin Sheep Input'!M73*'Cleanskin Sheep Input'!N73)/SUM('Cleanskin Sheep Input'!H73,'Cleanskin Sheep Input'!K73,'Cleanskin Sheep Input'!N73),0) -> 2 | K250: ='Cleanskin Sheep Input'!H73+'Cleanskin Sheep Input'!K73+'Cleanskin Sheep Input'!N73 -> 10 | M250: ='Cleanskin Sheep Input'!O73 -> 111
K253: Supplements | M253: =SUM('Cleanskin Sheep Input'!I84:I85) -> 0
C258: TOTAL FEED COST | M258: =SUM(M246:M250,M253) -> 19225.5
C263: GM SENSITIVITY | AB263: Water,Fuel,Other | AE263: =SUM(Q146:Q149) -> 16310.24143 | AF263: Lamb Costs | AG263: No: | AH263: per head
C264: Gross Margin/DSE | E264: Average Weaning % | AB264: Animal health | AE264: =((E220*G220+E224*G224+AB215*G221)*K90+(E220*I220+E224*I224+AB215*I221)*K91+(E220*K220+E224*K224+AB215*K221)*K93) -> 2158106.07
G265: 1.3 | I265: 1.4 | K265: 1.5 | M265: 1.6 | O265: 1.7 | Q265: 1.8 | AB265: Stock Purchase | AE265: =Q105 -> 8400 | AF265: Marking | AG265: =E199*G265 -> 1300 | AH265: =SUM(K76:K77) -> 3.82
E266: 108.7356327 | G266: =(($E$199*(G$265*100)*$E266/200+($E$199*(G$265*100)/200-$AB$215-$AE$214)*$G$212)*(1-$K$124)+SUM($I$210:$I$211)-$AE$273-($E$199*(G$265*100)*$AH$270/100)-($E$199*(G$265*100)/200-$AB$215-$AE$214)*$AC$285)/$E$197 -> -2675.490614 | I266: -2831.917851 | K266: -2988.345087 | M266: -3144.772324 | O266: -3301.19956 | Q266: -3457.626797 | AB266: Freight | AC266: sheep | AE266: =SUM(Q119:Q121) -> 4928 | AF266: Animal health | AH266: =G223*K90+I223*K91+K223*K93 -> 4077.254379
E267: 113.7356327 | G267: -2674.449512 | I267: -2830.796664 | K267: -2987.143816 | M267: -3143.490968 | O267: -3299.838119 | Q267: -3456.185271 | AC267: Wool | AF267: Freight | AH267: =K122 -> 7
C268: Average Sheep Sale Price($/hd) | E268: 118.7356327 | G268: -2673.408411 | I268: -2829.675478 | K268: -2985.942545 | M268: -3142.209612 | O268: -3298.476679 | Q268: -3454.743746 | AB268: Commission on livestock sales | AE268: =SUM(I210:I212)*K124 -> 8033.3 | AF268: Yard Fees | AH268: =K125 -> 1
E269: 123.7356327 | G269: -2672.367309 | I269: -2828.554291 | K269: -2984.741274 | M269: -3140.928256 | O269: -3297.115238 | Q269: -3453.30222 | AB269: Yard fees | AE269: =SUM(E210:E211)*K125 -> 209.7480105 | AF269: Levies | AH269: =SUM(K127:K128) -> 2.67
E270: 128.7356327 | G270: -2671.326207 | I270: -2827.433105 | K270: -2983.540002 | M270: -3139.6469 | O270: -3295.753797 | Q270: -3451.860695 | AB270: Levies | AE270: =SUM(E210:E211)*K126 -> 41.9496021 | AF270: TOTAL | AH270: =SUM(AH265:AH269) -> 4091.744379
E271: 133.7356327 | G271: -2670.285106 | I271: -2826.311918 | K271: -2982.338731 | M271: -3138.365544 | O271: -3294.392357 | Q271: -3450.419169 | AB271: SASheep Industry | AE271: =SUM(E210:E211)*K128 -> 140.531167
E272: 138.7356327 | G272: -2669.244004 | I272: -2825.190732 | K272: -2981.13746 | M272: -3137.084188 | O272: -3293.030916 | Q272: -3448.977644 | AB272: Feed & other costs | AE272: =M253+M246+AB215*G254*I254*K254/1000 -> 14640
E273: 143.7356327 | G273: -2668.202902 | I273: -2824.069546 | K273: -2979.936189 | M273: -3135.802832 | O273: -3291.669475 | Q273: -3447.536119 | AE273: =SUM(AE263:AE272) -> 2210809.84
E274: 148.7356327 | G274: -2667.161801 | I274: -2822.948359 | K274: -2978.734918 | M274: -3134.521476 | O274: -3290.308035 | Q274: -3446.094593
E275: 153.7356327 | G275: -2666.120699 | I275: -2821.827173 | K275: -2977.533646 | M275: -3133.24012 | O275: -3288.946594 | Q275: -3444.653068
E276: 158.7356327 | G276: -2665.079597 | I276: -2820.705986 | K276: -2976.332375 | M276: -3131.958764 | O276: -3287.585153 | Q276: -3443.211542
AC277: Sale Ewe Hog Cost
C279: FLOCK STRUCTURE | E279: This table shows the number of merino sheep in each age group at mating | AB279: Feed | AC279: =G254*K254/1000 -> 0
E280: Age Group | AC280: =G221*K90+I221*K91+K221*K92+M221*K93 -> 1375.853367
C281: Class of Sheep | E281: 0.5 y.o. | G281: 1.5 y.o. | I281: 2.5 y.o. | K281: 3.5 y.o. | M281: 4.5 y.o. | O281: 5.5 y.o. | Q281: 6.5 y.o. | AC281: =K121 -> 7
C282: Ewes | E282: =$AB214 -> 750 | G282: =$AB215 -> 233.9596235 | I282: =$AB216 -> 215.5937931 | K282: =$AB217 -> 198.6696803 | M282: =$AB218 -> 183.0741104 | O282: =$AB219 -> 168.7027927 | Q282: 0 | AC282: =K125 -> 1
C283: Wethers | E283: =$AB228 -> 0 | G283: =$AB229 -> 0 | I283: 0 | K283: 0 | M283: 0 | O283: 0 | Q283: 0 | AC283: =K126 -> 0.2
C284: Rams | G284: =$AB240 -> 6.538387001 | I284: =$AB241 -> 6.342235391 | K284: =$AB242 -> 6.151968329 | M284: =$AB243 -> 5.967409279 | O284: 0 | Q284: 0 | AC284: =K128 -> 0.67
AB285: Total | AC285: =SUM(AC279:AC284) -> 1384.723367

Sheet Beef Input (hidden)
C2: ="BEEF GROSS MARGIN - "&TEXT(m_year,"0000") -> BEEF GROSS MARGIN - 2025
C4: GENERAL INFORMATION
C5: Cells with yellow highlight can be changed. No allowance has been made for pasture expenses such as seed, fertiliser and chemicals. Refer to pasture gross margins in the “Cropping Gross Margin Plan” for annual and perennial pasture costs. Use the livestock gross margin per DSE as income for the pasture gross margin.
C7: Breeding Cow | E7: 14.5 | F7: DSE
C8: Calf Weaning | E8: 0.9
C9: Herd Deaths | E9: 0.03
C10: Cows c.f.a | E10: 10 | F10: years old
C11: Carry over calf | E11: 8 | F11: DSE
C12: Weaned @ | E12: 8 | F12: months
C13: Heifers mated @ | E13: 15 | F13: months
C14: Stocking rate | E14: 5 | F14: DSE/ha
C15: Cow breeding herd | E15: 100
C16: Bull Percentage | E16: 0.03
C17: Bulls bought for | E17: 8500
C18: sold for | E18: 2200
C19: after | E19: 3 | F19: years
C20: carryover to heavier weights | E20: 0.5 | F20: including heifer replacements
C21: months extra carry over | E21: 6
C22: Drench cows | E22: 2 | F22: x
C23: Drench calves | E23: 1 | F23: x
C24: Bull purchase | E24: 8500
C25: Supplementary Feed
C26: Hay | E26: 68 | F26: tonne
C27: Grain | E27: 0 | F27: tonne

Sheet Beef (hidden)
C1: BEEF
C2: =UPPER(Var_Animal)&" GROSS MARGIN - "&TEXT(m_year,"0000") -> BEEF GROSS MARGIN - 2025
C4: ASSUMPTIONS | E4: (Breeding young cattle for local trade, grass fattened)
C7: Breeding Cow | E7: ='Beef Input'!$E$7 -> 14.5 | G7: DSE | O7: Cow breeding herd | Q7: ='Beef Input'!E15 -> 100
C8: Calf Weaning | E8: ='Beef Input'!E8 -> 0.9 | O8: Cows replaced per year | Q8: =(Q7/E10)+(Q7*E9) -> 13
C9: Herd Deaths | E9: ='Beef Input'!E9 -> 0.03 | O9: Bull Percentage | Q9: ='Beef Input'!E16 -> 0.03
C10: Cows c.f.a | E10: ='Beef Input'!E10 -> 10 | G10: years old | O10: Bulls bought for | Q10: ='Beef Input'!E17 -> 8500
C11: Uses | E11: =Q8 -> 13 | G11: heifers as replacements | O11: sold for | Q11: ='Beef Input'!E18 -> 2200
C12: Carry over calf | E12: ='Beef Input'!E11 -> 8 | G12: DSE | O12: after | Q12: ='Beef Input'!E19 -> 3 | R12: years
C13: Weaned @ | E13: ='Beef Input'!E12 -> 8 | G13: months | O13: carryover to heavier weights | Q13: ='Beef Input'!E20 -> 0.5
C14: Heifers mated @ | E14: ='Beef Input'!E13 -> 15 | G14: months | O14: months extra carry over | Q14: ='Beef Input'!E21 -> 6
C15: Stocking rate | E15: ='Beef Input'!E14 -> 5 | G15: DSE/ha | O15: Herd DSE | Q15: =(Q7*E7)+(Q7*Q9*20)+(E11*E12*((E14-E13)/12))+(E11*E7*(24-E14)/12)+(E36*E12) -> 1960.041667
C16: Area required | E16: =Q15/E15 -> 392.0083333 | G16: hectares | O16: Drench cows | Q16: ='Beef Input'!E22 -> 2
O17: Drench calves | Q17: ='Beef Input'!E23 -> 1
C32: INCOME | Q32: $ | BG32: Cattle Prices | BI32: Agricultural | BJ32: Pastoral
BG33: Vealers 280 kg | BI33: 1120 | BJ33: 1060
I34: kg liveweight | M34: $/kg L/W | BG34: Yearling 400 kg | BI34: 1560 | BJ34: 1480
B35: Stock Sales | D35: vealers | E35: =(1-Q13)*(Q7*E8) -> 45 | G35: Reset Rate> | H35: =GM_INFO!B170 | I35: =GM_INFO!B170 -> 280 | K35: Reset Rate> | L35: =GM_INFO!D170 | M35: =GM_INFO!D170 -> 4 | Q35: =M35*I35*E35 -> 50400 | BG35: Yearling 420 kg | BI35: 1660 | BJ35: 1560
D36: yearlings | E36: =ROUND(((Q7*E8)-E35-E11)*(1-E9),0) -> 31 | G36: Reset Rate> | H36: =GM_INFO!B171 | I36: =GM_INFO!B171 -> 400 | K36: Reset Rate> | L36: =GM_INFO!D171 | M36: =GM_INFO!D171 -> 3.9 | Q36: =M36*I36*E36 -> 48360 | BG36: Cull cows 550 kg | BI36: 1420 | BJ36: 1420
B37: Culls | D37: cows | E37: =Q8*(1-E9)^E10 -> 9.58651365 | G37: Reset Rate> | H37: =GM_INFO!B172 | I37: =GM_INFO!B172 -> 550 | K37: Reset Rate> | L37: =GM_INFO!D172 | M37: =GM_INFO!D172 -> 2.581818182 | Q37: =M37*I37*E37 -> 13612.84938 | BG37: Young stock 280 kg lwt | BJ37: 1060
D38: bull | E38: =Q7*Q9/Q12 -> 1 | Q38: ='Beef Input'!E18*E38 -> 2200 | BG38: Bullocks 500 kg lwt | BJ38: 1820
BG40: Cattle Purchases | BI40: Agricultural | BJ40: Pastoral
C41: Gross Income | Q41: =SUM(Q35:Q38) -> 114572.8494 | BG41: Bulls | BI41: 8500 | BJ41: 8000
BG42: Store vealers for grass finishing | BH42: 1700 | BI42: 1700
BG43: Steer 240 kg lwt for feedlot | BH43: 1500 | BI43: 1500
BG44: Store vealers for grass finishing | BI44: 1250
BG45: Steer 340 kg lwt for feedlot | BI45: 1250
C46: VARIABLE COSTS
C75: Bull Purchase | K75: Rate
C76: No. of Bulls | E76: =E38 -> 1 | G76: bulls | I76: Reset Rate> | J76: ='Beef Input'!E24 | K76: ='Beef Input'!E24 -> 8500 | M76: total | Q76: =K76*ROUND(E76,0) -> 8500
C89: Veterinary & Medicines
C90: Drench - cows 2x calves 1x | E90: =(Q7*Q16)+Q17*(Q7*E8) -> 290 | G90: head | I90: Reset Rate> | J90: =GM_INFO!D112 | K90: =GM_INFO!D112 -> 4.895 | M90: /head | Q90: =K90*ROUND(E90,0) -> 1419.55
C91: Ear Tags | E91: =Q7*E8 -> 90 | G91: head | I91: Reset Rate> | J91: =GM_INFO!D124 | K91: =GM_INFO!D124 -> 4.75 | M91: /tag | Q91: =K91*ROUND(E91,0) -> 427.5
C92: Lice Treatments | E92: =Q7 -> 100 | G92: head | I92: Reset Rate> | J92: =GM_INFO!D112 | K92: =GM_INFO!D112 -> 4.895 | M92: /dose | Q92: =K92*ROUND(E92,0) -> 489.5
C93: Vaccine (5 in 1) | E93: =Q7*E8*2 -> 180 | G93: head | I93: Reset Rate> | J93: =GM_INFO!D114 | K93: =GM_INFO!D114 -> 0.72 | M93: /dose | Q93: =K93*ROUND(E93,0) -> 129.6
C117: Sale Costs and other
C119: Insurance | E119: =(Q7*800)+(3*2500)+(Q7*E8*350) -> 119000 | I119: Reset Rate> | J119: =GM_INFO!B157 | K119: =GM_INFO!B157 -> 4.5 | M119: /$1000 | Q119: =K119*ROUND(E119,0)/1000 -> 535.5
C120: Water | E120: =Q15 -> 1960.041667 | G120: dse's | I120: Reset Rate> | J120: =GM_INFO!I130 | K120: =GM_INFO!I130 -> 2.5 | Q120: =K120*ROUND(E120,0) -> 4900
C121: Veh Fuel, R&M | E121: =Q15 -> 1960.041667 | G121: dse's | I121: Reset Rate> | J121: =GM_INFO!I131 | K121: =GM_INFO!I131 -> 1.5 | Q121: =K121*ROUND(E121,0) -> 2940
C122: Other | E122: =Q15 -> 1960.041667 | G122: dse's | I122: Reset Rate> | J122: =GM_INFO!I132 | K122: =GM_INFO!I132 -> 0.5 | Q122: =K122*ROUND(E122,0) -> 980
C123: Transport: | E123: =SUM(E35:E38) -> 86.58651365 | G123: head | I123: Reset Rate> | J123: =GM_INFO!D126 | K123: =GM_INFO!D126 -> 45 | M123: /head | Q123: =K123*E123 -> 3896.393114
C125: Commission | I125: Reset Rate> | J125: =GM_INFO!C98 | K125: =GM_INFO!C98 -> 0.055 | Q125: =Q41*K125 -> 6301.506716
C126: Levies | I126: Reset Rate> | J126: =GM_INFO!D128 | K126: =GM_INFO!D128 -> 5.5 | M126: /head | Q126: =K126*SUM(E35:E38) -> 476.2258251
C143: Supplementary Feed
C145: Grain
C146: Hay | E146: ='Beef Input'!E26 -> 68 | G146: tonne | I146: Reset Rate> | J146: =GM_INFO!D133 | K146: =GM_INFO!D133 -> 220 | M146: /tonne | Q146: =K146*E146 -> 14960
C147: Grain | E147: ='Beef Input'!E27 -> 0 | G147: tonne | I147: Reset Rate> | J147: =GM_INFO!D134 | K147: =GM_INFO!D134 -> 300 | M147: /tonne | Q147: =K147*E147 -> 0
C148: Blocks/ Mineral Mix | E148: =Q7 -> 100 | G148: @ | I148: Reset Rate> | J148: =GM_INFO!D136 | K148: =GM_INFO!D136 -> 5.5 | M148: /head | Q148: =K148*E148 -> 550
C170: TOTAL VARIABLE COSTS | Q170: =SUM(Q48:Q166) -> 46505.77566
C172: GROSS MARGIN TOTAL | Q172: =Q41-Q170 -> 68067.07373
C174: GROSS MARGIN/DSE | Q174: =$Q$172/Q15 -> 34.72736059
C176: GROSS MARGIN/COW | Q176: =$Q$172/Q7 -> 680.6707373
C178: GROSS MARGIN/HA | Q178: =$Q$172/E16 -> 173.6368029
B203: =VLOOKUP(r[0]c3&"No Ops",CHOOSE({1,2},tbl_ops[Name]&tbl_ops[Category],INDIRECT("tbl_ops["&var_crop&"]")),2,0)
B204: =VLOOKUP(r[0]c3&"No Ops",CHOOSE({1,2},tbl_ops[Name]&tbl_ops[Category],INDIRECT("tbl_ops["&var_crop&"]")),2,0)
B205: =VLOOKUP(r[0]c3&"No Ops",CHOOSE({1,2},tbl_ops[Name]&tbl_ops[Category],INDIRECT("tbl_ops["&var_crop&"]")),2,0)
B206: =VLOOKUP(r[0]c3&"No Ops",CHOOSE({1,2},tbl_ops[Name]&tbl_ops[Category],INDIRECT("tbl_ops["&var_crop&"]")),2,0)
B208: =VLOOKUP(r[0]c3&var_rain,CHOOSE({1,2},tbl_ops[Name]&tbl_ops[Rainfall],INDIRECT("tbl_ops["&var_crop&"]")),2,0)
B209: =VLOOKUP(r[0]c3&var_rain,CHOOSE({1,2},tbl_ops[Name]&tbl_ops[Rainfall],INDIRECT("tbl_ops["&var_crop&"]")),2,0)
B210: =VLOOKUP(r[0]c3&var_rain,CHOOSE({1,2},tbl_ops[Name]&tbl_ops[Rainfall],INDIRECT("tbl_ops["&var_crop&"]")),2,0)
B211: =VLOOKUP(r[0]c3&var_rain,CHOOSE({1,2},tbl_ops[Name]&tbl_ops[Rainfall],INDIRECT("tbl_ops["&var_crop&"]")),2,0)
C259: GM SENSITIVITY
C260: Gross Margin per Cow | E260: ($/kg Liveweight(yearlings/steers))
G261: 3.7 | I261: 3.9 | K261: 4.1 | M261: 4.3 | O261: 4.5
E262: 0.6 | G262: =(((($Q$7*$E262*$Q$13-$E$11-1)*G$261*$I$36)+(($Q$7*$E262)*(1-$Q$13)*G$261*$I$35)+($E$37*$I$37*$M$37)+$Q$38)-$Q$170)/$Q$7 -> 240.6707373 | I262: =(((($Q$7*$E262*$Q$13-$E$11-1)*I$261*$I$36)+(($Q$7*$E262)*(1-$Q$13)*I$261*$I$35)+($E$37*$I$37*$M$37)+$Q$38)-$Q$170)/$Q$7 -> 270.2707373 | K262: =(((($Q$7*$E262*$Q$13-$E$11-1)*K$261*$I$36)+(($Q$7*$E262)*(1-$Q$13)*K$261*$I$35)+($E$37*$I$37*$M$37)+$Q$38)-$Q$170)/$Q$7 -> 299.8707373 | M262: =(((($Q$7*$E262*$Q$13-$E$11-1)*M$261*$I$36)+(($Q$7*$E262)*(1-$Q$13)*M$261*$I$35)+($E$37*$I$37*$M$37)+$Q$38)-$Q$170)/$Q$7 -> 329.4707373 | O262: =(((($Q$7*$E262*$Q$13-$E$11-1)*O$261*$I$36)+(($Q$7*$E262)*(1-$Q$13)*O$261*$I$35)+($E$37*$I$37*$M$37)+$Q$38)-$Q$170)/$Q$7 -> 359.0707373
E263: 0.65 | G263: =(((($Q$7*$E263*$Q$13-$E$11-1)*G$261*$I$36)+(($Q$7*$E263)*(1-$Q$13)*G$261*$I$35)+($E$37*$I$37*$M$37)+$Q$38)-$Q$170)/$Q$7 -> 303.5707373 | I263: =(((($Q$7*$E263*$Q$13-$E$11-1)*I$261*$I$36)+(($Q$7*$E263)*(1-$Q$13)*I$261*$I$35)+($E$37*$I$37*$M$37)+$Q$38)-$Q$170)/$Q$7 -> 336.5707373 | K263: =(((($Q$7*$E263*$Q$13-$E$11-1)*K$261*$I$36)+(($Q$7*$E263)*(1-$Q$13)*K$261*$I$35)+($E$37*$I$37*$M$37)+$Q$38)-$Q$170)/$Q$7 -> 369.5707373 | M263: =(((($Q$7*$E263*$Q$13-$E$11-1)*M$261*$I$36)+(($Q$7*$E263)*(1-$Q$13)*M$261*$I$35)+($E$37*$I$37*$M$37)+$Q$38)-$Q$170)/$Q$7 -> 402.5707373 | O263: =(((($Q$7*$E263*$Q$13-$E$11-1)*O$261*$I$36)+(($Q$7*$E263)*(1-$Q$13)*O$261*$I$35)+($E$37*$I$37*$M$37)+$Q$38)-$Q$170)/$Q$7 -> 435.5707373
C264: Weaning % | E264: 0.7 | G264: 366.4707373 | I264: 402.8707373 | K264: 439.2707373 | M264: 475.6707373 | O264: 512.0707373
E265: 0.75 | G265: 429.3707373 | I265: 469.1707373 | K265: 508.9707373 | M265: 548.7707373 | O265: 588.5707373
E266: 0.8 | G266: 492.2707373 | I266: 535.4707373 | K266: 578.6707373 | M266: 621.8707373 | O266: 665.0707373
E267: 0.85 | G267: 555.1707373 | I267: 601.7707373 | K267: 648.3707373 | M267: 694.9707373 | O267: 741.5707373
E268: 0.9 | G268: 618.0707373 | I268: 668.0707373 | K268: 718.0707373 | M268: 768.0707373 | O268: 818.0707373
E269: 0.95 | G269: 680.9707373 | I269: 734.3707373 | K269: 787.7707373 | M269: 841.1707373 | O269: 894.5707373
E270: 1 | G270: 743.8707373 | I270: 800.6707373 | K270: 857.4707373 | M270: 914.2707373 | O270: 971.0707373
C275: GM SENSITIVITY
C276: Gross Margin per DSE | E276: ($/kg Liveweight(yearlings/steers))
G277: 3.7 | I277: 3.9 | K277: 4.1 | M277: 4.3 | O277: 4.5
E278: 0.6 | G278: =(((($Q$7*$E278*$Q$13-$E$11-1)*G$277*$I$36)+(($Q$7*$E278)*(1-$Q$13)*G$277*$I$35)+($E$37*$I$37*$M$37)+$Q$38)-$Q$170)/$Q$15 -> 12.27885822 | I278: =(((($Q$7*$E278*$Q$13-$E$11-1)*I$277*$I$36)+(($Q$7*$E278)*(1-$Q$13)*I$277*$I$35)+($E$37*$I$37*$M$37)+$Q$38)-$Q$170)/$Q$15 -> 13.7890302 | K278: =(((($Q$7*$E278*$Q$13-$E$11-1)*K$277*$I$36)+(($Q$7*$E278)*(1-$Q$13)*K$277*$I$35)+($E$37*$I$37*$M$37)+$Q$38)-$Q$170)/$Q$15 -> 15.29920217 | M278: =(((($Q$7*$E278*$Q$13-$E$11-1)*M$277*$I$36)+(($Q$7*$E278)*(1-$Q$13)*M$277*$I$35)+($E$37*$I$37*$M$37)+$Q$38)-$Q$170)/$Q$15 -> 16.80937415 | O278: =(((($Q$7*$E278*$Q$13-$E$11-1)*O$277*$I$36)+(($Q$7*$E278)*(1-$Q$13)*O$277*$I$35)+($E$37*$I$37*$M$37)+$Q$38)-$Q$170)/$Q$15 -> 18.31954613
E279: 0.65 | G279: =(((($Q$7*$E279*$Q$13-$E$11-1)*G$277*$I$36)+(($Q$7*$E279)*(1-$Q$13)*G$277*$I$35)+($E$37*$I$37*$M$37)+$Q$38)-$Q$170)/$Q$15 -> 15.48797367 | I279: =(((($Q$7*$E279*$Q$13-$E$11-1)*I$277*$I$36)+(($Q$7*$E279)*(1-$Q$13)*I$277*$I$35)+($E$37*$I$37*$M$37)+$Q$38)-$Q$170)/$Q$15 -> 17.17161135 | K279: =(((($Q$7*$E279*$Q$13-$E$11-1)*K$277*$I$36)+(($Q$7*$E279)*(1-$Q$13)*K$277*$I$35)+($E$37*$I$37*$M$37)+$Q$38)-$Q$170)/$Q$15 -> 18.85524903 | M279: =(((($Q$7*$E279*$Q$13-$E$11-1)*M$277*$I$36)+(($Q$7*$E279)*(1-$Q$13)*M$277*$I$35)+($E$37*$I$37*$M$37)+$Q$38)-$Q$170)/$Q$15 -> 20.5388867 | O279: =(((($Q$7*$E279*$Q$13-$E$11-1)*O$277*$I$36)+(($Q$7*$E279)*(1-$Q$13)*O$277*$I$35)+($E$37*$I$37*$M$37)+$Q$38)-$Q$170)/$Q$15 -> 22.22252438
C280: Weaning % | E280: 0.7 | G280: 18.69708912 | I280: 20.5541925 | K280: 22.41129588 | M280: 24.26839926 | O280: 26.12550263
E281: 0.75 | G281: 21.90620458 | I281: 23.93677365 | K281: 25.96734273 | M281: 27.99791181 | O281: 30.02848089
E282: 0.8 | G282: 25.11532003 | I282: 27.31935481 | K282: 29.52338958 | M282: 31.72742436 | O282: 33.93145914
E283: 0.85 | G283: 28.32443548 | I283: 30.70193596 | K283: 33.07943644 | M283: 35.45693692 | O283: 37.83443739
E284: 0.9 | G284: 31.53355093 | I284: 34.08451711 | K284: 36.63548329 | M284: 39.18644947 | O284: 41.73741565
E285: 0.95 | G285: 34.74266639 | I285: 37.46709826 | K285: 40.19153014 | M285: 42.91596202 | O285: 45.6403939
E286: 1 | G286: 37.95178184 | I286: 40.84967942 | K286: 43.747577 | M286: 46.64547457 | O286: 49.54337215

Sheet Beef Trading Input (hidden)
C2: ="BEEF TRADING GROSS MARGIN - "&TEXT(m_year,"0000") -> BEEF TRADING GROSS MARGIN - 2025
C4: GENERAL INFORMATION
C5: Cells with yellow highlight can be changed. No allowance has been made for pasture expenses such as seed, fertiliser and chemicals. Refer to pasture gross margins in the “Cropping Gross Margin Plan” for annual and perennial pasture costs. Use the livestock gross margin per DSE as income for the pasture gross margin.
C7: Vealers | E7: 8 | F7: DSE
C8: Yearlings | E8: 12 | F8: DSE
C9: Herd Deaths | E9: 0.02
C10: Purchases-Vealers | E10: 200
C14: Stocking rate | E14: 10 | F14: DSE/ha
C15: Vealers Purchased at | E15: 1120 | F15: /head
C18: Stock Sales-vealers
C20: Feeds | E20: 35 | F20: kg/DSE hay equivalent supplement
C22: Drench vealers | E22: 1 | F22: x
C25: Supplementary Feed
C27: Grain | E27: 0 | F27: tonne

Sheet Beef Trading (hidden)
C1: BEEF TRADING
C2: =UPPER(Var_Animal)&" GROSS MARGIN - "&TEXT(m_year,"0000") -> BEEF TRADING GROSS MARGIN - 2025
C4: ASSUMPTIONS | E4: (Finishing young cattle for local trade, grass fattened)
C9: Herd Deaths | E9: ='Beef Trading Input'!E9 -> 0.02
C10: Vealers | E10: ='Beef Trading Input'!E7 -> 8 | G10: DSE
C11: Yearlings | E11: ='Beef Trading Input'!E8 -> 12 | G11: DSE
C13: Herd DSE | E13: =AVERAGE(E10:E11)*E36 -> 1960
C14: Drench vealers | E14: ='Beef Trading Input'!E22 -> 1
C15: Stocking rate | E15: ='Beef Trading Input'!E14 -> 10 | G15: DSE/ha
C16: Area required | E16: =E13/E15 -> 196 | G16: hectares
C17: Feeds | E17: ='Beef Trading Input'!E20 -> 35 | G17: kg/DSE hay equivalent supplement
C32: INCOME | Q32: $
I34: kg liveweight | M34: $/kg L/W
B35: Stock Sales | D35: vealers | E35: ='Beef Trading Input'!E18 -> 0 | G35: Reset Rate> | H35: =GM_INFO!B175 | I35: =GM_INFO!B175 -> 280 | K35: Reset Rate> | L35: =GM_INFO!D170 | M35: =GM_INFO!D170 -> 4 | Q35: =M35*I35*E35 -> 0
D36: yearlings | E36: =ROUND(E76-(E76*E9),3)-E35 -> 196 | G36: Reset Rate> | H36: =GM_INFO!B176 | I36: =GM_INFO!B176 -> 420 | K36: Reset Rate> | L36: =GM_INFO!D171 | M36: =GM_INFO!D171 -> 3.9 | Q36: =M36*I36*E36 -> 321048
G37: Reset Rate> | H37: =GM_INFO!B122 | K37: Reset Rate> | L37: =GM_INFO!D122 | Q37: =M37*I37*E37 -> 0
Q38: ='Beef Trading Input'!E18*E38 -> 0
C41: Gross Income | Q41: =SUM(Q35:Q38) -> 321048
C46: VARIABLE COSTS
C75: Purchases | K75: Rate
C76: Vealers | E76: ='Beef Trading Input'!E10 -> 200 | I76: Reset Rate> | J76: ='Beef Trading Input'!E15 | K76: ='Beef Trading Input'!E15 -> 1120 | M76: head | Q76: =K76*ROUND(E76,0) -> 224000
C77: Transport | E77: ='Beef Trading Input'!E10 -> 200 | I77: Reset Rate> | J77: =GM_INFO!B167 | K77: =GM_INFO!B167 -> 30 | M77: head | Q77: =K77*ROUND(E77,0) -> 6000
C89: Veterinary & Medicines
C90: Drench - vealers 1x | E90: =E76 -> 200 | G90: head | I90: Reset Rate> | J90: =GM_INFO!D112 | K90: =GM_INFO!D112 -> 4.895 | M90: /head | Q90: =K90*ROUND(E90,0) -> 979
C91: Ear Tags NLIS | E91: 196 | G91: head | I91: Reset Rate> | J91: =GM_INFO!D124 | K91: =GM_INFO!D124 -> 4.75 | M91: /tag | Q91: =K91*ROUND(E91,0) -> 931
C92: Lice Treatments | E92: =E76 -> 200 | G92: head | I92: Reset Rate> | J92: =GM_INFO!D112 | K92: =GM_INFO!D112 -> 4.895 | M92: /dose | Q92: =K92*ROUND(E92,0) -> 979
C93: Vaccine (7 in 1) | E93: =E76 -> 200 | G93: head | I93: Reset Rate> | J93: =GM_INFO!D115 | K93: =GM_INFO!D115 -> 3.3 | M93: /dose | Q93: =K93*ROUND(E93,0) -> 660
C117: Sale Costs and other
C119: Insurance | E119: =Q76 -> 224000 | I119: Reset Rate> | J119: =GM_INFO!B157*0.5 -> 2.25 | K119: =GM_INFO!B157*0.5 -> 2.25 | M119: /$1000 | Q119: =K119*ROUND(E119,0)/1000 -> 504
C120: Water | E120: =E13 -> 1960 | G120: dse's | I120: Reset Rate> | J120: =GM_INFO!J130 | K120: =GM_INFO!J130 -> 2.5 | Q120: =K120*ROUND(E120,0) -> 4900
C121: Veh Fuel, R&M | E121: =E13 -> 1960 | G121: dse's | I121: Reset Rate> | J121: =GM_INFO!J131 | K121: =GM_INFO!J131 -> 1.5 | Q121: =K121*ROUND(E121,0) -> 2940
C122: Other | E122: =E13 -> 1960 | G122: dse's | I122: Reset Rate> | J122: =GM_INFO!J132 | K122: =GM_INFO!J132 -> 0.5 | Q122: =K122*ROUND(E122,0) -> 980
C123: Transport: | E123: =SUM(E35:E38) -> 196 | G123: head | I123: Reset Rate> | J123: =GM_INFO!D126 | K123: =GM_INFO!D126 -> 45 | M123: /head | Q123: =K123*E123 -> 8820
C125: Commission | I125: Reset Rate> | J125: =GM_INFO!C98 | K125: =GM_INFO!C98 -> 0.055 | Q125: =Q41*K125 -> 17657.64
C126: Levies | I126: Reset Rate> | J126: =GM_INFO!D128 | K126: =GM_INFO!D128 -> 5.5 | M126: /head | Q126: =K126*SUM(E35:E38) -> 1078
C143: Supplementary Feed
C146: Hay | E146: =(E17*E13)/1000 -> 68.6 | G146: tonne | I146: Reset Rate> | J146: =GM_INFO!D133 | K146: =GM_INFO!D133 -> 220 | M146: /tonne | Q146: =K146*E146 -> 15092
C147: Grain | E147: ='Beef Trading Input'!E27 -> 0 | G147: tonne | I147: Reset Rate> | J147: =GM_INFO!D134 | K147: =GM_INFO!D134 -> 300 | M147: /tonne | Q147: =K147*E147 -> 0
C148: Blocks/ Mineral Mix | E148: =Q7 -> 0 | G148: @ | I148: Reset Rate> | J148: =GM_INFO!D136 | K148: =GM_INFO!D136 -> 5.5 | M148: /head | Q148: =K148*E148 -> 0
C170: TOTAL VARIABLE COSTS | Q170: =SUM(Q48:Q166) -> 285520.64
C172: GROSS MARGIN TOTAL | Q172: =Q41-Q170 -> 35527.36
C174: GROSS MARGIN/DSE | Q174: =Q172/E13 -> 18.12620408
C178: GROSS MARGIN/HA | Q178: =Q172/E16 -> 181.2620408
B203: =VLOOKUP(r[0]c3&"No Ops",CHOOSE({1,2},tbl_ops[Name]&tbl_ops[Category],INDIRECT("tbl_ops["&var_crop&"]")),2,0)
B204: =VLOOKUP(r[0]c3&"No Ops",CHOOSE({1,2},tbl_ops[Name]&tbl_ops[Category],INDIRECT("tbl_ops["&var_crop&"]")),2,0)
B205: =VLOOKUP(r[0]c3&"No Ops",CHOOSE({1,2},tbl_ops[Name]&tbl_ops[Category],INDIRECT("tbl_ops["&var_crop&"]")),2,0)
B206: =VLOOKUP(r[0]c3&"No Ops",CHOOSE({1,2},tbl_ops[Name]&tbl_ops[Category],INDIRECT("tbl_ops["&var_crop&"]")),2,0)
B208: =VLOOKUP(r[0]c3&var_rain,CHOOSE({1,2},tbl_ops[Name]&tbl_ops[Rainfall],INDIRECT("tbl_ops["&var_crop&"]")),2,0)
B209: =VLOOKUP(r[0]c3&var_rain,CHOOSE({1,2},tbl_ops[Name]&tbl_ops[Rainfall],INDIRECT("tbl_ops["&var_crop&"]")),2,0)
B210: =VLOOKUP(r[0]c3&var_rain,CHOOSE({1,2},tbl_ops[Name]&tbl_ops[Rainfall],INDIRECT("tbl_ops["&var_crop&"]")),2,0)
B211: =VLOOKUP(r[0]c3&var_rain,CHOOSE({1,2},tbl_ops[Name]&tbl_ops[Rainfall],INDIRECT("tbl_ops["&var_crop&"]")),2,0)
C275: GM SENSITIVITY
C276: Gross Margin per DSE | E276: ($/kg Liveweight(yearlings/steers))
G277: 1.98 | I277: 2.18 | K277: 2.38 | M277: 2.58 | O277: 2.78
E278: 1.72 | G278: =(((((G$277*$I$36)*($E$36/$E$76)-($I$35*$E278))/10-(SUM($Q$77:$Q$166)/$E$13)))) -> 1.948718367 | I278: 10.18071837 | K278: 18.41271837 | M278: 26.64471837 | O278: 34.87671837
E279: 1.92 | G279: -3.651281633 | I279: 4.580718367 | K279: 12.81271837 | M279: 21.04471837 | O279: 29.27671837
C280: $/kg Liveweight Purchases (Vealers) | E280: 2.12 | G280: -9.251281633 | I280: -1.019281633 | K280: 7.212718367 | M280: 15.44471837 | O280: 23.67671837
E281: 2.32 | G281: -14.85128163 | I281: -6.619281633 | K281: 1.612718367 | M281: 9.844718367 | O281: 18.07671837
E282: 2.52 | G282: -20.45128163 | I282: -12.21928163 | K282: -3.987281633 | M282: 4.244718367 | O282: 12.47671837
E283: 2.72 | G283: -26.05128163 | I283: -17.81928163 | K283: -9.587281633 | M283: -1.355281633 | O283: 6.876718367
E284: 2.92 | G284: -31.65128163 | I284: -23.41928163 | K284: -15.18728163 | M284: -6.955281633 | O284: 1.276718367
E285: 3.12 | G285: -37.25128163 | I285: -29.01928163 | K285: -20.78728163 | M285: -12.55528163 | O285: -4.323281633
E286: 3.3 | G286: -42.29128163 | I286: -34.05928163 | K286: -25.82728163 | M286: -17.59528163 | O286: -9.363281633

Sheet Beef Feed Lot Input (hidden)
C2: ="BEEF FEED LOT GROSS MARGIN - "&TEXT(m_year,"0000") -> BEEF FEED LOT GROSS MARGIN - 2025
C4: GENERAL INFORMATION
C5: This sheet not used. Please enter all data in the Beef Feed Lot sheet

Sheet Beef Feed Lot (hidden)
C1: BEEF FEED LOT
C2: =UPPER(Var_Animal)&" GROSS MARGIN - "&TEXT(m_year,"0000") -> BEEF FEED LOT GROSS MARGIN - 2025
C4: ASSUMPTIONS | E4: ('Local supermarket, 210kg HSCW Carcase, AUSMEAT Fat Score 3-4)
C8: Steer Costs:
C9: Steer purchase | E9: =I9*M9 -> 960 | G9: for | I9: 240 | K9: kg@ | M9: 4 | O9: /kg liveweight
C10: Transport In | E10: 30 | G10: /head | M10: Average weight gain | O10: 1.8 | Q10: kg/hd/day
C11: Est. dressing % | E11: 0.55 | M11: Carcase weight specification | O11: =ROUND((E11*O12),0) -> 230 | Q11: kg HSCW
M12: Final liveweight in lot | O12: 418 | Q12: kg
M13: Avge liveweight in lot | O13: 329 | Q13: kg
M14: Est. time on feed | O14: 100 | Q14: days
C15: Feed Costs: | M15: Avge daily Feed intake | O15: =O13*0.035 -> 11.515 | Q15: kg
C16: Total feed consumed | G16: =ROUNDDOWN(O14*O15,0) -> 1151 | I16: kg | M16: (3.5% of Liveweight)
C17: Feed Wastage | E17: 0.05 | G17: =G16*E17 -> 57.55 | I17: kg | M17: Death Rate | O17: 0.01
C18: Feed cost per tonne | G18: 265 | I18: without premix / supplement
C32: INCOME | Q32: $
C35: Finished steers | E35: 0.97 | G35: % Steer @ | H35: =GM_INFO!B125 | I35: =O11 -> 230 | K35: kg carcass @ | L35: =GM_INFO!D120 | M35: 9.7 | O35: /kg HSCW | Q35: =M35*I35*E35 -> 2164.07
C36: Poor performers sold at 30 days | E36: =SUM(1,-E35,-E37) -> 0.02 | G36: % Steer @ | H36: =GM_INFO!B126 | I36: 240 | K36: kg liveweight | L36: =GM_INFO!D121 | M36: 6.3 | O36: /kg LVWT | Q36: =M36*I36*E36 -> 30.24
C37: Deaths | E37: =O17 -> 0.01 | G37: % Steer @ | H37: =GM_INFO!B122 | I37: 0 | L37: =GM_INFO!D122 | M37: 0 | Q37: 0
Q38: ='Beef Feed Lot Input'!E18*E38 -> 0
D39: TOTAL (must be 100%) | E39: =SUM(E35:E38) -> 1
C41: Gross Income | Q41: =SUM(Q35:Q38) -> 2194.31
C46: VARIABLE COSTS
C75: Purchases | K75: Rate
C76: Steer purchase | E76: 1 | G76: head | K76: 1500 | M76: /head | Q76: =K76*ROUND(E76,0) -> 1500
C77: Feeding Out & Feed
C78: Feed purchased | E78: =(E35*(G16+G17)+(E36*(G16+G17)*30/O14)) -> 1179.5448 | G78: kg | K78: =G18 -> 265 | M78: /tonne | Q78: =E78*K78/1000 -> 312.579372
C79: Premix cost per tonne mixed feed | E79: =E78 -> 1179.5448 | G79: kg | I79: Reset Rate> | J79: =GM_INFO!I118 | K79: =GM_INFO!I119 -> 50 | M79: /tonne | Q79: =E79*K79/1000 -> 58.97724
C80: Milling costs + Labour | E80: 1 | I80: Reset Rate> | J80: =GM_INFO!I119 | K80: =GM_INFO!I120 -> 28 | M80: /head | Q80: 28
C81: Water | E81: 1 | I81: Reset Rate> | J81: =GM_INFO!I120 | K81: =GM_INFO!I121 -> 20 | M81: /head | Q81: 20
C89: Veterinary & Medicines
C90: Drench, Dectomax | E90: 1 | G90: head | I90: Reset Rate> | J90: =GM_INFO!I111 | K90: =GM_INFO!I111 -> 5.775 | M90: /head | Q90: =K90*ROUND(E90,0) -> 5.775
C91: Ear Tags | E91: 1 | G91: head | I91: Reset Rate> | J91: =GM_INFO!I112 | K91: =GM_INFO!I112 -> 4.75 | M91: /tag | Q91: 4.75
C92: HGP implant , Synovex | E92: 0 | G92: head | I92: Reset Rate> | J92: =GM_INFO!I113 | K92: =GM_INFO!I113 -> 2.5 | M92: /dose | Q92: 0
C93: Lice Treatments | E93: 0 | G93: head | I93: Reset Rate> | J93: =GM_INFO!I114 | K93: =GM_INFO!I114 -> 0 | M93: /dose | Q93: 0
C94: Vaccine | E94: 1 | G94: head | I94: Reset Rate> | J94: =GM_INFO!I115 | K94: =GM_INFO!I116 -> 0.58 | M94: /dose | Q94: 0.58
C95: Veterinary | E95: 1 | G95: head | I95: Reset Rate> | J95: =GM_INFO!I116 | K95: =GM_INFO!I117 -> 1.25 | M95: /dose | Q95: 1.25
C96: Vitamin injection | E96: 0 | G96: head | I96: Reset Rate> | J96: =GM_INFO!I117 | K96: =GM_INFO!I118 -> 1.5 | M96: /dose | Q96: 0
C116: Losses | E116: 0.006 | G116: % | J116: =(Q76+Q78)*E116 | K116: =(Q76+Q78)*E116 -> 10.87547623 | M116: /head | Q116: =K116 -> 10.87547623
C117: Sale Costs and other
C119: Insurance | E119: =Q76 -> 1500 | I119: Reset Rate> | J119: =GM_INFO!I121 | K119: =GM_INFO!I122 -> 3 | M119: /$1000 | Q119: =K119*ROUND(E119,0)/1000 -> 4.5
C122: Transport In | E122: 1 | G122: dse's | I122: Reset Rate> | J122: =GM_INFO!I122 | K122: =GM_INFO!I123 -> 15 | Q122: =K122*ROUND(E122,0) -> 15
C123: Transport Out | E123: 1 | G123: head | I123: Reset Rate> | J123: =GM_INFO!I123 | K123: =GM_INFO!I124 -> 30 | M123: /head | Q123: =K123*E123 -> 30
C125: Commission | I125: Reset Rate> | J125: =GM_INFO!I124 | K125: =GM_INFO!I125 -> 0.055 | Q125: =Q41*K125 -> 120.68705
C126: Levies | I126: Reset Rate> | J126: =GM_INFO!I125 | K126: =GM_INFO!I126 -> 5 | M126: /head | Q126: =K126*SUM(E35:E36) -> 4.95
C143: Accreditation costs on a 600 hd/year throughput | Q143: 1
C170: TOTAL VARIABLE COSTS | Q170: =SUM(Q48:Q166) -> 2118.924138
C172: GROSS MARGIN PER HEAD | Q172: =Q41-Q170 -> 75.38586177
C174: Current interest rate | E174: 0.05
C175: Interest on cattle | K175: =K76*E174*O14/365 -> 20.54794521
C176: Interest on feed | K176: =Q78*E174*O14/365 -> 4.281909205
C178: GROSS MARGIN AFTER INTEREST | Q178: =SUM(Q172,-K175,-K176) -> 50.55600736
C180: Break even sale price :-- c/kg on purchase price, costs & interest | Q180: =((Q170+K175+K176-Q36)/(E35*I35))*100 -> 947.3393064
C182: Break even purchase price :-- c/kg on sale price & costs | Q182: =(-K176-K175+Q35-SUM(Q78:Q166))/I9*100 -> 633.4650031
B203: =VLOOKUP(r[0]c3&"No Ops",CHOOSE({1,2},tbl_ops[Name]&tbl_ops[Category],INDIRECT("tbl_ops["&var_crop&"]")),2,0)
B204: =VLOOKUP(r[0]c3&"No Ops",CHOOSE({1,2},tbl_ops[Name]&tbl_ops[Category],INDIRECT("tbl_ops["&var_crop&"]")),2,0)
B205: =VLOOKUP(r[0]c3&"No Ops",CHOOSE({1,2},tbl_ops[Name]&tbl_ops[Category],INDIRECT("tbl_ops["&var_crop&"]")),2,0)
B206: =VLOOKUP(r[0]c3&"No Ops",CHOOSE({1,2},tbl_ops[Name]&tbl_ops[Category],INDIRECT("tbl_ops["&var_crop&"]")),2,0)
B208: =VLOOKUP(r[0]c3&var_rain,CHOOSE({1,2},tbl_ops[Name]&tbl_ops[Rainfall],INDIRECT("tbl_ops["&var_crop&"]")),2,0)
B209: =VLOOKUP(r[0]c3&var_rain,CHOOSE({1,2},tbl_ops[Name]&tbl_ops[Rainfall],INDIRECT("tbl_ops["&var_crop&"]")),2,0)
B210: =VLOOKUP(r[0]c3&var_rain,CHOOSE({1,2},tbl_ops[Name]&tbl_ops[Rainfall],INDIRECT("tbl_ops["&var_crop&"]")),2,0)
B211: =VLOOKUP(r[0]c3&var_rain,CHOOSE({1,2},tbl_ops[Name]&tbl_ops[Rainfall],INDIRECT("tbl_ops["&var_crop&"]")),2,0)
C275: GM SENSITIVITY
C276: Gross Margin | E276: Per head ($/kg HSCW Carcase)
G277: 9.1 | H277: 5.5 | I277: 9.4 | J277: 6.5 | K277: 9.7 | M277: 10 | O277: 10.3
E278: 235 | G278: =($E$35*$I$35*G$277)+($E$36*$I$36*$M$36)-$Q$170+$Q$78-(($E$78*$E278)/1000) -> -23.08779423 | H278: -826.2477942 | I278: 43.84220577 | J278: -603.1477942 | K278: 110.7722058 | L278: -2053.297794 | M278: 177.7022058 | N278: -2053.297794 | O278: 244.6322058
E279: 245 | G279: -34.88324223 | H279: -838.0432422 | I279: 32.04675777 | J279: -614.9432422 | K279: 98.97675777 | L279: -2065.093242 | M279: 165.9067578 | N279: -2065.093242 | O279: 232.8367578
C280: Feed Cost/tonne | E280: 255 | G280: -46.67869023 | H280: -849.8386902 | I280: 20.25130977 | J280: -626.7386902 | K280: 87.18130977 | L280: -2076.88869 | M280: 154.1113098 | N280: -2076.88869 | O280: 221.0413098
E281: 265 | G281: -58.47413823 | H281: -861.6341382 | I281: 8.455861768 | J281: -638.5341382 | K281: 75.38586177 | L281: -2088.684138 | M281: 142.3158618 | N281: -2088.684138 | O281: 209.2458618
E282: 275 | G282: -70.26958623 | H282: -873.4295862 | I282: -3.339586232 | J282: -650.3295862 | K282: 63.59041377 | L282: -2100.479586 | M282: 130.5204138 | N282: -2100.479586 | O282: 197.4504138
E283: 285 | G283: -82.06503423 | H283: -885.2250342 | I283: -15.13503423 | J283: -662.1250342 | K283: 51.79496577 | L283: -2112.275034 | M283: 118.7249658 | N283: -2112.275034 | O283: 185.6549658
E284: 295 | G284: -93.86048223 | H284: -897.0204822 | I284: -26.93048223 | J284: -673.9204822 | K284: 39.99951777 | L284: -2124.070482 | M284: 106.9295178 | N284: -2124.070482 | O284: 173.8595178
E285: 305 | G285: -105.6559302 | H285: -908.8159302 | I285: -38.72593023 | J285: -685.7159302 | K285: 28.20406977 | L285: -2135.86593 | M285: 95.13406977 | N285: -2135.86593 | O285: 162.0640698
E286: 315 | G286: -117.4513782 | H286: -920.6113782 | I286: -50.52137823 | J286: -697.5113782 | K286: 16.40862177 | L286: -2147.661378 | M286: 83.33862177 | N286: -2147.661378 | O286: 150.2686218
